{"text_format":"1","workbook":"xlsx","n_sheets":9,"sheets":["Settings","Help","Schedule","Progress","AnalysisReport","Calendar","TranslatedLanguages","Workload","ServerData"],"not_rendered":{"charts":0,"images":0,"macros":1,"external_links":0,"defined_names":65,"comments":0,"pivot_tables":0},"unopened":[],"bounds":{"document_bytes":16777216,"sheet_cells":100000,"rows_first":2000,"rows_last":500,"rows_between":2000,"halvings":0,"cell_chars":16384,"cell_head_chars":4096},"cells_cut":0,"cells_raw":0,"read":"whole","date_system":"1900"}

{"sheet":"Settings","index":0,"n_rows":15,"n_cols":64,"rows_kept":15,"cut":false,"hidden":true,"merged":[]}
["ITEM","VALUE1","VALUE2","VALUE3","INSERTED_DATE","UPDATED_DATE"]
["COMPANY","XLWorks",null,null,"DO NOT UPDATE"]
["AUTHOR_NAME","XLWorks",null,null,"DO NOT UPDATE"]
["AUTHOR_EMAIL","admin@xlworks.net",null,null,"DO NOT UPDATE"]
["PROGRAM_NAME","XLGantt",null,null,"DO NOT UPDATE"]
["PROGRAM_SITE","https://xlworks.net/en/xlgantt-project-scheduler/",null,null,"DO NOT UPDATE"]
["PROGRAM_SITE_DISP","XLWorks",null,null,"DO NOT UPDATE"]
["VERSION","4.7.0","{\"TASK_FIRST_COL\":\"5\",\"START_ROW\":\"5\",\"WBS_AREA_LAST_COL\":\"31\"}",82,"DO NOT UPDATE"]
["RELEASE_DATE","2021-05-30",null,null,"DO NOT UPDATE"]
["LICENSE","Freeware",null,null,"DO NOT UPDATE"]
["OPTIONS_GENERAL","Name:projectName","HyperMig 2025","Name:isConfirmedProjectBasicInfo",1,"Name:projectStartDate","2025-01-01","Name:projectEndDate","2025-12-30","Name:scheduleSheetPosition","SCHEDULE_SHEET_POSITION:3545151617181920212223242526272829303132","Name:setTaskDateToProjectDate",0,"Name:optScheduleChangeMgt",0,"Name:optPlanRateCriteriaDate","TODAY","Name:optFirstDayOfWeek",1,"Name:chkWBSUpdateExecuteYN",1,"Name:chkCheckForUpdatesOnStartup",1,"Name:optNonWorkingDays",1,"Name:chkImportDataOnStartup",0,"Name:optRecalcWBSArea",0,"Name:optWeekNum",1,"Name:optWorkloadCalcByResourceAssignRate",1]
["OPTIONS_WBS_GANTT","Name:completeTaskGrayDisplay",1,"Name:taskDispInGroup",1,"Name:taskDispInSub",0,"Name:dateDisp",1,"Name:ganttColWidth",0.7,"Name:taskNameDisplayPosition",2,"Name:actualRateDisp",1,"Name:groupTaskInteriorGrayDisplay",1,"Name:optGanttChartColumnDisplay",7,"Name:applyUserInputFirst",0,"Name:txtGanttChartZoomRatio",100,"Name:plannedRateDisp",0,"Name:resourceDisp",1,"Name:taskDisp",1,"Name:groupRows",1,"Name:dateDispOnTimescale",2,"Name:txtNumberOfTaskColumn",9,"Name:chkYearDispOverTimescale",1,"Name:chkProjectWeekNumDispOverTimescale",1,"Name:cbxColorTheme",1,"Name:themeColorList","10066176;10066176;26367;8421504;26367;8421504;16764108;16737792;65280;16737792;13311;65280;14540253;255","Name:optAlignWBSColumn",-4131]
["OPTIONS_DELIVERABLES_MGT","Name:chkDeliverablesMgt",1,"Name:savePathType","DEFINED","Name:txtDefinedPath","C:\\Temp","Name:txtAutoDefinedBasePath","C:\\Temp"]
["OPTIONS_DELIVERABLES_PGM_PATH","Name:txtPgmName1","Powerpoint","Name:txtFileExt1","ppt*","Name:txtPgmPath1","Automatically defined","Name:chkInclude2SelectList1",false,"Name:txtPgmName2","Word","Name:txtFileExt2","doc*","Name:txtPgmPath2","Automatically defined","Name:chkInclude2SelectList2",false,"Name:txtPgmName3","Excel","Name:txtFileExt3","xls*","Name:txtPgmPath3","Automatically defined","Name:chkInclude2SelectList3",true,"Name:txtPgmName4","AutoCAD","Name:txtFileExt4","dwg","Name:txtPgmPath4","C:\\Program Files\\Autodesk\\AutoCAD 2019\\acad.exe","Name:chkInclude2SelectList4",true,"Name:txtPgmName5","Notepad++","Name:txtFileExt5","html","Name:txtPgmPath5","C:\\Program Files\\Notepad++\\notepad++.exe","Name:chkInclude2SelectList5",false,"Name:txtPgmName6","메모장","Name:txtFileExt6","txt","Name:txtPgmPath6","C:\\WINDOWS\\system32\\notepad.exe","Name:chkInclude2SelectList6",true,"Name:txtPgmName7",null,"Name:txtFileExt7",null,"Name:txtPgmPath7",null,"Name:chkInclude2SelectList7",null,"Name:txtPgmName8",null,"Name:txtFileExt8",null,"Name:txtPgmPath8",null,"Name:chkInclude2SelectList8"]
["OPTIONS_LANGUAGE","Name:languageSelectionType",1,"Name:languageSelectedByManual",82,"Name:selectedLanguageList","1:English,82:Korean,999:Custom","Name:lastTranslatedLanguage",82]

{"sheet":"Help","index":1,"n_rows":34,"n_cols":12,"rows_kept":34,"cut":false,"hidden":false,"merged":[[0,0,1,6],[25,3,25,10],[26,3,26,10],[27,3,27,10],[10,3,10,11],[11,3,11,11],[14,3,14,11],[12,3,12,11],[23,3,23,10],[28,3,28,10],[29,3,29,10],[33,1,33,11],[30,3,30,10],[0,9,0,11],[19,3,19,10],[20,3,20,10],[21,3,21,10],[3,1,4,11],[18,3,18,10],[13,3,13,11],[8,3,8,11],[9,3,9,11],[24,3,24,10],[1,7,1,11],[22,3,22,10]]}
["엑셀간트(XLGantt) - 엑셀 일정관리",null,null,null,null,null,null,null,null,"XLGantt 4.7.0 ©XLWorks "]
[null,null,null,null,null,null,null,"도움말, 최신 버전 다운로드 - https://xlworks.net/xlgantt-project-scheduler/ "]
[]
[null,"엑셀간트(XLGantt)는 마이크로소프트 엑셀에서 프로젝트 일정관리를 할 수 있도록 만들어진 프로그램이며 아래와 같은 기능으로 구성되어 있다. 엑셀 VBA로 작성된 매크로 프로그램이므로 설치가 필요없고 매크로 파일만 실행하면 된다."]
[]
[]
[null,"시트 구성"]
[]
[null,"Schedule",null,"작업과 일정을 입력하면 진척율이 계산되며 작업의 일정을 간트차트로 표시해 준다."]
[null,"Progress",null,"작업량, 진척율 등을 볼 수 있다."]
[null,"AnalysisReport",null,"담당별 진행율, Workload등 분석용 Report를 만들어서 보여준다."]
[null,"Calendar",null,"프로젝트의 휴무일을 설정한다."]
[null,"Workload",null,"Workload data를 주별/월별로 만들어 준다. 피벗 등의 기능으로 사용자가 원하는대로 분석을 할 수 있다."]
[null,"ServerData",null,"Server가 별도로 존재하는 IT시스템의 일정관리 Data를 PC에서 보고자할 때 사용한다."]
[null,"TranslatedLanguages",null,"(숨겨진 시트) 언어별 번역이 들어 있다."]
[]
[null,"사용법"]
[]
[null,"간단 사용법",null,"기능을 간단히 빨리 익히고 싶으면 “간단 사용법”을 참고한다",null,null,null,null,null,null,null,"도움말"]
[null,"작업입력, 스케줄 업데이트",null,"작업명, 시작일, 완료일, 진척율을 입력하면 휴무일, 가중치를 고려하여 자동으로 작업기간, 계획진척율, 실적진척율 등이 계산된다.",null,null,null,null,null,null,null,"도움말"]
[null,"간트차트 표시방법 설정",null,"Bar chart형태로 간트차트를 보여주며 여러 가지 표시방법을 옵션에서 설정할 수 있다.",null,null,null,null,null,null,null,"도움말"]
[null,"프로젝트 전체 진행상황 파악하기",null,"진척율을 이용하여 프로젝트 전체 진행상황을 파악할 수 있다.",null,null,null,null,null,null,null,"도움말"]
[null,"분석 리포트",null,"프로젝트의 현황을 파악할 수 있는 진행율, Workload 등의 분석 리포트와 분석용 Workload data를 제공한다.",null,null,null,null,null,null,null,"도움말"]
[null,"일정계획 변경관리",null,"엑셀간트에서는 “일정계획 변경관리”기능을 이용하여 작업의 실제시작일과 실제완료일을 입력할 수 있다. 실제 시작된 날짜와 실제 완료된 날짜를 입력하여 일정이 지연되고 있는 지, 일정이 계획보다 빠른 지 파악할 수 있다.",null,null,null,null,null,null,null,"도움말"]
[null,"산출물",null,"엑셀간트에서는 산출물의 저장 경로(폴더 위치)를 지정하고 Schedule시트에서 바로 산출물을 열 수 있는 기능을 제공한다. 리본 메뉴에서 “옵션” 버튼을 클릭하면  “산출물”과 관련된 설정을 할 수 있다.",null,null,null,null,null,null,null,"도움말"]
[null,"Microsoft Outlook작업, 일정등록",null,"엑셀간트에서는 Schedule시트에 입력되어 있는 작업을 Microsoft Outlook에 작업이나 일정으로 등록할 수 있는 기능을 제공한다(단, PC에 Microsoft Outlook이 설치되어 있어야 한다).",null,null,null,null,null,null,null,"도움말"]
[null,"다국어 지원",null,"엑셀간트는 다국어를 지원하는데 프로그램을 수정하지 않고 여러 다국어를 추가할 수 있다. 현재는 한국어, 영어 2개 국어가 추가되어 있다.",null,null,null,null,null,null,null,"도움말"]
[null,"다른 파일에서 일정 가져오기",null,"엑셀간트에서는 엑셀간트(XLGantt) 또는 일반 엑셀파일로 만들어진 일정을 가져오는 기능을 제공한다.",null,null,null,null,null,null,null,"도움말"]
[null,"Calendar",null,"한주의 시작요일 지정, 휴무일 설정, 주차표시 기능을 제공한다.\n리본메뉴 > XLGantt – Project Scheduler > 옵션 > “Calendar” 탭에서 설정할 수 있다.",null,null,null,null,null,null,null,"도움말"]
[null,"Excel기능과 통합",null,"엑셀간트에서는 입력된 프로젝트 정보를 가지고 올 수 있는 함수와 엑셀의 수식계산 기능 등을 엑셀간트에 포함할 수 있는 기능을 제공하고 있다.\n이 기능을 이용하면 프로젝트의 상황에 맞도록 엑셀간트를 재 구성할 수 있다.",null,null,null,null,null,null,null,"도움말"]
[null,"Server Data 가져오기",null,"Server가 별도로 존재하는 IT시스템의 일정관리 데이터를 PC에서 보고자할 때 Server에서 일정관리 데이터를 ServerData 시트에 넣은 후 파일을 다운로드하고 XLGantt 파일을 열면 이 데이터가 Schedule 시트로 들어온다. 서버에서 작업연결정보를 내려주면 작업을 연결해서 보여준다.",null,null,null,null,null,null,null,"도움말"]
[]
[null,"XLGantt Version 4.7.0 사용조건"]
[null,"본 “소프트웨어”는 xlworks.net에서 개발하고 배포하는 무료 소프트웨어(Freeware)입니다. 이 프로그램은 개인/기업/관공서/학교 등 언제나 어디서나 무료로 사용이 가능합니다. 본 “소프트웨어”는 저작권법과 기타 지적재산권 관련 법률 및 국제 협약에 의해 보호를 받고 있으며, 본 “소프트웨어＂를 개작하거나 리버스 엔지니어링, 디컴파일, 디스어셈블, 다른 소프트웨어의 일부분으로 포함하여 제작 할 수 없습니다."]

{"sheet":"Schedule","index":2,"n_rows":93,"n_cols":84,"rows_kept":93,"cut":false,"hidden":false,"merged":[[2,24,3,24],[2,30,3,30],[2,29,3,29],[2,27,3,27],[2,0,3,0],[2,1,3,1],[2,2,3,2],[2,3,3,3],[2,4,3,13],[2,26,3,26],[2,28,3,28],[2,43,2,46],[1,43,1,46],[2,47,2,50],[1,47,1,50],[1,3,1,5],[2,14,3,14],[2,21,3,21],[2,23,3,23],[2,25,3,25],[2,15,3,15],[2,16,3,16],[2,18,3,18],[2,17,3,17],[2,19,3,19],[2,22,3,22],[2,20,3,20],[2,31,2,34],[1,31,1,34],[2,35,2,38],[1,35,1,38],[2,39,2,42],[1,39,1,42],[2,51,2,54],[1,51,1,54],[2,55,2,58],[1,55,1,58],[2,59,2,62],[1,59,1,62],[2,63,2,66],[1,63,1,66],[2,67,2,70],[1,67,1,70],[2,71,2,74],[1,71,1,74],[2,75,2,78],[1,75,1,78],[2,79,2,82],[1,79,1,82],[2,83,2,86],[1,83,1,86]]}
[null,null,null,{"$f":"xlgantt.ProjectName()","v":"HyperMig 2025"},null,null,null,null,null,null,null,null,null,null,null,null,null,null,null,null,null,null,null,null,null,null,null,null,null,null,{"$f":"xlgantt.ProjectProgressString()","v":"2025-01-01~2025-12-30 [계획:32.47% 실적:32.36%]"},"XLGantt 4.7.0 ©XLWorks  주별보기, Zoom 100%, 계산 옵션 : 자동"]
[null,null,null,null,null,null,null,null,null,null,null,null,null,null,null,null,null,null,null,null,null,null,null,null,null,null,null,null,null,null,{"$f":"xlgantt.CommentOnHeadArea()","v":"별(*)표시는 필수입력"},"W1",null,null,null,"W5",null,null,null,"W9",null,null,null,"W13",null,null,null,"W17",null,null,null,"W21",null,null,null,"W25",null,null,null,"W29",null,null,null,"W33",null,null,null,"W37",null,null,null,"W41",null,null,null,"W45",null,null,null,"W49",null,null,null,"W53"]
["reserved","task_group","wbs_level","WBS","작업*",null,null,null,null,null,null,null,null,null,"비고","시작일*","완료일*","Calendar","총\r\n작업량","계획\r\n작업량","총\r\n기간","계획\r\n기간","실제\r\n시작일","실제\r\n완료일","실제\r\n총작업량","실제\r\n총기간","가중치","담당","산출물","계획","실적*","12/29\nW53",null,null,null,"2025\nW5",null,null,null,"02/23\nW9",null,null,null,"03/23\nW13",null,null,null,"04/20\nW17",null,null,null,"05/18\nW21",null,null,null,"06/15\nW25",null,null,null,"07/13\nW29",null,null,null,"08/10\nW33",null,null,null,"09/07\nW37",null,null,null,"10/05\nW41",null,null,null,"11/02\nW45",null,null,null,"11/30\nW49",null,null,null,"12/28\nW53"]
[null,null,null,null,null,null,null,null,null,null,null,null,null,null,null,null,null,null,null,null,null,null,null,null,null,null,null,null,null,null,null,"2024-12-29","2025-01-05","2025-01-12","2025-01-19","2025-01-26","2025-02-02","2025-02-09","2025-02-16","2025-02-23","2025-03-02","2025-03-09","2025-03-16","2025-03-23","2025-03-30","2025-04-06","2025-04-13","2025-04-20","2025-04-27","2025-05-04","2025-05-11","2025-05-18","2025-05-25","2025-06-01","2025-06-08","2025-06-15","2025-06-22","2025-06-29","2025-07-06","2025-07-13","2025-07-20","2025-07-27","2025-08-03","2025-08-10","2025-08-17","2025-08-24","2025-08-31","2025-09-07","2025-09-14","2025-09-21","2025-09-28","2025-10-05","2025-10-12","2025-10-19","2025-10-26","2025-11-02","2025-11-09","2025-11-16","2025-11-23","2025-11-30","2025-12-07","2025-12-14","2025-12-21","2025-12-28"]
[" ;1","G",1,"1","HyperMig 2025",null,null,null,null,null,null,null,null,null,null,"2025-01-01","2025-12-30",null,893,290,243,86,null,null,0,0,null,null,null,0.32474804031354981,0.32362821948488241,null,null,null,null,null,null,null,null,null,null,null,null,null,null,null,null,null,{"$f":"\"  \" & TEXT(AE5,\"#0.00%\") & \" \"","v":"  32.36% "},null,null,null,null,null,null,null,null,null,null,null,null,null,null,null,null,null,null,null,null,null,null,null,null,null,null,null,null,null,null,null,null,null,null,{"$f":"\"   \" & \"HyperMig 2025\" & \" \" & IF(P5=\"\",\"\",TEXT(P5,\"M/D-\")) & IF(Q5=\"\",\"\",TEXT(Q5,\"M/D\")) & \" \"","v":"   HyperMig 2025 1/1-12/30 "}]
[" ;2","G",2,"1.1",null,"BackOffice(ISMS-P)",null,null,null,null,null,null,null,null,null,"2025-01-01","2025-06-30",null,343,290,119,86,null,null,0,0,null,null,null,0.84548104956268222,0.8425655976676385,null,null,null,null,null,null,null,null,null,null,null,null,null,null,null,null,null,null,null,null,null,null,{"$f":"\"  \" & TEXT(AE6,\"#0.00%\") & \" \"","v":"  84.26% "},null,null,null,{"$f":"\"  \" & \"BackOffice(ISMS-P)\" & \" \" & IF(P6=\"\",\"\",TEXT(P6,\"M/D-\")) & IF(Q6=\"\",\"\",TEXT(Q6,\"M/D\")) & \" \"","v":"  BackOffice(ISMS-P) 1/1-6/30 "}]
[" ;3","G",3,"1.1.1",null,null,"System",null,null,null,null,null,null,null,null,"2025-05-01","2025-06-30",null,46,7,38,5,null,null,0,0,null,null,null,0.15217391304347827,0.2521739130434783,null,null,null,null,null,null,null,null,null,null,null,null,null,null,null,null,null,null,null,{"$f":"\"     \" & TEXT(AE7,\"#0.00%\") & \" \"","v":"     25.22% "},null,null,null,null,null,null,{"$f":"\"  \" & \"System\" & \" \" & IF(P7=\"\",\"\",TEXT(P7,\"M/D-\")) & IF(Q7=\"\",\"\",TEXT(Q7,\"M/D\")) & \" \"","v":"  System 5/1-6/30 "}]
[" ;4",null,4,"1.1.1.1",null,null,null,"Schedule Config ( 인증 대응 개발 포함 )",null,null,null,null,null,null,null,"2025-05-01","2025-05-15",null,8,5,8,5,null,null,null,0,null,"양형석",null,0.625,0.8,null,null,null,null,null,null,null,null,null,null,null,null,null,null,null,null,null,null,null,{"$f":"\"  \" & TEXT(AE8,\"#0.00%\") & \" \" & \"Schedule Config ( 인증 대응 개발 포함 )\" & \"(양형석)\" & \" \" & IF(P8=\"\",\"\",TEXT(P8,\"M/D-\")) & IF(Q8=\"\",\"\",TEXT(Q8,\"M/D\")) & \" \"","v":"  80.00% Schedule Config ( 인증 대응 개발 포함 )(양형석) 5/1-5/15 "}]
[" ;5",null,4,"1.1.1.2",null,null,null,"Backup & Restore ( 인증 대응 개발 포함 )",null,null,null,null,null,null,null,"2025-05-16","2025-05-30",null,11,0,11,0,null,null,null,0,null,"양형석",null,0,0,null,null,null,null,null,null,null,null,null,null,null,null,null,null,null,null,null,null,null,{"$f":"\"     \" & TEXT(AE9,\"#0.00%\") & \" \" & \"Backup & Restore ( 인증 대응 개발 포함 )\" & \"(양형석)\" & \" \" & IF(P9=\"\",\"\",TEXT(P9,\"M/D-\")) & IF(Q9=\"\",\"\",TEXT(Q9,\"M/D\")) & \" \"","v":"     0.00% Backup & Restore ( 인증 대응 개발 포함 )(양형석) 5/16-5/30 "}]
[" ;6",null,4,"1.1.1.3",null,null,null,"License & System Info ( 인증 대응 개발 포함 )",null,null,null,null,null,null,null,"2025-06-01","2025-06-15",null,8,0,8,0,null,null,null,0,null,"양형석",null,0,0,null,null,null,null,null,null,null,null,null,null,null,null,null,null,null,null,null,null,null,null,null,null,{"$f":"\"\" & TEXT(AE10,\"#0.00%\") & \" \" & \"License & System Info ( 인증 대응 개발 포함 )\" & \"(양형석)\" & \" \" & IF(P10=\"\",\"\",TEXT(P10,\"M/D-\")) & IF(Q10=\"\",\"\",TEXT(Q10,\"M/D\")) & \" \"","v":"0.00% License & System Info ( 인증 대응 개발 포함 )(양형석) 6/1-6/15 "}]
[" ;7",null,4,"1.1.1.4",null,null,null,"Language Config ( 인증 대응 개발 포함 )",null,null,null,null,null,null,null,"2025-06-16","2025-06-30",null,11,0,11,0,null,null,null,0,null,"양형석",null,0,0,null,null,null,null,null,null,null,null,null,null,null,null,null,null,null,null,null,null,null,null,null,null,null,null,{"$f":"\" \" & TEXT(AE11,\"#0.00%\") & \" \" & \"Language Config ( 인증 대응 개발 포함 )\" & \"(양형석)\" & \" \" & IF(P11=\"\",\"\",TEXT(P11,\"M/D-\")) & IF(Q11=\"\",\"\",TEXT(Q11,\"M/D\")) & \" \"","v":" 0.00% Language Config ( 인증 대응 개발 포함 )(양형석) 6/16-6/30 "}]
[" ;8",null,4,"1.1.1.5",null,null,null,"License 암호화 모듈 개발",null,null,null,null,null,null,null,"2025-05-12","2025-05-15",null,4,1,4,1,null,null,null,0,null,"이민규",null,0.25,0.5,null,null,null,null,null,null,null,null,null,null,null,null,null,null,null,null,null,null,null,{"$f":"\"   \" & TEXT(AE12,\"#0.00%\") & \" \" & \"License 암호화 모듈 개발\" & \"(이민규)\" & \" \" & IF(P12=\"\",\"\",TEXT(P12,\"M/D-\")) & IF(Q12=\"\",\"\",TEXT(Q12,\"M/D\")) & \" \"","v":"   50.00% License 암호화 모듈 개발(이민규) 5/12-5/15 "}]
[" ;9",null,4,"1.1.1.6",null,null,null,"인증 관련 시스템 페이지 스타일 작업 ( CSS 리팩토링 포함 )",null,null,null,null,null,null,null,"2025-05-12","2025-05-15",null,4,1,4,1,null,null,null,0,null,"홍성훈",null,0.25,0.8,null,null,null,null,null,null,null,null,null,null,null,null,null,null,null,null,null,null,null,{"$f":"\"    \" & TEXT(AE13,\"#0.00%\") & \" \" & \"인증 관련 시스템 페이지 스타일 작업 ( CSS 리팩토링 포함 )\" & \"(홍성훈)\" & \" \" & IF(P13=\"\",\"\",TEXT(P13,\"M/D-\")) & IF(Q13=\"\",\"\",TEXT(Q13,\"M/D\")) & \" \"","v":"    80.00% 인증 관련 시스템 페이지 스타일 작업 ( CSS 리팩토링 포함 )(홍성훈) 5/12-5/15 "}]
[" ;10","G",3,"1.1.2",null,null,"Discovery",null,null,null,null,null,null,null,null,"2025-01-01","2025-04-30",null,183,183,81,81,null,null,0,0,null,null,null,1,1,null,null,null,null,null,null,null,null,null,null,null,null,null,null,null,null,null,{"$f":"\"    \" & TEXT(AE14,\"#0.00%\") & \" \" & \"Discovery\" & \" \" & IF(P14=\"\",\"\",TEXT(P14,\"M/D-\")) & IF(Q14=\"\",\"\",TEXT(Q14,\"M/D\")) & \" \"","v":"    100.00% Discovery 1/1-4/30 "}]
[" ;11",null,4,"1.1.2.1",null,null,null,"OS Command - 화면 개발",null,null,null,null,null,null,null,"2025-01-01","2025-01-15",null,10,10,10,10,null,null,null,0,null,"양형석",null,1,1,null,null,{"$f":"\"    \" & TEXT(AE15,\"#0.00%\") & \" \" & \"OS Command - 화면 개발\" & \"(양형석)\" & \" \" & IF(P15=\"\",\"\",TEXT(P15,\"M/D-\")) & IF(Q15=\"\",\"\",TEXT(Q15,\"M/D\")) & \" \"","v":"    100.00% OS Command - 화면 개발(양형석) 1/1-1/15 "}]
[" ;12",null,4,"1.1.2.2",null,null,null,"OS Command - 서버 개발",null,null,null,null,null,null,null,"2025-01-01","2025-01-15",null,10,10,10,10,null,null,null,0,null,"이민규",null,1,1,null,null,{"$f":"\"    \" & TEXT(AE16,\"#0.00%\") & \" \" & \"OS Command - 서버 개발\" & \"(이민규)\" & \" \" & IF(P16=\"\",\"\",TEXT(P16,\"M/D-\")) & IF(Q16=\"\",\"\",TEXT(Q16,\"M/D\")) & \" \"","v":"    100.00% OS Command - 서버 개발(이민규) 1/1-1/15 "}]
[" ;13",null,4,"1.1.2.3",null,null,null,"Host Command - 화면 개발",null,null,null,null,null,null,null,"2025-01-16","2025-01-30",null,8,8,8,8,null,null,null,0,null,"양형석",null,1,1,null,null,null,null,{"$f":"\"     \" & TEXT(AE17,\"#0.00%\") & \" \" & \"Host Command - 화면 개발\" & \"(양형석)\" & \" \" & IF(P17=\"\",\"\",TEXT(P17,\"M/D-\")) & IF(Q17=\"\",\"\",TEXT(Q17,\"M/D\")) & \" \"","v":"     100.00% Host Command - 화면 개발(양형석) 1/16-1/30 "}]
[" ;14",null,4,"1.1.2.4",null,null,null,"Host Command - 서버 개발",null,null,null,null,null,null,null,"2025-01-16","2025-01-30",null,8,8,8,8,null,null,null,0,null,"이민규",null,1,1,null,null,null,null,{"$f":"\"     \" & TEXT(AE18,\"#0.00%\") & \" \" & \"Host Command - 서버 개발\" & \"(이민규)\" & \" \" & IF(P18=\"\",\"\",TEXT(P18,\"M/D-\")) & IF(Q18=\"\",\"\",TEXT(Q18,\"M/D\")) & \" \"","v":"     100.00% Host Command - 서버 개발(이민규) 1/16-1/30 "}]
[" ;15",null,4,"1.1.2.5",null,null,null,"신세계INC-대응 ( Unknown Host, Network, Proc State ) - 화면",null,null,null,null,null,null,null,"2025-02-01","2025-02-28",null,20,20,20,20,null,null,null,0,null,"양형석",null,1,1,null,null,null,null,null,null,null,null,{"$f":"\"      \" & TEXT(AE19,\"#0.00%\") & \" \" & \"신세계INC-대응 ( Unknown Host, Network, Proc State ) - 화면\" & \"(양형석)\" & \" \" & IF(P19=\"\",\"\",TEXT(P19,\"M/D-\")) & IF(Q19=\"\",\"\",TEXT(Q19,\"M/D\")) & \" \"","v":"      100.00% 신세계INC-대응 ( Unknown Host, Network, Proc State ) - 화면(양형석) 2/1-2/28 "}]
[" ;16",null,4,"1.1.2.6",null,null,null,"신세계INC-대응 ( Unknown Host, Network, Proc State ) - 서버",null,null,null,null,null,null,null,"2025-02-01","2025-02-28",null,20,20,20,20,null,null,null,0,null,"이민규",null,1,1,null,null,null,null,null,null,null,null,{"$f":"\"      \" & TEXT(AE20,\"#0.00%\") & \" \" & \"신세계INC-대응 ( Unknown Host, Network, Proc State ) - 서버\" & \"(이민규)\" & \" \" & IF(P20=\"\",\"\",TEXT(P20,\"M/D-\")) & IF(Q20=\"\",\"\",TEXT(Q20,\"M/D\")) & \" \"","v":"      100.00% 신세계INC-대응 ( Unknown Host, Network, Proc State ) - 서버(이민규) 2/1-2/28 "}]
[" ;17",null,4,"1.1.2.7",null,null,null,"KT - 대응 ( 데이터 암호화 , Disk 표시 ) - 설정, 화면",null,null,null,null,null,null,null,"2025-03-01","2025-03-30",null,19,19,19,19,null,null,null,0,null,"양형석",null,1,1,null,null,null,null,null,null,null,null,null,null,null,null,null,{"$f":"\" \" & TEXT(AE21,\"#0.00%\") & \" \" & \"KT - 대응 ( 데이터 암호화 , Disk 표시 ) - 설정, 화면\" & \"(양형석)\" & \" \" & IF(P21=\"\",\"\",TEXT(P21,\"M/D-\")) & IF(Q21=\"\",\"\",TEXT(Q21,\"M/D\")) & \" \"","v":" 100.00% KT - 대응 ( 데이터 암호화 , Disk 표시 ) - 설정, 화면(양형석) 3/1-3/30 "}]
[" ;18",null,4,"1.1.2.8",null,null,null,"KT - 대응 ( 데이터 암호화 , Disk 표시 ) - 서버",null,null,null,null,null,null,null,"2025-03-01","2025-03-30",null,19,19,19,19,null,null,null,0,null,"이민규",null,1,1,null,null,null,null,null,null,null,null,null,null,null,null,null,{"$f":"\" \" & TEXT(AE22,\"#0.00%\") & \" \" & \"KT - 대응 ( 데이터 암호화 , Disk 표시 ) - 서버\" & \"(이민규)\" & \" \" & IF(P22=\"\",\"\",TEXT(P22,\"M/D-\")) & IF(Q22=\"\",\"\",TEXT(Q22,\"M/D\")) & \" \"","v":" 100.00% KT - 대응 ( 데이터 암호화 , Disk 표시 ) - 서버(이민규) 3/1-3/30 "}]
[" ;19",null,4,"1.1.2.9",null,null,null,"I-CON 준비",null,null,null,null,null,null,null,"2025-02-15","2025-02-28",null,10,10,10,10,null,null,null,0,null,"이동민",null,1,1,null,null,null,null,null,null,null,null,{"$f":"\"      \" & TEXT(AE23,\"#0.00%\") & \" \" & \"I-CON 준비\" & \"(이동민)\" & \" \" & IF(P23=\"\",\"\",TEXT(P23,\"M/D-\")) & IF(Q23=\"\",\"\",TEXT(Q23,\"M/D\")) & \" \"","v":"      100.00% I-CON 준비(이동민) 2/15-2/28 "}]
[" ;20",null,4,"1.1.2.10",null,null,null,"ITSHOW 준비",null,null,null,null,null,null,null,"2025-03-01","2025-03-30",null,19,19,19,19,null,null,null,0,null,"이동민",null,1,1,null,null,null,null,null,null,null,null,null,null,null,null,null,{"$f":"\" \" & TEXT(AE24,\"#0.00%\") & \" \" & \"ITSHOW 준비\" & \"(이동민)\" & \" \" & IF(P24=\"\",\"\",TEXT(P24,\"M/D-\")) & IF(Q24=\"\",\"\",TEXT(Q24,\"M/D\")) & \" \"","v":" 100.00% ITSHOW 준비(이동민) 3/1-3/30 "}]
[" ;21",null,4,"1.1.2.11",null,null,null,"I-CON, ITSHOW 대응 ( 스크린샷, PPT, 문서 )",null,null,null,null,null,null,null,"2025-04-01","2025-04-12",null,9,9,9,9,null,null,null,0,null,"양형석",null,1,1,null,null,null,null,null,null,null,null,null,null,null,null,null,null,null,{"$f":"\"\" & TEXT(AE25,\"#0.00%\") & \" \" & \"I-CON, ITSHOW 대응 ( 스크린샷, PPT, 문서 )\" & \"(양형석)\" & \" \" & IF(P25=\"\",\"\",TEXT(P25,\"M/D-\")) & IF(Q25=\"\",\"\",TEXT(Q25,\"M/D\")) & \" \"","v":"100.00% I-CON, ITSHOW 대응 ( 스크린샷, PPT, 문서 )(양형석) 4/1-4/12 "}]
[" ;22",null,4,"1.1.2.12",null,null,null,"I-CON, ITSHOW 대응 ( 스크린샷, PPT, 문서 )",null,null,null,null,null,null,null,"2025-04-01","2025-04-12",null,9,9,9,9,null,null,null,0,null,"이민규",null,1,1,null,null,null,null,null,null,null,null,null,null,null,null,null,null,null,{"$f":"\"\" & TEXT(AE26,\"#0.00%\") & \" \" & \"I-CON, ITSHOW 대응 ( 스크린샷, PPT, 문서 )\" & \"(이민규)\" & \" \" & IF(P26=\"\",\"\",TEXT(P26,\"M/D-\")) & IF(Q26=\"\",\"\",TEXT(Q26,\"M/D\")) & \" \"","v":"100.00% I-CON, ITSHOW 대응 ( 스크린샷, PPT, 문서 )(이민규) 4/1-4/12 "}]
[" ;23",null,4,"1.1.2.13",null,null,null,"Security -Group 기능 구현 ( Keycloak 어트리뷰트 UI )",null,null,null,null,null,null,null,"2025-04-16","2025-04-30",null,11,11,11,11,null,null,null,0,null,"양형석",null,1,1,null,null,null,null,null,null,null,null,null,null,null,null,null,null,null,null,null,{"$f":"\"    \" & TEXT(AE27,\"#0.00%\") & \" \" & \"Security -Group 기능 구현 ( Keycloak 어트리뷰트 UI )\" & \"(양형석)\" & \" \" & IF(P27=\"\",\"\",TEXT(P27,\"M/D-\")) & IF(Q27=\"\",\"\",TEXT(Q27,\"M/D\")) & \" \"","v":"    100.00% Security -Group 기능 구현 ( Keycloak 어트리뷰트 UI )(양형석) 4/16-4/30 "}]
[" ;24",null,4,"1.1.2.14",null,null,null,"Security -Group 기능 구현 ( Keycloak Group Role 구현 )",null,null,null,null,null,null,null,"2025-04-16","2025-04-30",null,11,11,11,11,null,null,null,0,null,"이민규",null,1,1,null,null,null,null,null,null,null,null,null,null,null,null,null,null,null,null,null,{"$f":"\"    \" & TEXT(AE28,\"#0.00%\") & \" \" & \"Security -Group 기능 구현 ( Keycloak Group Role 구현 )\" & \"(이민규)\" & \" \" & IF(P28=\"\",\"\",TEXT(P28,\"M/D-\")) & IF(Q28=\"\",\"\",TEXT(Q28,\"M/D\")) & \" \"","v":"    100.00% Security -Group 기능 구현 ( Keycloak Group Role 구현 )(이민규) 4/16-4/30 "}]
[" ;25","G",3,"1.1.3",null,null,"Security",null,null,null,null,null,null,null,null,"2025-01-01","2025-04-30",null,79,79,81,81,null,null,0,0,null,null,null,1,0.95443037974683553,null,null,null,null,null,null,null,null,null,null,null,null,null,null,null,null,{"$f":"\"      \" & TEXT(AE29,\"#0.00%\") & \" \" & \"Security\" & \" \" & IF(P29=\"\",\"\",TEXT(P29,\"M/D-\")) & IF(Q29=\"\",\"\",TEXT(Q29,\"M/D\")) & \" \"","v":"      95.44% Security 1/1-4/30 "}]
[" ;26",null,4,"1.1.3.1",null,null,null,"User",null,null,null,null,null,null,null,"2025-01-01","2025-01-30",null,18,18,18,18,null,null,null,0,null,"홍성훈",null,1,0.8,null,null,null,{"$f":"\"      \" & TEXT(AE30,\"#0.00%\") & \" \" & \"User\" & \"(홍성훈)\" & \" \" & IF(P30=\"\",\"\",TEXT(P30,\"M/D-\")) & IF(Q30=\"\",\"\",TEXT(Q30,\"M/D\")) & \" \"","v":"      80.00% User(홍성훈) 1/1-1/30 "}]
[" ;27",null,4,"1.1.3.2",null,null,null,"Role",null,null,null,null,null,null,null,"2025-02-01","2025-02-28",null,20,20,20,20,null,null,null,0,null,"홍성훈",null,1,1,null,null,null,null,null,null,null,null,{"$f":"\"      \" & TEXT(AE31,\"#0.00%\") & \" \" & \"Role\" & \"(홍성훈)\" & \" \" & IF(P31=\"\",\"\",TEXT(P31,\"M/D-\")) & IF(Q31=\"\",\"\",TEXT(Q31,\"M/D\")) & \" \"","v":"      100.00% Role(홍성훈) 2/1-2/28 "}]
[" ;28",null,4,"1.1.3.3",null,null,null,"Group - Front Validate",null,null,null,null,null,null,null,"2025-03-01","2025-03-30",null,19,19,19,19,null,null,null,0,null,"홍성훈",null,1,1,null,null,null,null,null,null,null,null,null,null,null,null,null,{"$f":"\" \" & TEXT(AE32,\"#0.00%\") & \" \" & \"Group - Front Validate\" & \"(홍성훈)\" & \" \" & IF(P32=\"\",\"\",TEXT(P32,\"M/D-\")) & IF(Q32=\"\",\"\",TEXT(Q32,\"M/D\")) & \" \"","v":" 100.00% Group - Front Validate(홍성훈) 3/1-3/30 "}]
[" ;29",null,4,"1.1.3.4",null,null,null,"Access Control",null,null,null,null,null,null,null,"2025-04-01","2025-04-30",null,22,22,22,22,null,null,null,0,null,"홍성훈",null,1,1,null,null,null,null,null,null,null,null,null,null,null,null,null,null,null,null,null,{"$f":"\"    \" & TEXT(AE33,\"#0.00%\") & \" \" & \"Access Control\" & \"(홍성훈)\" & \" \" & IF(P33=\"\",\"\",TEXT(P33,\"M/D-\")) & IF(Q33=\"\",\"\",TEXT(Q33,\"M/D\")) & \" \"","v":"    100.00% Access Control(홍성훈) 4/1-4/30 "}]
[" ;30","G",3,"1.1.4",null,null,"ISMS-P",null,null,null,null,null,null,null,null,"2025-04-01","2025-05-30",null,35,21,41,27,null,null,0,0,null,null,null,0.6,0.54285714285714282,null,null,null,null,null,null,null,null,null,null,null,null,null,null,null,null,null,null,{"$f":"\"\" & TEXT(AE34,\"#0.00%\") & \" \"","v":"54.29% "},null,null,{"$f":"\"      \" & \"ISMS-P\" & \" \" & IF(P34=\"\",\"\",TEXT(P34,\"M/D-\")) & IF(Q34=\"\",\"\",TEXT(Q34,\"M/D\")) & \" \"","v":"      ISMS-P 4/1-5/30 "}]
[" ;31",null,4,"1.1.4.1",null,null,null,"개인정보처리방침",null,null,null,null,null,null,null,"2025-04-15","2025-04-20",null,4,4,4,4,null,null,null,0,null,"양형석",null,1,0.5,null,null,null,null,null,null,null,null,null,null,null,null,null,null,null,{"$f":"\"     \" & TEXT(AE35,\"#0.00%\") & \" \" & \"개인정보처리방침\" & \"(양형석)\" & \" \" & IF(P35=\"\",\"\",TEXT(P35,\"M/D-\")) & IF(Q35=\"\",\"\",TEXT(Q35,\"M/D\")) & \" \"","v":"     50.00% 개인정보처리방침(양형석) 4/15-4/20 "}]
[" ;32",null,4,"1.1.4.2",null,null,null,"자산 식별 (*IRMS 사용방법)",null,null,null,null,null,null,null,"2025-04-01","2025-04-03",null,3,3,3,3,null,null,null,0,null,"이동민",null,1,1,null,null,null,null,null,null,null,null,null,null,null,null,null,{"$f":"\"     \" & TEXT(AE36,\"#0.00%\") & \" \" & \"자산 식별 (*IRMS 사용방법)\" & \"(이동민)\" & \" \" & IF(P36=\"\",\"\",TEXT(P36,\"M/D-\")) & IF(Q36=\"\",\"\",TEXT(Q36,\"M/D\")) & \" \"","v":"     100.00% 자산 식별 (*IRMS 사용방법)(이동민) 4/1-4/3 "}]
[" ;33",null,4,"1.1.4.3",null,null,null,"자산 식별 (*스페이스원 연동작업)",null,null,null,null,null,null,null,"2025-04-04","2025-04-06",null,1,1,1,1,null,null,null,0,null,"이동민",null,1,1,null,null,null,null,null,null,null,null,null,null,null,null,null,null,{"$f":"\" \" & TEXT(AE37,\"#0.00%\") & \" \" & \"자산 식별 (*스페이스원 연동작업)\" & \"(이동민)\" & \" \" & IF(P37=\"\",\"\",TEXT(P37,\"M/D-\")) & IF(Q37=\"\",\"\",TEXT(Q37,\"M/D\")) & \" \"","v":" 100.00% 자산 식별 (*스페이스원 연동작업)(이동민) 4/4-4/6 "}]
[" ;34",null,4,"1.1.4.4",null,null,null,"정보서비스 흐름도 ( IRM N/A )",null,null,null,null,null,null,null,"2025-04-07","2025-04-09",null,3,3,3,3,null,null,null,0,null,"이동민",null,1,1,null,null,null,null,null,null,null,null,null,null,null,null,null,null,{"$f":"\"    \" & TEXT(AE38,\"#0.00%\") & \" \" & \"정보서비스 흐름도 ( IRM N/A )\" & \"(이동민)\" & \" \" & IF(P38=\"\",\"\",TEXT(P38,\"M/D-\")) & IF(Q38=\"\",\"\",TEXT(Q38,\"M/D\")) & \" \"","v":"    100.00% 정보서비스 흐름도 ( IRM N/A )(이동민) 4/7-4/9 "}]
[" ;35",null,4,"1.1.4.5",null,null,null,"개인정보흐름표",null,null,null,null,null,null,null,"2025-04-10","2025-04-12",null,2,2,2,2,null,null,null,0,null,"이동민",null,1,1,null,null,null,null,null,null,null,null,null,null,null,null,null,null,null,{"$f":"\"\" & TEXT(AE39,\"#0.00%\") & \" \" & \"개인정보흐름표\" & \"(이동민)\" & \" \" & IF(P39=\"\",\"\",TEXT(P39,\"M/D-\")) & IF(Q39=\"\",\"\",TEXT(Q39,\"M/D\")) & \" \"","v":"100.00% 개인정보흐름표(이동민) 4/10-4/12 "}]
[" ;36",null,4,"1.1.4.6",null,null,null,"정보자산관리대장(자산&인원식별) ( IRM N/A )",null,null,null,null,null,null,null,"2025-04-13","2025-04-13",null,0,0,0,0,null,null,null,0,null,"이동민",null,0,1,null,null,null,null,null,null,null,null,null,null,null,null,null,null,null,{"$f":"\" \" & TEXT(AE40,\"#0.00%\") & \" \" & \"정보자산관리대장(자산&인원식별) ( IRM N/A )\" & \"(이동민)\" & \" \" & IF(P40=\"\",\"\",TEXT(P40,\"M/D-\")) & IF(Q40=\"\",\"\",TEXT(Q40,\"M/D\")) & \" \"","v":" 100.00% 정보자산관리대장(자산&인원식별) ( IRM N/A )(이동민) 4/13-4/13 "}]
[" ;37",null,4,"1.1.4.7",null,null,null,"ISMS-P_인증심사 운영 증적 취합",null,null,null,null,null,null,null,"2025-04-14","2025-04-16",null,3,3,3,3,null,null,null,0,null,"이동민",null,1,1,null,null,null,null,null,null,null,null,null,null,null,null,null,null,null,{"$f":"\"    \" & TEXT(AE41,\"#0.00%\") & \" \" & \"ISMS-P_인증심사 운영 증적 취합\" & \"(이동민)\" & \" \" & IF(P41=\"\",\"\",TEXT(P41,\"M/D-\")) & IF(Q41=\"\",\"\",TEXT(Q41,\"M/D\")) & \" \"","v":"    100.00% ISMS-P_인증심사 운영 증적 취합(이동민) 4/14-4/16 "}]
[" ;38",null,4,"1.1.4.8",null,null,null,"HyperMig 네트워크 구성도 - 서비스 구성도",null,null,null,null,null,null,null,"2025-04-17","2025-04-19",null,2,2,2,2,null,null,null,0,null,"이동민",null,1,1,null,null,null,null,null,null,null,null,null,null,null,null,null,null,null,null,{"$f":"\"\" & TEXT(AE42,\"#0.00%\") & \" \" & \"HyperMig 네트워크 구성도 - 서비스 구성도\" & \"(이동민)\" & \" \" & IF(P42=\"\",\"\",TEXT(P42,\"M/D-\")) & IF(Q42=\"\",\"\",TEXT(Q42,\"M/D\")) & \" \"","v":"100.00% HyperMig 네트워크 구성도 - 서비스 구성도(이동민) 4/17-4/19 "}]
[" ;39",null,4,"1.1.4.9",null,null,null,"서비스 운영정의서",null,null,null,null,null,null,null,"2025-05-29","2025-05-30",null,2,0,2,0,null,null,null,0,null,"이동민",null,0,0,null,null,null,null,null,null,null,null,null,null,null,null,null,null,null,null,null,null,null,null,null,{"$f":"\"    \" & TEXT(AE43,\"#0.00%\") & \" \" & \"서비스 운영정의서\" & \"(이동민)\" & \" \" & IF(P43=\"\",\"\",TEXT(P43,\"M/D-\")) & IF(Q43=\"\",\"\",TEXT(Q43,\"M/D\")) & \" \"","v":"    0.00% 서비스 운영정의서(이동민) 5/29-5/30 "}]
[" ;40",null,4,"1.1.4.10",null,null,null,"정보자산 관리대장",null,null,null,null,null,null,null,"2025-05-27","2025-05-28",null,2,0,2,0,null,null,null,0,null,"이동민",null,0,0,null,null,null,null,null,null,null,null,null,null,null,null,null,null,null,null,null,null,null,null,null,{"$f":"\"  \" & TEXT(AE44,\"#0.00%\") & \" \" & \"정보자산 관리대장\" & \"(이동민)\" & \" \" & IF(P44=\"\",\"\",TEXT(P44,\"M/D-\")) & IF(Q44=\"\",\"\",TEXT(Q44,\"M/D\")) & \" \"","v":"  0.00% 정보자산 관리대장(이동민) 5/27-5/28 "}]
[" ;41",null,4,"1.1.4.11",null,null,null,"업무(서비스/개발) 담당자 관리대장",null,null,null,null,null,null,null,"2025-05-25","2025-05-26",null,1,0,1,0,null,null,null,0,null,"이동민",null,0,0,null,null,null,null,null,null,null,null,null,null,null,null,null,null,null,null,null,null,null,null,null,{"$f":"\"\" & TEXT(AE45,\"#0.00%\") & \" \" & \"업무(서비스/개발) 담당자 관리대장\" & \"(이동민)\" & \" \" & IF(P45=\"\",\"\",TEXT(P45,\"M/D-\")) & IF(Q45=\"\",\"\",TEXT(Q45,\"M/D\")) & \" \"","v":"0.00% 업무(서비스/개발) 담당자 관리대장(이동민) 5/25-5/26 "}]
[" ;42",null,4,"1.1.4.12",null,null,null,"정보시스템 변경관리대장",null,null,null,null,null,null,null,"2025-05-23","2025-05-24",null,1,0,1,0,null,null,null,0,null,"이동민",null,0,0,null,null,null,null,null,null,null,null,null,null,null,null,null,null,null,null,null,null,null,null,{"$f":"\"     \" & TEXT(AE46,\"#0.00%\") & \" \" & \"정보시스템 변경관리대장\" & \"(이동민)\" & \" \" & IF(P46=\"\",\"\",TEXT(P46,\"M/D-\")) & IF(Q46=\"\",\"\",TEXT(Q46,\"M/D\")) & \" \"","v":"     0.00% 정보시스템 변경관리대장(이동민) 5/23-5/24 "}]
[" ;43",null,4,"1.1.4.13",null,null,null,"로그관리대장",null,null,null,null,null,null,null,"2025-05-21","2025-05-22",null,2,0,2,0,null,null,null,0,null,"이동민",null,0,0,null,null,null,null,null,null,null,null,null,null,null,null,null,null,null,null,null,null,null,null,{"$f":"\"   \" & TEXT(AE47,\"#0.00%\") & \" \" & \"로그관리대장\" & \"(이동민)\" & \" \" & IF(P47=\"\",\"\",TEXT(P47,\"M/D-\")) & IF(Q47=\"\",\"\",TEXT(Q47,\"M/D\")) & \" \"","v":"   0.00% 로그관리대장(이동민) 5/21-5/22 "}]
[" ;44",null,4,"1.1.4.14",null,null,null,"비밀번호 규칙 및 암호키 관리대장",null,null,null,null,null,null,null,"2025-05-19","2025-05-20",null,2,0,2,0,null,null,null,0,null,"이동민",null,0,0,null,null,null,null,null,null,null,null,null,null,null,null,null,null,null,null,null,null,null,null,{"$f":"\" \" & TEXT(AE48,\"#0.00%\") & \" \" & \"비밀번호 규칙 및 암호키 관리대장\" & \"(이동민)\" & \" \" & IF(P48=\"\",\"\",TEXT(P48,\"M/D-\")) & IF(Q48=\"\",\"\",TEXT(Q48,\"M/D\")) & \" \"","v":" 0.00% 비밀번호 규칙 및 암호키 관리대장(이동민) 5/19-5/20 "}]
[" ;45",null,4,"1.1.4.15",null,null,null,"장애조치보고서 및 이력관리대장",null,null,null,null,null,null,null,"2025-05-17","2025-05-18",null,0,0,0,0,null,null,null,0,null,"이동민",null,0,0,null,null,null,null,null,null,null,null,null,null,null,null,null,null,null,null,null,null,null,{"$f":"\"      \" & TEXT(AE49,\"#0.00%\") & \" \" & \"장애조치보고서 및 이력관리대장\" & \"(이동민)\" & \" \" & IF(P49=\"\",\"\",TEXT(P49,\"M/D-\")) & IF(Q49=\"\",\"\",TEXT(Q49,\"M/D\")) & \" \"","v":"      0.00% 장애조치보고서 및 이력관리대장(이동민) 5/17-5/18 "}]
[" ;46",null,4,"1.1.4.16",null,null,null,"백업관리 대장",null,null,null,null,null,null,null,"2025-05-15","2025-05-16",null,2,0,2,0,null,null,null,0,null,"이동민",null,0,0,null,null,null,null,null,null,null,null,null,null,null,null,null,null,null,null,null,null,null,{"$f":"\"    \" & TEXT(AE50,\"#0.00%\") & \" \" & \"백업관리 대장\" & \"(이동민)\" & \" \" & IF(P50=\"\",\"\",TEXT(P50,\"M/D-\")) & IF(Q50=\"\",\"\",TEXT(Q50,\"M/D\")) & \" \"","v":"    0.00% 백업관리 대장(이동민) 5/15-5/16 "}]
[" ;47",null,4,"1.1.4.17",null,null,null,"침해사고 보고서",null,null,null,null,null,null,null,"2025-05-13","2025-05-14",null,2,0,2,0,null,null,null,0,null,"이동민",null,0,0,null,null,null,null,null,null,null,null,null,null,null,null,null,null,null,null,null,null,null,{"$f":"\"  \" & TEXT(AE51,\"#0.00%\") & \" \" & \"침해사고 보고서\" & \"(이동민)\" & \" \" & IF(P51=\"\",\"\",TEXT(P51,\"M/D-\")) & IF(Q51=\"\",\"\",TEXT(Q51,\"M/D\")) & \" \"","v":"  0.00% 침해사고 보고서(이동민) 5/13-5/14 "}]
[" ;48",null,4,"1.1.4.18",null,null,null,"취약점 대응 및 AWS 시스템 작업",null,null,null,null,null,null,null,"2025-05-04","2025-05-10",null,3,3,3,3,null,null,null,0,null,"이동민",null,1,1,null,null,null,null,null,null,null,null,null,null,null,null,null,null,null,null,null,null,null,{"$f":"\"\" & TEXT(AE52,\"#0.00%\") & \" \" & \"취약점 대응 및 AWS 시스템 작업\" & \"(이동민)\" & \" \" & IF(P52=\"\",\"\",TEXT(P52,\"M/D-\")) & IF(Q52=\"\",\"\",TEXT(Q52,\"M/D\")) & \" \"","v":"100.00% 취약점 대응 및 AWS 시스템 작업(이동민) 5/4-5/10 "}]
[" ;49","G",2,"1.2",null,"Application 분석 시스템 ( with. AI )",null,null,null,null,null,null,null,null,null,"2025-05-16","2025-12-30",null,550,0,154,0,null,null,0,0,null,null,null,0,0,null,null,null,null,null,null,null,null,null,null,null,null,null,null,null,null,null,null,null,{"$f":"\"     \" & TEXT(AE53,\"#0.00%\") & \" \"","v":"     0.00% "},null,null,null,null,null,null,null,null,null,null,null,null,null,null,null,null,null,null,null,null,null,null,null,null,null,null,null,null,null,null,null,null,{"$f":"\"   \" & \"Application 분석 시스템 ( with. AI )\" & \" \" & IF(P53=\"\",\"\",TEXT(P53,\"M/D-\")) & IF(Q53=\"\",\"\",TEXT(Q53,\"M/D\")) & \" \"","v":"   Application 분석 시스템 ( with. AI ) 5/16-12/30 "}]
[" ;50","G",3,"1.2.1",null,null,"AI",null,null,null,null,null,null,null,null,"2025-11-01","2025-12-30",null,83,0,41,0,null,null,0,0,null,null,null,0,0,null,null,null,null,null,null,null,null,null,null,null,null,null,null,null,null,null,null,null,null,null,null,null,null,null,null,null,null,null,null,null,null,null,null,null,null,null,null,null,null,null,null,null,{"$f":"\"      \" & TEXT(AE54,\"#0.00%\") & \" \"","v":"      0.00% "},null,null,null,null,null,null,null,null,{"$f":"\"   \" & \"AI\" & \" \" & IF(P54=\"\",\"\",TEXT(P54,\"M/D-\")) & IF(Q54=\"\",\"\",TEXT(Q54,\"M/D\")) & \" \"","v":"   AI 11/1-12/30 "}]
[" ;51",null,4,"1.2.1.1",null,null,null,"Public LLM 선정, Ai Framework Skeleton ~ Interface 구현",null,null,null,null,null,null,null,"2025-11-01","2025-11-30",null,20,0,20,0,null,null,null,0,null,"이동민",null,0,0,null,null,null,null,null,null,null,null,null,null,null,null,null,null,null,null,null,null,null,null,null,null,null,null,null,null,null,null,null,null,null,null,null,null,null,null,null,null,null,null,null,null,null,{"$f":"\"      \" & TEXT(AE55,\"#0.00%\") & \" \"","v":"      0.00% "},null,null,null,null,{"$f":"\" \" & \"Public LLM 선정, Ai Framework Skeleton ~ Interface 구현\" & \"(이동민)\" & \" \" & IF(P55=\"\",\"\",TEXT(P55,\"M/D-\")) & IF(Q55=\"\",\"\",TEXT(Q55,\"M/D\")) & \" \"","v":" Public LLM 선정, Ai Framework Skeleton ~ Interface 구현(이동민) 11/1-11/30 "}]
[" ;52",null,4,"1.2.1.2",null,null,null,"Application Code 대상 분석 프롬프트 구현",null,null,null,null,null,null,null,"2025-12-01","2025-12-07",null,15,0,5,0,null,null,null,0,null,"이민규, 홍성훈, 양형석",null,0,0,null,null,null,null,null,null,null,null,null,null,null,null,null,null,null,null,null,null,null,null,null,null,null,null,null,null,null,null,null,null,null,null,null,null,null,null,null,null,null,null,null,null,null,null,null,null,null,null,{"$f":"\" \" & TEXT(AE56,\"#0.00%\") & \" \" & \"Application Code 대상 분석 프롬프트 구현\" & \"(이민규, 홍성훈, 양형석)\" & \" \" & IF(P56=\"\",\"\",TEXT(P56,\"M/D-\")) & IF(Q56=\"\",\"\",TEXT(Q56,\"M/D\")) & \" \"","v":" 0.00% Application Code 대상 분석 프롬프트 구현(이민규, 홍성훈, 양형석) 12/1-12/7 "}]
[" ;53",null,4,"1.2.1.3",null,null,null,"Application Code 대상 패턴 분석 vs AI 분석 비교 기능",null,null,null,null,null,null,null,"2025-12-08","2025-12-15",null,18,0,6,0,null,null,null,0,null,"이민규, 홍성훈, 양형석",null,0,0,null,null,null,null,null,null,null,null,null,null,null,null,null,null,null,null,null,null,null,null,null,null,null,null,null,null,null,null,null,null,null,null,null,null,null,null,null,null,null,null,null,null,null,null,null,null,null,null,null,{"$f":"\" \" & TEXT(AE57,\"#0.00%\") & \" \" & \"Application Code 대상 패턴 분석 vs AI 분석 비교 기능\" & \"(이민규, 홍성훈, 양형석)\" & \" \" & IF(P57=\"\",\"\",TEXT(P57,\"M/D-\")) & IF(Q57=\"\",\"\",TEXT(Q57,\"M/D\")) & \" \"","v":" 0.00% Application Code 대상 패턴 분석 vs AI 분석 비교 기능(이민규, 홍성훈, 양형석) 12/8-12/15 "}]
[" ;54",null,4,"1.2.1.4",null,null,null,"Application Code 대상 패턴 분석 vs AI 분석 우선순위 기능",null,null,null,null,null,null,null,"2025-12-16","2025-12-23",null,18,0,6,0,null,null,null,0,null,"이민규, 홍성훈, 양형석",null,0,0,null,null,null,null,null,null,null,null,null,null,null,null,null,null,null,null,null,null,null,null,null,null,null,null,null,null,null,null,null,null,null,null,null,null,null,null,null,null,null,null,null,null,null,null,null,null,null,null,null,null,{"$f":"\"  \" & TEXT(AE58,\"#0.00%\") & \" \" & \"Application Code 대상 패턴 분석 vs AI 분석 우선순위 기능\" & \"(이민규, 홍성훈, 양형석)\" & \" \" & IF(P58=\"\",\"\",TEXT(P58,\"M/D-\")) & IF(Q58=\"\",\"\",TEXT(Q58,\"M/D\")) & \" \"","v":"  0.00% Application Code 대상 패턴 분석 vs AI 분석 우선순위 기능(이민규, 홍성훈, 양형석) 12/16-12/23 "}]
[" ;55",null,4,"1.2.1.5",null,null,null,"결과 데이터 맵핑 기능",null,null,null,null,null,null,null,"2025-12-24","2025-12-30",null,12,0,4,0,null,null,null,0,null,"이민규, 홍성훈, 양형석",null,0,0,null,null,null,null,null,null,null,null,null,null,null,null,null,null,null,null,null,null,null,null,null,null,null,null,null,null,null,null,null,null,null,null,null,null,null,null,null,null,null,null,null,null,null,null,null,null,null,null,null,null,null,{"$f":"\"   \" & TEXT(AE59,\"#0.00%\") & \" \" & \"결과 데이터 맵핑 기능\" & \"(이민규, 홍성훈, 양형석)\" & \" \" & IF(P59=\"\",\"\",TEXT(P59,\"M/D-\")) & IF(Q59=\"\",\"\",TEXT(Q59,\"M/D\")) & \" \"","v":"   0.00% 결과 데이터 맵핑 기능(이민규, 홍성훈, 양형석) 12/24-12/30 "}]
[" ;56","G",3,"1.2.2",null,null,"Application SourceCode 분석 ( 컴포넌트 개발 방법 채택 )",null,null,null,null,null,null,null,null,"2025-05-16","2025-11-30",null,357,0,133,0,null,null,0,0,null,null,null,0,0,null,null,null,null,null,null,null,null,null,null,null,null,null,null,null,null,null,null,null,{"$f":"\"     \" & TEXT(AE60,\"#0.00%\") & \" \"","v":"     0.00% "},null,null,null,null,null,null,null,null,null,null,null,null,null,null,null,null,null,null,null,null,null,null,null,null,null,null,null,null,{"$f":"\" \" & \"Application SourceCode 분석 ( 컴포넌트 개발 방법 채택 )\" & \" \" & IF(P60=\"\",\"\",TEXT(P60,\"M/D-\")) & IF(Q60=\"\",\"\",TEXT(Q60,\"M/D\")) & \" \"","v":" Application SourceCode 분석 ( 컴포넌트 개발 방법 채택 ) 5/16-11/30 "}]
[" ;","G",4,"1.2.2.1",null,null,null,"소스코드 업로드 및 고객사 코드 레파지토리 연동 기능",null,null,null,null,null,null,null,"2025-05-16","2025-06-15",null,38,0,19,0,null,null,0,0,null,null,null,0,0,null,null,null,null,null,null,null,null,null,null,null,null,null,null,null,null,null,null,null,{"$f":"\"     \" & TEXT(AE61,\"#0.00%\") & \" \"","v":"     0.00% "},null,null,null,null,{"$f":"\" \" & \"소스코드 업로드 및 고객사 코드 레파지토리 연동 기능\" & \" \" & IF(P61=\"\",\"\",TEXT(P61,\"M/D-\")) & IF(Q61=\"\",\"\",TEXT(Q61,\"M/D\")) & \" \"","v":" 소스코드 업로드 및 고객사 코드 레파지토리 연동 기능 5/16-6/15 "}]
[" ;57",null,5,"1.2.2.1.1",null,null,null,null,"Git Server 동적 설정 모듈 ( Git Repo C/R/U/D, Config )",null,null,null,null,null,null,"2025-05-16","2025-06-15",null,19,0,19,0,null,null,null,0,null,"이민규",null,0,0,null,null,null,null,null,null,null,null,null,null,null,null,null,null,null,null,null,null,null,{"$f":"\"     \" & TEXT(AE62,\"#0.00%\") & \" \"","v":"     0.00% "},null,null,null,null,{"$f":"\" \" & \"Git Server 동적 설정 모듈 ( Git Repo C/R/U/D, Config )\" & \"(이민규)\" & \" \" & IF(P62=\"\",\"\",TEXT(P62,\"M/D-\")) & IF(Q62=\"\",\"\",TEXT(Q62,\"M/D\")) & \" \"","v":" Git Server 동적 설정 모듈 ( Git Repo C/R/U/D, Config )(이민규) 5/16-6/15 "}]
[" ;58",null,5,"1.2.2.1.2",null,null,null,null,"Git Server 업로더, SCM 연동 - 동적 설정 화면 개발",null,null,null,null,null,null,"2025-05-16","2025-06-15",null,19,0,19,0,null,null,null,0,null,"홍성훈",null,0,0,null,null,null,null,null,null,null,null,null,null,null,null,null,null,null,null,null,null,null,{"$f":"\"     \" & TEXT(AE63,\"#0.00%\") & \" \"","v":"     0.00% "},null,null,null,null,{"$f":"\" \" & \"Git Server 업로더, SCM 연동 - 동적 설정 화면 개발\" & \"(홍성훈)\" & \" \" & IF(P63=\"\",\"\",TEXT(P63,\"M/D-\")) & IF(Q63=\"\",\"\",TEXT(Q63,\"M/D\")) & \" \"","v":" Git Server 업로더, SCM 연동 - 동적 설정 화면 개발(홍성훈) 5/16-6/15 "}]
[" ;","G",4,"1.2.2.2",null,null,null,"소스코드 대상 검색엔진 로드 및 코드 뷰어 기능",null,null,null,null,null,null,null,"2025-06-16","2025-07-15",null,44,0,22,0,null,null,0,0,null,null,null,0,0,null,null,null,null,null,null,null,null,null,null,null,null,null,null,null,null,null,null,null,null,null,null,null,null,{"$f":"\" \" & TEXT(AE64,\"#0.00%\") & \" \"","v":" 0.00% "},null,null,null,{"$f":"\"   \" & \"소스코드 대상 검색엔진 로드 및 코드 뷰어 기능\" & \" \" & IF(P64=\"\",\"\",TEXT(P64,\"M/D-\")) & IF(Q64=\"\",\"\",TEXT(Q64,\"M/D\")) & \" \"","v":"   소스코드 대상 검색엔진 로드 및 코드 뷰어 기능 6/16-7/15 "}]
[" ;59",null,5,"1.2.2.2.1",null,null,null,null,"Git Server - Application Code (ES) 연동 모듈",null,null,null,null,null,null,"2025-06-16","2025-07-15",null,22,0,22,0,null,null,null,0,null,"이민규",null,0,0,null,null,null,null,null,null,null,null,null,null,null,null,null,null,null,null,null,null,null,null,null,null,null,null,{"$f":"\" \" & TEXT(AE65,\"#0.00%\") & \" \"","v":" 0.00% "},null,null,null,{"$f":"\"   \" & \"Git Server - Application Code (ES) 연동 모듈\" & \"(이민규)\" & \" \" & IF(P65=\"\",\"\",TEXT(P65,\"M/D-\")) & IF(Q65=\"\",\"\",TEXT(Q65,\"M/D\")) & \" \"","v":"   Git Server - Application Code (ES) 연동 모듈(이민규) 6/16-7/15 "}]
[" ;60",null,5,"1.2.2.2.2",null,null,null,null,"Git Server - Application Code (ES) Code Viewer 개발",null,null,null,null,null,null,"2025-06-16","2025-07-15",null,22,0,22,0,null,null,null,0,null,"홍성훈",null,0,0,null,null,null,null,null,null,null,null,null,null,null,null,null,null,null,null,null,null,null,null,null,null,null,null,{"$f":"\" \" & TEXT(AE66,\"#0.00%\") & \" \"","v":" 0.00% "},null,null,null,{"$f":"\"   \" & \"Git Server - Application Code (ES) Code Viewer 개발\" & \"(홍성훈)\" & \" \" & IF(P66=\"\",\"\",TEXT(P66,\"M/D-\")) & IF(Q66=\"\",\"\",TEXT(Q66,\"M/D\")) & \" \"","v":"   Git Server - Application Code (ES) Code Viewer 개발(홍성훈) 6/16-7/15 "}]
[" ;","G",4,"1.2.2.3",null,null,null,"소스코드 대상 설정 파일 분류 및 분석 기능",null,null,null,null,null,null,null,"2025-07-16","2025-08-15",null,66,0,22,0,null,null,0,0,null,null,null,0,0,null,null,null,null,null,null,null,null,null,null,null,null,null,null,null,null,null,null,null,null,null,null,null,null,null,null,null,null,{"$f":"\"   \" & TEXT(AE67,\"#0.00%\") & \" \"","v":"   0.00% "},null,null,null,{"$f":"\"      \" & \"소스코드 대상 설정 파일 분류 및 분석 기능\" & \" \" & IF(P67=\"\",\"\",TEXT(P67,\"M/D-\")) & IF(Q67=\"\",\"\",TEXT(Q67,\"M/D\")) & \" \"","v":"      소스코드 대상 설정 파일 분류 및 분석 기능 7/16-8/15 "}]
[" ;61",null,5,"1.2.2.3.1",null,null,null,null,"설정 파일 분류 / 분석 모듈 ( XML, YML, JSON )",null,null,null,null,null,null,"2025-07-16","2025-08-15",null,22,0,22,0,null,null,null,0,null,"이민규",null,0,0,null,null,null,null,null,null,null,null,null,null,null,null,null,null,null,null,null,null,null,null,null,null,null,null,null,null,null,null,{"$f":"\"   \" & TEXT(AE68,\"#0.00%\") & \" \"","v":"   0.00% "},null,null,null,{"$f":"\"      \" & \"설정 파일 분류 / 분석 모듈 ( XML, YML, JSON )\" & \"(이민규)\" & \" \" & IF(P68=\"\",\"\",TEXT(P68,\"M/D-\")) & IF(Q68=\"\",\"\",TEXT(Q68,\"M/D\")) & \" \"","v":"      설정 파일 분류 / 분석 모듈 ( XML, YML, JSON )(이민규) 7/16-8/15 "}]
[" ;62",null,5,"1.2.2.3.2",null,null,null,null,"설정 파일 분석 전 분류 상태 Viewer 화면 개발",null,null,null,null,null,null,"2025-07-16","2025-08-15",null,22,0,22,0,null,null,null,0,null,"양형석",null,0,0,null,null,null,null,null,null,null,null,null,null,null,null,null,null,null,null,null,null,null,null,null,null,null,null,null,null,null,null,{"$f":"\"   \" & TEXT(AE69,\"#0.00%\") & \" \"","v":"   0.00% "},null,null,null,{"$f":"\"      \" & \"설정 파일 분석 전 분류 상태 Viewer 화면 개발\" & \"(양형석)\" & \" \" & IF(P69=\"\",\"\",TEXT(P69,\"M/D-\")) & IF(Q69=\"\",\"\",TEXT(Q69,\"M/D\")) & \" \"","v":"      설정 파일 분석 전 분류 상태 Viewer 화면 개발(양형석) 7/16-8/15 "}]
[" ;63",null,5,"1.2.2.3.3",null,null,null,null,"설정 파일 분석 후 결과 화면 - 코드 및 설정 참조 트리 ",null,null,null,null,null,null,"2025-07-16","2025-08-15",null,22,0,22,0,null,null,null,0,null,"홍성훈",null,0,0,null,null,null,null,null,null,null,null,null,null,null,null,null,null,null,null,null,null,null,null,null,null,null,null,null,null,null,null,{"$f":"\"   \" & TEXT(AE70,\"#0.00%\") & \" \"","v":"   0.00% "},null,null,null,{"$f":"\"      \" & \"설정 파일 분석 후 결과 화면 - 코드 및 설정 참조 트리 \" & \"(홍성훈)\" & \" \" & IF(P70=\"\",\"\",TEXT(P70,\"M/D-\")) & IF(Q70=\"\",\"\",TEXT(Q70,\"M/D\")) & \" \"","v":"      설정 파일 분석 후 결과 화면 - 코드 및 설정 참조 트리 (홍성훈) 7/16-8/15 "}]
[" ;","G",4,"1.2.2.4",null,null,null,"소스코드 대상 패키지레벨 단위 분석 기능",null,null,null,null,null,null,null,"2025-08-16","2025-09-30",null,74,0,32,0,null,null,0,0,null,null,null,0,0,null,null,null,null,null,null,null,null,null,null,null,null,null,null,null,null,null,null,null,null,null,null,null,null,null,null,null,null,null,null,null,null,{"$f":"\"      \" & TEXT(AE71,\"#0.00%\") & \" \"","v":"      0.00% "},null,null,null,null,null,null,{"$f":"\"   \" & \"소스코드 대상 패키지레벨 단위 분석 기능\" & \" \" & IF(P71=\"\",\"\",TEXT(P71,\"M/D-\")) & IF(Q71=\"\",\"\",TEXT(Q71,\"M/D\")) & \" \"","v":"   소스코드 대상 패키지레벨 단위 분석 기능 8/16-9/30 "}]
[" ;64",null,5,"1.2.2.4.1",null,null,null,null,"어플리케이션 패키지레벨 코드 분석",null,null,null,null,null,null,"2025-08-16","2025-09-30",null,32,0,32,0,null,null,null,0,null,"이민규",null,0,0,null,null,null,null,null,null,null,null,null,null,null,null,null,null,null,null,null,null,null,null,null,null,null,null,null,null,null,null,null,null,null,null,{"$f":"\"      \" & TEXT(AE72,\"#0.00%\") & \" \"","v":"      0.00% "},null,null,null,null,null,null,{"$f":"\"   \" & \"어플리케이션 패키지레벨 코드 분석\" & \"(이민규)\" & \" \" & IF(P72=\"\",\"\",TEXT(P72,\"M/D-\")) & IF(Q72=\"\",\"\",TEXT(Q72,\"M/D\")) & \" \"","v":"   어플리케이션 패키지레벨 코드 분석(이민규) 8/16-9/30 "}]
[" ;65",null,5,"1.2.2.4.2",null,null,null,null,"패키지 코드 분석 전 분류 상태 Viewer 화면 개발",null,null,null,null,null,null,"2025-08-16","2025-09-15",null,21,0,21,0,null,null,null,0,null,"양형석",null,0,0,null,null,null,null,null,null,null,null,null,null,null,null,null,null,null,null,null,null,null,null,null,null,null,null,null,null,null,null,null,null,null,null,{"$f":"\"      \" & TEXT(AE73,\"#0.00%\") & \" \"","v":"      0.00% "},null,null,null,null,{"$f":"\"  \" & \"패키지 코드 분석 전 분류 상태 Viewer 화면 개발\" & \"(양형석)\" & \" \" & IF(P73=\"\",\"\",TEXT(P73,\"M/D-\")) & IF(Q73=\"\",\"\",TEXT(Q73,\"M/D\")) & \" \"","v":"  패키지 코드 분석 전 분류 상태 Viewer 화면 개발(양형석) 8/16-9/15 "}]
[" ;66",null,5,"1.2.2.4.3",null,null,null,null,"패키지 코드 분석 후 결과 화면 - 코드 레벨 데이터베이스 참조 트리",null,null,null,null,null,null,"2025-08-16","2025-09-15",null,21,0,21,0,null,null,null,0,null,"홍성훈",null,0,0,null,null,null,null,null,null,null,null,null,null,null,null,null,null,null,null,null,null,null,null,null,null,null,null,null,null,null,null,null,null,null,null,{"$f":"\"      \" & TEXT(AE74,\"#0.00%\") & \" \"","v":"      0.00% "},null,null,null,null,{"$f":"\"  \" & \"패키지 코드 분석 후 결과 화면 - 코드 레벨 데이터베이스 참조 트리\" & \"(홍성훈)\" & \" \" & IF(P74=\"\",\"\",TEXT(P74,\"M/D-\")) & IF(Q74=\"\",\"\",TEXT(Q74,\"M/D\")) & \" \"","v":"  패키지 코드 분석 후 결과 화면 - 코드 레벨 데이터베이스 참조 트리(홍성훈) 8/16-9/15 "}]
[" ;","G",4,"1.2.2.5",null,null,null,"소스코드 대상 데이터베이스 연계 분석 기능",null,null,null,null,null,null,null,"2025-09-16","2025-10-30",null,51,0,28,0,null,null,0,0,null,null,null,0,0,null,null,null,null,null,null,null,null,null,null,null,null,null,null,null,null,null,null,null,null,null,null,null,null,null,null,null,null,null,null,null,null,null,null,null,null,null,{"$f":"\"  \" & TEXT(AE75,\"#0.00%\") & \" \"","v":"  0.00% "},null,null,null,null,null,{"$f":"\"     \" & \"소스코드 대상 데이터베이스 연계 분석 기능\" & \" \" & IF(P75=\"\",\"\",TEXT(P75,\"M/D-\")) & IF(Q75=\"\",\"\",TEXT(Q75,\"M/D\")) & \" \"","v":"     소스코드 대상 데이터베이스 연계 분석 기능 9/16-10/30 "}]
[" ;67",null,5,"1.2.2.5.1",null,null,null,null,"데이터베이스 설정 및 mapping 분석",null,null,null,null,null,null,"2025-10-01","2025-10-30",null,17,0,17,0,null,null,null,0,null,"이민규",null,0,0,null,null,null,null,null,null,null,null,null,null,null,null,null,null,null,null,null,null,null,null,null,null,null,null,null,null,null,null,null,null,null,null,null,null,null,null,null,null,null,{"$f":"\"   \" & TEXT(AE76,\"#0.00%\") & \" \"","v":"   0.00% "},null,null,null,{"$f":"\"     \" & \"데이터베이스 설정 및 mapping 분석\" & \"(이민규)\" & \" \" & IF(P76=\"\",\"\",TEXT(P76,\"M/D-\")) & IF(Q76=\"\",\"\",TEXT(Q76,\"M/D\")) & \" \"","v":"     데이터베이스 설정 및 mapping 분석(이민규) 10/1-10/30 "}]
[" ;68",null,5,"1.2.2.5.2",null,null,null,null,"데이터베이스 맵핑 분석 전 분류 상태 Viewer 화면 개발",null,null,null,null,null,null,"2025-09-16","2025-10-15",null,17,0,17,0,null,null,null,0,null,"양형석",null,0,0,null,null,null,null,null,null,null,null,null,null,null,null,null,null,null,null,null,null,null,null,null,null,null,null,null,null,null,null,null,null,null,null,null,null,null,null,null,{"$f":"\"  \" & TEXT(AE77,\"#0.00%\") & \" \"","v":"  0.00% "},null,null,null,{"$f":"\"    \" & \"데이터베이스 맵핑 분석 전 분류 상태 Viewer 화면 개발\" & \"(양형석)\" & \" \" & IF(P77=\"\",\"\",TEXT(P77,\"M/D-\")) & IF(Q77=\"\",\"\",TEXT(Q77,\"M/D\")) & \" \"","v":"    데이터베이스 맵핑 분석 전 분류 상태 Viewer 화면 개발(양형석) 9/16-10/15 "}]
[" ;69",null,5,"1.2.2.5.3",null,null,null,null,"데이터베이스 맵핑 분석 후 결과 화면 - 데이터베이스 오브젝트 참조 트리",null,null,null,null,null,null,"2025-09-16","2025-10-15",null,17,0,17,0,null,null,null,0,null,"홍성훈",null,0,0,null,null,null,null,null,null,null,null,null,null,null,null,null,null,null,null,null,null,null,null,null,null,null,null,null,null,null,null,null,null,null,null,null,null,null,null,null,{"$f":"\"  \" & TEXT(AE78,\"#0.00%\") & \" \"","v":"  0.00% "},null,null,null,{"$f":"\"    \" & \"데이터베이스 맵핑 분석 후 결과 화면 - 데이터베이스 오브젝트 참조 트리\" & \"(홍성훈)\" & \" \" & IF(P78=\"\",\"\",TEXT(P78,\"M/D-\")) & IF(Q78=\"\",\"\",TEXT(Q78,\"M/D\")) & \" \"","v":"    데이터베이스 맵핑 분석 후 결과 화면 - 데이터베이스 오브젝트 참조 트리(홍성훈) 9/16-10/15 "}]
[" ;","G",4,"1.2.2.6",null,null,null,"어플리케이션 Excel 컬럼 데이터 자동 맵핑 기능",null,null,null,null,null,null,null,"2025-10-16","2025-11-30",null,84,0,32,0,null,null,0,0,null,null,null,0,0,null,null,null,null,null,null,null,null,null,null,null,null,null,null,null,null,null,null,null,null,null,null,null,null,null,null,null,null,null,null,null,null,null,null,null,null,null,null,null,null,null,{"$f":"\"    \" & TEXT(AE79,\"#0.00%\") & \" \"","v":"    0.00% "},null,null,null,null,null,null,{"$f":"\" \" & \"어플리케이션 Excel 컬럼 데이터 자동 맵핑 기능\" & \" \" & IF(P79=\"\",\"\",TEXT(P79,\"M/D-\")) & IF(Q79=\"\",\"\",TEXT(Q79,\"M/D\")) & \" \"","v":" 어플리케이션 Excel 컬럼 데이터 자동 맵핑 기능 10/16-11/30 "}]
[" ;70",null,5,"1.2.2.6.1",null,null,null,null,"진단 컬럼 분류 분석 자동 데이터 맵핑",null,null,null,null,null,null,"2025-11-01","2025-11-30",null,20,0,20,0,null,null,null,0,null,"이민규",null,0,0,null,null,null,null,null,null,null,null,null,null,null,null,null,null,null,null,null,null,null,null,null,null,null,null,null,null,null,null,null,null,null,null,null,null,null,null,null,null,null,null,null,null,null,{"$f":"\"      \" & TEXT(AE80,\"#0.00%\") & \" \"","v":"      0.00% "},null,null,null,null,{"$f":"\" \" & \"진단 컬럼 분류 분석 자동 데이터 맵핑\" & \"(이민규)\" & \" \" & IF(P80=\"\",\"\",TEXT(P80,\"M/D-\")) & IF(Q80=\"\",\"\",TEXT(Q80,\"M/D\")) & \" \"","v":" 진단 컬럼 분류 분석 자동 데이터 맵핑(이민규) 11/1-11/30 "}]
[" ;71",null,5,"1.2.2.6.2",null,null,null,null,"맵핑 후 분석 결과 - 변경 영향 분석 ( 토폴로지 맵핑 정보 )",null,null,null,null,null,null,"2025-10-16","2025-11-30",null,32,0,32,0,null,null,null,0,null,"홍성훈",null,0,0,null,null,null,null,null,null,null,null,null,null,null,null,null,null,null,null,null,null,null,null,null,null,null,null,null,null,null,null,null,null,null,null,null,null,null,null,null,null,null,null,null,{"$f":"\"    \" & TEXT(AE81,\"#0.00%\") & \" \"","v":"    0.00% "},null,null,null,null,null,null,{"$f":"\" \" & \"맵핑 후 분석 결과 - 변경 영향 분석 ( 토폴로지 맵핑 정보 )\" & \"(홍성훈)\" & \" \" & IF(P81=\"\",\"\",TEXT(P81,\"M/D-\")) & IF(Q81=\"\",\"\",TEXT(Q81,\"M/D\")) & \" \"","v":" 맵핑 후 분석 결과 - 변경 영향 분석 ( 토폴로지 맵핑 정보 )(홍성훈) 10/16-11/30 "}]
[" ;72",null,5,"1.2.2.6.3",null,null,null,null,"맵핑 후 분석 결과 - 변경 영향 분석 ( 코드 레벨 변경 시 설정 정보 변경 )",null,null,null,null,null,null,"2025-10-16","2025-11-30",null,32,0,32,0,null,null,null,0,null,"양형석",null,0,0,null,null,null,null,null,null,null,null,null,null,null,null,null,null,null,null,null,null,null,null,null,null,null,null,null,null,null,null,null,null,null,null,null,null,null,null,null,null,null,null,null,{"$f":"\"    \" & TEXT(AE82,\"#0.00%\") & \" \"","v":"    0.00% "},null,null,null,null,null,null,{"$f":"\" \" & \"맵핑 후 분석 결과 - 변경 영향 분석 ( 코드 레벨 변경 시 설정 정보 변경 )\" & \"(양형석)\" & \" \" & IF(P82=\"\",\"\",TEXT(P82,\"M/D-\")) & IF(Q82=\"\",\"\",TEXT(Q82,\"M/D\")) & \" \"","v":" 맵핑 후 분석 결과 - 변경 영향 분석 ( 코드 레벨 변경 시 설정 정보 변경 )(양형석) 10/16-11/30 "}]
[" ;73","G",3,"1.2.3",null,null,"온라인 메뉴얼 시스템",null,null,null,null,null,null,null,null,"2025-06-01","2025-08-30",null,61,0,62,0,null,null,0,0,null,null,null,0,0,null,null,null,null,null,null,null,null,null,null,null,null,null,null,null,null,null,null,null,null,null,null,{"$f":"\"\" & TEXT(AE83,\"#0.00%\") & \" \"","v":"0.00% "},null,null,null,null,null,null,null,null,null,null,null,null,{"$f":"\"\" & \"온라인 메뉴얼 시스템\" & \" \" & IF(P83=\"\",\"\",TEXT(P83,\"M/D-\")) & IF(Q83=\"\",\"\",TEXT(Q83,\"M/D\")) & \" \"","v":"온라인 메뉴얼 시스템 6/1-8/30 "}]
[" ;74",null,4,"1.2.3.1",null,null,null,"온라인 메뉴얼 시스템 선정 및 구축",null,null,null,null,null,null,null,"2025-06-01","2025-06-15",null,8,0,8,0,null,null,null,0,null,"이동민",null,0,0,null,null,null,null,null,null,null,null,null,null,null,null,null,null,null,null,null,null,null,null,null,null,{"$f":"\"\" & TEXT(AE84,\"#0.00%\") & \" \" & \"온라인 메뉴얼 시스템 선정 및 구축\" & \"(이동민)\" & \" \" & IF(P84=\"\",\"\",TEXT(P84,\"M/D-\")) & IF(Q84=\"\",\"\",TEXT(Q84,\"M/D\")) & \" \"","v":"0.00% 온라인 메뉴얼 시스템 선정 및 구축(이동민) 6/1-6/15 "}]
[" ;75",null,4,"1.2.3.2",null,null,null,"메뉴얼 작성 : System",null,null,null,null,null,null,null,"2025-06-16","2025-06-30",null,11,0,11,0,null,null,null,0,null,"이동민",null,0,0,null,null,null,null,null,null,null,null,null,null,null,null,null,null,null,null,null,null,null,null,null,null,null,null,{"$f":"\" \" & TEXT(AE85,\"#0.00%\") & \" \" & \"메뉴얼 작성 : System\" & \"(이동민)\" & \" \" & IF(P85=\"\",\"\",TEXT(P85,\"M/D-\")) & IF(Q85=\"\",\"\",TEXT(Q85,\"M/D\")) & \" \"","v":" 0.00% 메뉴얼 작성 : System(이동민) 6/16-6/30 "}]
[" ;76",null,4,"1.2.3.3",null,null,null,"메뉴얼 작성 : Discovery",null,null,null,null,null,null,null,"2025-07-01","2025-07-15",null,11,0,11,0,null,null,null,0,null,"이동민",null,0,0,null,null,null,null,null,null,null,null,null,null,null,null,null,null,null,null,null,null,null,null,null,null,null,null,null,null,{"$f":"\"  \" & TEXT(AE86,\"#0.00%\") & \" \" & \"메뉴얼 작성 : Discovery\" & \"(이동민)\" & \" \" & IF(P86=\"\",\"\",TEXT(P86,\"M/D-\")) & IF(Q86=\"\",\"\",TEXT(Q86,\"M/D\")) & \" \"","v":"  0.00% 메뉴얼 작성 : Discovery(이동민) 7/1-7/15 "}]
[" ;77",null,4,"1.2.3.4",null,null,null,"메뉴얼 작성 : Assessment",null,null,null,null,null,null,null,"2025-07-16","2025-07-30",null,11,0,11,0,null,null,null,0,null,"이동민",null,0,0,null,null,null,null,null,null,null,null,null,null,null,null,null,null,null,null,null,null,null,null,null,null,null,null,null,null,null,null,{"$f":"\"   \" & TEXT(AE87,\"#0.00%\") & \" \" & \"메뉴얼 작성 : Assessment\" & \"(이동민)\" & \" \" & IF(P87=\"\",\"\",TEXT(P87,\"M/D-\")) & IF(Q87=\"\",\"\",TEXT(Q87,\"M/D\")) & \" \"","v":"   0.00% 메뉴얼 작성 : Assessment(이동민) 7/16-7/30 "}]
[" ;78",null,4,"1.2.3.5",null,null,null,"메뉴얼 작성 : Migrtaion",null,null,null,null,null,null,null,"2025-08-01","2025-08-15",null,10,0,10,0,null,null,null,0,null,"이동민",null,0,0,null,null,null,null,null,null,null,null,null,null,null,null,null,null,null,null,null,null,null,null,null,null,null,null,null,null,null,null,null,null,{"$f":"\"     \" & TEXT(AE88,\"#0.00%\") & \" \" & \"메뉴얼 작성 : Migrtaion\" & \"(이동민)\" & \" \" & IF(P88=\"\",\"\",TEXT(P88,\"M/D-\")) & IF(Q88=\"\",\"\",TEXT(Q88,\"M/D\")) & \" \"","v":"     0.00% 메뉴얼 작성 : Migrtaion(이동민) 8/1-8/15 "}]
[" ;79",null,4,"1.2.3.6",null,null,null,"메뉴얼 작성 : BackOffice",null,null,null,null,null,null,null,"2025-08-16","2025-08-30",null,10,0,10,0,null,null,null,0,null,"이동민",null,0,0,null,null,null,null,null,null,null,null,null,null,null,null,null,null,null,null,null,null,null,null,null,null,null,null,null,null,null,null,null,null,null,null,{"$f":"\"      \" & TEXT(AE89,\"#0.00%\") & \" \" & \"메뉴얼 작성 : BackOffice\" & \"(이동민)\" & \" \" & IF(P89=\"\",\"\",TEXT(P89,\"M/D-\")) & IF(Q89=\"\",\"\",TEXT(Q89,\"M/D\")) & \" \"","v":"      0.00% 메뉴얼 작성 : BackOffice(이동민) 8/16-8/30 "}]
[" ;80","G",3,"1.2.4",null,null,"PM 및 운영 지원 활동",null,null,null,null,null,null,null,null,"2025-09-01","2025-12-30",null,49,0,81,0,null,null,0,0,null,null,null,0,0,null,null,null,null,null,null,null,null,null,null,null,null,null,null,null,null,null,null,null,null,null,null,null,null,null,null,null,null,null,null,null,null,null,null,null,{"$f":"\" \" & TEXT(AE90,\"#0.00%\") & \" \"","v":" 0.00% "},null,null,null,null,null,null,null,null,null,null,null,null,null,null,null,null,{"$f":"\"   \" & \"PM 및 운영 지원 활동\" & \" \" & IF(P90=\"\",\"\",TEXT(P90,\"M/D-\")) & IF(Q90=\"\",\"\",TEXT(Q90,\"M/D\")) & \" \"","v":"   PM 및 운영 지원 활동 9/1-12/30 "}]
[" ;81",null,4,"1.2.4.1",null,null,null,"Product Development 기술 지원",null,null,null,null,null,null,null,"2025-09-01","2025-09-15",null,11,0,11,0,null,null,null,0,null,"이동민",null,0,0,null,null,null,null,null,null,null,null,null,null,null,null,null,null,null,null,null,null,null,null,null,null,null,null,null,null,null,null,null,null,null,null,null,null,null,{"$f":"\" \" & TEXT(AE91,\"#0.00%\") & \" \" & \"Product Development 기술 지원\" & \"(이동민)\" & \" \" & IF(P91=\"\",\"\",TEXT(P91,\"M/D-\")) & IF(Q91=\"\",\"\",TEXT(Q91,\"M/D\")) & \" \"","v":" 0.00% Product Development 기술 지원(이동민) 9/1-9/15 "}]
[" ;82",null,4,"1.2.4.2",null,null,null,"Product Development, MVP Development PM Role",null,null,null,null,null,null,null,"2025-10-01","2025-10-30",null,17,0,17,0,null,null,null,0,null,"이동민",null,0,0,null,null,null,null,null,null,null,null,null,null,null,null,null,null,null,null,null,null,null,null,null,null,null,null,null,null,null,null,null,null,null,null,null,null,null,null,null,null,null,{"$f":"\"   \" & TEXT(AE92,\"#0.00%\") & \" \"","v":"   0.00% "},null,null,null,{"$f":"\"     \" & \"Product Development, MVP Development PM Role\" & \"(이동민)\" & \" \" & IF(P92=\"\",\"\",TEXT(P92,\"M/D-\")) & IF(Q92=\"\",\"\",TEXT(Q92,\"M/D\")) & \" \"","v":"     Product Development, MVP Development PM Role(이동민) 10/1-10/30 "}]
[" ;83",null,4,"1.2.4.3",null,null,null,"HyperMig 운영 지원 활동 ( 소개 및 고객사 설치 ~ 지원 )",null,null,null,null,null,null,null,"2025-12-01","2025-12-30",null,21,0,21,0,null,null,null,0,null,"이동민",null,0,0,null,null,null,null,null,null,null,null,null,null,null,null,null,null,null,null,null,null,null,null,null,null,null,null,null,null,null,null,null,null,null,null,null,null,null,null,null,null,null,null,null,null,null,null,null,null,null,null,{"$f":"\" \" & TEXT(AE93,\"#0.00%\") & \" \"","v":" 0.00% "},null,null,null,{"$f":"\"   \" & \"HyperMig 운영 지원 활동 ( 소개 및 고객사 설치 ~ 지원 )\" & \"(이동민)\" & \" \" & IF(P93=\"\",\"\",TEXT(P93,\"M/D-\")) & IF(Q93=\"\",\"\",TEXT(Q93,\"M/D\")) & \" \"","v":"   HyperMig 운영 지원 활동 ( 소개 및 고객사 설치 ~ 지원 )(이동민) 12/1-12/30 "}]

{"sheet":"Progress","index":3,"n_rows":24,"n_cols":4,"rows_kept":24,"cut":false,"hidden":false,"merged":[[17,3,17,6],[20,3,20,6],[23,3,23,6],[0,11,0,13],[3,0,3,1],[5,3,5,6],[8,3,8,6],[11,3,11,6],[14,3,14,6]]}
["프로젝트 진척율 - 일정변경 관리하지 않을때"]
["* 프로젝트 작업량과 진척율을 보여줍니다."]
["* \"스케줄업데이트\" 버튼 클릭 시 아래 항목이 자동계산됩니다."]
[]
[]
["프로젝트 전체 작업량",893,"Man/Day","프로젝트 전체의 작업량을 Man/Day로 표시한다. 가중치를 적용한 값이다."]
[]
[]
["현재일까지 계획된 작업량",290,"Man/Day","해당작업의 시작일부터 현재일까지의 작업기간을 의미함(현재 날짜까지 진행되었어야 할 기간)"]
[]
[]
["실적기성",289,"Man/Day","실적기성(총기간 x 총실적진행율)"]
[]
[]
["실제 투입된 작업량",null,"Man/Day","일정변경 관리할 때 현재까지 실제로 투입된 작업기간을 표시함"]
[]
[]
["계획 진척율(A)",0.32474804031354981,null,"현재날짜까지 계획된 진척율, WBS의 \"계획진척율\"의 전체 합계 진척율을 표시함"]
[]
[]
["실적 진척율(B)",0.32362821948488241,null,"현재날짜까지 실제로 진행된 진척율, WBS의 \"실적진척율\"의 전체 합계 진척율을 표시함"]
[]
[]
["차이(B-A)",{"$f":"ACTUAL_RATE-PLANNED_RATE","v":-1.1198208286674061E-3},null,"양수이면 계획보다 빨리 진행, 음수이면 지연"]

{"sheet":"AnalysisReport","index":4,"n_rows":60,"n_cols":6,"rows_kept":60,"cut":false,"hidden":false,"merged":[[5,5,5,14]]}
[null,"Workload현황(주별)"]
[null,"* 주별 또는 월별 Workload를 보여줍니다."]
[null,"* \"Workload(주별)\" 또는 \"Workload(월별)\" 메뉴를 클릭해야 내용이 갱신됩니다."]
[null,21,"일 (월평균 근무일수)"]
[]
[null,"시작일","완료일","Man-Day","Man-Month","차트"]
[null,"2025-01-01","2025-01-04",6,{"$f":"D7/$B$4","v":0.2857142857142857},{"$f":"REPT(\"|\",IF(D7>0,IF(D7/1<1,1,D7/1)))","v":"||||||"}]
[null,"2025-01-05","2025-01-11",15,{"$f":"D8/$B$4","v":0.7142857142857143},"|||||||||||||||"]
[null,"2025-01-12","2025-01-18",15,0.7142857142857143,"|||||||||||||||"]
[null,"2025-01-19","2025-01-25",15,0.7142857142857143,"|||||||||||||||"]
[null,"2025-01-26","2025-02-01",3,0.14285714285714285,"|||"]
[null,"2025-02-02","2025-02-08",15,0.7142857142857143,"|||||||||||||||"]
[null,"2025-02-09","2025-02-15",15,0.7142857142857143,"|||||||||||||||"]
[null,"2025-02-16","2025-02-22",20,0.95238095238095233,"||||||||||||||||||||"]
[null,"2025-02-23","2025-03-01",20,0.95238095238095233,"||||||||||||||||||||"]
[null,"2025-03-02","2025-03-08",16,0.76190476190476186,"||||||||||||||||"]
[null,"2025-03-09","2025-03-15",20,0.95238095238095233,"||||||||||||||||||||"]
[null,"2025-03-16","2025-03-22",20,0.95238095238095233,"||||||||||||||||||||"]
[null,"2025-03-23","2025-03-29",20,0.95238095238095233,"||||||||||||||||||||"]
[null,"2025-03-30","2025-04-05",16,0.76190476190476186,"||||||||||||||||"]
[null,"2025-04-06","2025-04-12",20,0.95238095238095233,"||||||||||||||||||||"]
[null,"2025-04-13","2025-04-19",20,0.95238095238095233,"||||||||||||||||||||"]
[null,"2025-04-20","2025-04-26",15,0.7142857142857143,"|||||||||||||||"]
[null,"2025-04-27","2025-05-03",10,0.47619047619047616,"||||||||||"]
[null,"2025-05-04","2025-05-10",6,0.2857142857142857,"||||||"]
[null,"2025-05-11","2025-05-17",19,0.90476190476190477,"|||||||||||||||||||"]
[null,"2025-05-18","2025-05-24",20,0.95238095238095233,"||||||||||||||||||||"]
[null,"2025-05-25","2025-05-31",20,0.95238095238095233,"||||||||||||||||||||"]
[null,"2025-06-01","2025-06-07",12,0.5714285714285714,"||||||||||||"]
[null,"2025-06-08","2025-06-14",20,0.95238095238095233,"||||||||||||||||||||"]
[null,"2025-06-15","2025-06-21",20,0.95238095238095233,"||||||||||||||||||||"]
[null,"2025-06-22","2025-06-28",20,0.95238095238095233,"||||||||||||||||||||"]
[null,"2025-06-29","2025-07-05",16,0.76190476190476186,"||||||||||||||||"]
[null,"2025-07-06","2025-07-12",15,0.7142857142857143,"|||||||||||||||"]
[null,"2025-07-13","2025-07-19",18,0.8571428571428571,"||||||||||||||||||"]
[null,"2025-07-20","2025-07-26",20,0.95238095238095233,"||||||||||||||||||||"]
[null,"2025-07-27","2025-08-02",19,0.90476190476190477,"|||||||||||||||||||"]
[null,"2025-08-03","2025-08-09",20,0.95238095238095233,"||||||||||||||||||||"]
[null,"2025-08-10","2025-08-16",16,0.76190476190476186,{"$f":"REPT(\"|\",IF(D39>0,IF(D39/1<1,1,D39/1)))","v":"||||||||||||||||"}]
[null,"2025-08-17","2025-08-23",20,0.95238095238095233,"||||||||||||||||||||"]
[null,"2025-08-24","2025-08-30",20,0.95238095238095233,"||||||||||||||||||||"]
[null,"2025-08-31","2025-09-06",20,0.95238095238095233,"||||||||||||||||||||"]
[null,"2025-09-07","2025-09-13",20,0.95238095238095233,"||||||||||||||||||||"]
[null,"2025-09-14","2025-09-20",16,0.76190476190476186,"||||||||||||||||"]
[null,"2025-09-21","2025-09-27",15,0.7142857142857143,"|||||||||||||||"]
[null,"2025-09-28","2025-10-04",14,0.66666666666666663,"||||||||||||||"]
[null,"2025-10-05","2025-10-11",4,0.19047619047619047,"||||"]
[null,"2025-10-12","2025-10-18",20,0.95238095238095233,"||||||||||||||||||||"]
[null,"2025-10-19","2025-10-25",20,0.95238095238095233,"||||||||||||||||||||"]
[null,"2025-10-26","2025-11-01",18,0.8571428571428571,"||||||||||||||||||"]
[null,"2025-11-02","2025-11-08",20,0.95238095238095233,"||||||||||||||||||||"]
[null,"2025-11-09","2025-11-15",20,0.95238095238095233,"||||||||||||||||||||"]
[null,"2025-11-16","2025-11-22",20,0.95238095238095233,"||||||||||||||||||||"]
[null,"2025-11-23","2025-11-29",20,0.95238095238095233,"||||||||||||||||||||"]
[null,"2025-11-30","2025-12-06",20,0.95238095238095233,"||||||||||||||||||||"]
[null,"2025-12-07","2025-12-13",20,0.95238095238095233,"||||||||||||||||||||"]
[null,"2025-12-14","2025-12-20",20,0.95238095238095233,"||||||||||||||||||||"]
[null,"2025-12-21","2025-12-27",16,0.76190476190476186,"||||||||||||||||"]
[null,"2025-12-28","2026-01-03",8,0.38095238095238093,"||||||||"]
[null,null,"Total",{"$f":"SUM(D7:D59)","v":893},{"$f":"D60/$B$4","v":42.523809523809526}]

{"sheet":"Calendar","index":5,"n_rows":305,"n_cols":9,"rows_kept":305,"cut":false,"hidden":false,"merged":[[1,0,1,7],[2,0,2,1],[2,3,2,4],[2,6,2,7]]}
[" 프로젝트 휴무일 Calendar 설정"]
["여기에는 프로젝트의 휴무일만 입력하세요.휴무일을 제외한 날짜는 근무일자로 설정됩니다. \r\n휴무일을 입력해야 작업기간 계산시 반영합니다. 입력한 일자만큼 작업기간에서 제외합니다.\r\n(단, 옵션창의 캘린더 설정에 따라 휴무일계산방법은 달라질 수 있습니다.)\r\n표준캘린더는 기본으로 적용되는 캘린더이며 특정 작업에 다른 캘린더를 지정하고 싶으면 \"사용자정의 캘린더1\", \"사용자정의 캘린더2\"에 휴무일을 지정하여 사용합니다."]
["표준캘린더",null,null,"사용자정의 캘린더1",null,null,"사용자정의 캘린더2"]
["휴무일명","휴무일자",null,"휴무일명","휴무일자",null,"휴무일명","휴무일자"]
["2025년 신정","2025-01-01",{"$f":"IF(B5>0,TEXT(B5,\"(aaa)\"),\"\")","v":"(수)"},null,null,{"$f":"IF(E5>0,TEXT(E5,\"(aaa)\"),\"\")","v":""},null,null,{"$f":"IF(H5>0,TEXT(H5,\"(aaa)\"),\"\")","v":""}]
["2025년 설연휴","2025-01-28","(화)",null,null,"",null,null,""]
["2025년 설연휴","2025-01-29","(수)",null,null,"",null,null,""]
["2025년 설연휴","2025-01-30","(목)",null,null,"",null,null,""]
["2025년 삼일절 ","2025-03-01","(토)",null,null,"",null,null,""]
["2025년 대체공휴일 ","2025-03-03","(월)",null,null,"",null,null,""]
["2025년 근로자의 날","2025-05-01","(목)",null,null,"",null,null,""]
["2025년 어린이날 & 부처님 오신 날","2025-05-05","(월)",null,null,"",null,null,""]
["2025년 대체공휴일 ","2025-05-06","(화)",null,null,"",null,null,""]
["2025년 현충일 ","2025-06-06","(금)",null,null,"",null,null,""]
["2025년 광복절 ","2025-08-15","(금)",null,null,"",null,null,""]
["2025년 개천절 ","2025-10-03","(금)",null,null,"",null,null,""]
["2025년 추석 ","2025-10-06","(월)",null,null,"",null,null,""]
["2025년 추석 ","2025-10-07","(화)",null,null,"",null,null,""]
["2025년 추석 ","2025-10-08","(수)",null,null,"",null,null,""]
["2025년 한글날","2025-10-09","(목)",null,null,"",null,null,""]
["2025년 크리스마스","2025-12-25","(목)",null,null,"",null,null,""]
["2025년 대선","2025-06-03","(화)",null,null,"",null,null,""]
[null,null,"",null,null,"",null,null,""]
[null,null,"",null,null,"",null,null,""]
[null,null,"",null,null,"",null,null,""]
[null,null,"",null,null,"",null,null,""]
[null,null,"",null,null,"",null,null,""]
[null,null,"",null,null,"",null,null,""]
[null,null,"",null,null,"",null,null,""]
[null,null,"",null,null,"",null,null,""]
[null,null,"",null,null,"",null,null,""]
[null,null,"",null,null,"",null,null,""]
[null,null,"",null,null,"",null,null,""]
[null,null,"",null,null,"",null,null,""]
[null,null,"",null,null,"",null,null,""]
[null,null,"",null,null,"",null,null,""]
[null,null,"",null,null,"",null,null,""]
[null,null,"",null,null,"",null,null,""]
[null,null,"",null,null,"",null,null,""]
[null,null,"",null,null,"",null,null,""]
[null,null,"",null,null,"",null,null,""]
[null,null,"",null,null,"",null,null,""]
[null,null,"",null,null,"",null,null,""]
[null,null,"",null,null,"",null,null,""]
[null,null,"",null,null,"",null,null,""]
[null,null,"",null,null,"",null,null,""]
[null,null,"",null,null,"",null,null,""]
[null,null,"",null,null,"",null,null,""]
[null,null,"",null,null,"",null,null,""]
[null,null,"",null,null,"",null,null,""]
[null,null,"",null,null,"",null,null,""]
[null,null,"",null,null,"",null,null,""]
[null,null,"",null,null,"",null,null,""]
[null,null,"",null,null,"",null,null,""]
[null,null,"",null,null,"",null,null,""]
[null,null,"",null,null,"",null,null,""]
[null,null,"",null,null,"",null,null,""]
[null,null,"",null,null,"",null,null,""]
[null,null,"",null,null,"",null,null,""]
[null,null,"",null,null,"",null,null,""]
[null,null,"",null,null,"",null,null,""]
[null,null,"",null,null,"",null,null,""]
[null,null,"",null,null,"",null,null,""]
[null,null,"",null,null,"",null,null,""]
[null,null,"",null,null,"",null,null,""]
[null,null,"",null,null,"",null,null,""]
[null,null,"",null,null,"",null,null,""]
[null,null,"",null,null,"",null,null,""]
[null,null,{"$f":"IF(B69>0,TEXT(B69,\"(aaa)\"),\"\")","v":""},null,null,{"$f":"IF(E69>0,TEXT(E69,\"(aaa)\"),\"\")","v":""},null,null,{"$f":"IF(H69>0,TEXT(H69,\"(aaa)\"),\"\")","v":""}]
[null,null,"",null,null,"",null,null,""]
[null,null,"",null,null,"",null,null,""]
[null,null,"",null,null,"",null,null,""]
[null,null,"",null,null,"",null,null,""]
[null,null,"",null,null,"",null,null,""]
[null,null,"",null,null,"",null,null,""]
[null,null,"",null,null,"",null,null,""]
[null,null,"",null,null,"",null,null,""]
[null,null,"",null,null,"",null,null,""]
[null,null,"",null,null,"",null,null,""]
[null,null,"",null,null,"",null,null,""]
[null,null,"",null,null,"",null,null,""]
[null,null,"",null,null,"",null,null,""]
[null,null,"",null,null,"",null,null,""]
[null,null,"",null,null,"",null,null,""]
[null,null,"",null,null,"",null,null,""]
[null,null,"",null,null,"",null,null,""]
[null,null,"",null,null,"",null,null,""]
[null,null,"",null,null,"",null,null,""]
[null,null,"",null,null,"",null,null,""]
[null,null,"",null,null,"",null,null,""]
[null,null,"",null,null,"",null,null,""]
[null,null,"",null,null,"",null,null,""]
[null,null,"",null,null,"",null,null,""]
[null,null,"",null,null,"",null,null,""]
[null,null,"",null,null,"",null,null,""]
[null,null,"",null,null,"",null,null,""]
[null,null,"",null,null,"",null,null,""]
[null,null,"",null,null,"",null,null,""]
[null,null,"",null,null,"",null,null,""]
[null,null,"",null,null,"",null,null,""]
[null,null,"",null,null,"",null,null,""]
[null,null,"",null,null,"",null,null,""]
[null,null,"",null,null,"",null,null,""]
[null,null,"",null,null,"",null,null,""]
[null,null,"",null,null,"",null,null,""]
[null,null,"",null,null,"",null,null,""]
[null,null,"",null,null,"",null,null,""]
[null,null,"",null,null,"",null,null,""]
[null,null,"",null,null,"",null,null,""]
[null,null,"",null,null,"",null,null,""]
[null,null,"",null,null,"",null,null,""]
[null,null,"",null,null,"",null,null,""]
[null,null,"",null,null,"",null,null,""]
[null,null,"",null,null,"",null,null,""]
[null,null,"",null,null,"",null,null,""]
[null,null,"",null,null,"",null,null,""]
[null,null,"",null,null,"",null,null,""]
[null,null,"",null,null,"",null,null,""]
[null,null,"",null,null,"",null,null,""]
[null,null,"",null,null,"",null,null,""]
[null,null,"",null,null,"",null,null,""]
[null,null,"",null,null,"",null,null,""]
[null,null,"",null,null,"",null,null,""]
[null,null,"",null,null,"",null,null,""]
[null,null,"",null,null,"",null,null,""]
[null,null,"",null,null,"",null,null,""]
[null,null,"",null,null,"",null,null,""]
[null,null,"",null,null,"",null,null,""]
[null,null,"",null,null,"",null,null,""]
[null,null,"",null,null,"",null,null,""]
[null,null,"",null,null,"",null,null,""]
[null,null,"",null,null,"",null,null,""]
[null,null,{"$f":"IF(B133>0,TEXT(B133,\"(aaa)\"),\"\")","v":""},null,null,{"$f":"IF(E133>0,TEXT(E133,\"(aaa)\"),\"\")","v":""},null,null,{"$f":"IF(H133>0,TEXT(H133,\"(aaa)\"),\"\")","v":""}]
[null,null,"",null,null,"",null,null,""]
[null,null,"",null,null,"",null,null,""]
[null,null,"",null,null,"",null,null,""]
[null,null,"",null,null,"",null,null,""]
[null,null,"",null,null,"",null,null,""]
[null,null,"",null,null,"",null,null,""]
[null,null,"",null,null,"",null,null,""]
[null,null,"",null,null,"",null,null,""]
[null,null,"",null,null,"",null,null,""]
[null,null,"",null,null,"",null,null,""]
[null,null,"",null,null,"",null,null,""]
[null,null,"",null,null,"",null,null,""]
[null,null,"",null,null,"",null,null,""]
[null,null,"",null,null,"",null,null,""]
[null,null,"",null,null,"",null,null,""]
[null,null,"",null,null,"",null,null,""]
[null,null,"",null,null,"",null,null,""]
[null,null,"",null,null,"",null,null,""]
[null,null,"",null,null,"",null,null,""]
[null,null,"",null,null,"",null,null,""]
[null,null,"",null,null,"",null,null,""]
[null,null,"",null,null,"",null,null,""]
[null,null,"",null,null,"",null,null,""]
[null,null,"",null,null,"",null,null,""]
[null,null,"",null,null,"",null,null,""]
[null,null,"",null,null,"",null,null,""]
[null,null,"",null,null,"",null,null,""]
[null,null,"",null,null,"",null,null,""]
[null,null,"",null,null,"",null,null,""]
[null,null,"",null,null,"",null,null,""]
[null,null,"",null,null,"",null,null,""]
[null,null,"",null,null,"",null,null,""]
[null,null,"",null,null,"",null,null,""]
[null,null,"",null,null,"",null,null,""]
[null,null,"",null,null,"",null,null,""]
[null,null,"",null,null,"",null,null,""]
[null,null,"",null,null,"",null,null,""]
[null,null,"",null,null,"",null,null,""]
[null,null,"",null,null,"",null,null,""]
[null,null,"",null,null,"",null,null,""]
[null,null,"",null,null,"",null,null,""]
[null,null,"",null,null,"",null,null,""]
[null,null,"",null,null,"",null,null,""]
[null,null,"",null,null,"",null,null,""]
[null,null,"",null,null,"",null,null,""]
[null,null,"",null,null,"",null,null,""]
[null,null,"",null,null,"",null,null,""]
[null,null,"",null,null,"",null,null,""]
[null,null,"",null,null,"",null,null,""]
[null,null,"",null,null,"",null,null,""]
[null,null,"",null,null,"",null,null,""]
[null,null,"",null,null,"",null,null,""]
[null,null,"",null,null,"",null,null,""]
[null,null,"",null,null,"",null,null,""]
[null,null,"",null,null,"",null,null,""]
[null,null,"",null,null,"",null,null,""]
[null,null,"",null,null,"",null,null,""]
[null,null,"",null,null,"",null,null,""]
[null,null,"",null,null,"",null,null,""]
[null,null,"",null,null,"",null,null,""]
[null,null,"",null,null,"",null,null,""]
[null,null,"",null,null,"",null,null,""]
[null,null,"",null,null,"",null,null,""]
[null,null,{"$f":"IF(B197>0,TEXT(B197,\"(aaa)\"),\"\")","v":""},null,null,{"$f":"IF(E197>0,TEXT(E197,\"(aaa)\"),\"\")","v":""},null,null,{"$f":"IF(H197>0,TEXT(H197,\"(aaa)\"),\"\")","v":""}]
[null,null,"",null,null,"",null,null,""]
[null,null,"",null,null,"",null,null,""]
[null,null,"",null,null,"",null,null,""]
[null,null,"",null,null,"",null,null,""]
[null,null,"",null,null,"",null,null,""]
[null,null,"",null,null,"",null,null,""]
[null,null,"",null,null,"",null,null,""]
[null,null,"",null,null,"",null,null,""]
[null,null,"",null,null,"",null,null,""]
[null,null,"",null,null,"",null,null,""]
[null,null,"",null,null,"",null,null,""]
[null,null,"",null,null,"",null,null,""]
[null,null,"",null,null,"",null,null,""]
[null,null,"",null,null,"",null,null,""]
[null,null,"",null,null,"",null,null,""]
[null,null,"",null,null,"",null,null,""]
[null,null,"",null,null,"",null,null,""]
[null,null,"",null,null,"",null,null,""]
[null,null,"",null,null,"",null,null,""]
[null,null,"",null,null,"",null,null,""]
[null,null,"",null,null,"",null,null,""]
[null,null,"",null,null,"",null,null,""]
[null,null,"",null,null,"",null,null,""]
[null,null,"",null,null,"",null,null,""]
[null,null,"",null,null,"",null,null,""]
[null,null,"",null,null,"",null,null,""]
[null,null,"",null,null,"",null,null,""]
[null,null,"",null,null,"",null,null,""]
[null,null,"",null,null,"",null,null,""]
[null,null,"",null,null,"",null,null,""]
[null,null,"",null,null,"",null,null,""]
[null,null,"",null,null,"",null,null,""]
[null,null,"",null,null,"",null,null,""]
[null,null,"",null,null,"",null,null,""]
[null,null,"",null,null,"",null,null,""]
[null,null,"",null,null,"",null,null,""]
[null,null,"",null,null,"",null,null,""]
[null,null,"",null,null,"",null,null,""]
[null,null,"",null,null,"",null,null,""]
[null,null,"",null,null,"",null,null,""]
[null,null,"",null,null,"",null,null,""]
[null,null,"",null,null,"",null,null,""]
[null,null,"",null,null,"",null,null,""]
[null,null,"",null,null,"",null,null,""]
[null,null,"",null,null,"",null,null,""]
[null,null,"",null,null,"",null,null,""]
[null,null,"",null,null,"",null,null,""]
[null,null,"",null,null,"",null,null,""]
[null,null,"",null,null,"",null,null,""]
[null,null,"",null,null,"",null,null,""]
[null,null,"",null,null,"",null,null,""]
[null,null,"",null,null,"",null,null,""]
[null,null,"",null,null,"",null,null,""]
[null,null,"",null,null,"",null,null,""]
[null,null,"",null,null,"",null,null,""]
[null,null,"",null,null,"",null,null,""]
[null,null,"",null,null,"",null,null,""]
[null,null,"",null,null,"",null,null,""]
[null,null,"",null,null,"",null,null,""]
[null,null,"",null,null,"",null,null,""]
[null,null,"",null,null,"",null,null,""]
[null,null,"",null,null,"",null,null,""]
[null,null,"",null,null,"",null,null,""]
[null,null,{"$f":"IF(B261>0,TEXT(B261,\"(aaa)\"),\"\")","v":""},null,null,{"$f":"IF(E261>0,TEXT(E261,\"(aaa)\"),\"\")","v":""},null,null,{"$f":"IF(H261>0,TEXT(H261,\"(aaa)\"),\"\")","v":""}]
[null,null,"",null,null,"",null,null,""]
[null,null,"",null,null,"",null,null,""]
[null,null,"",null,null,"",null,null,""]
[null,null,"",null,null,"",null,null,""]
[null,null,"",null,null,"",null,null,""]
[null,null,"",null,null,"",null,null,""]
[null,null,"",null,null,"",null,null,""]
[null,null,"",null,null,"",null,null,""]
[null,null,"",null,null,"",null,null,""]
[null,null,"",null,null,"",null,null,""]
[null,null,"",null,null,"",null,null,""]
[null,null,"",null,null,"",null,null,""]
[null,null,"",null,null,"",null,null,""]
[null,null,"",null,null,"",null,null,""]
[null,null,"",null,null,"",null,null,""]
[null,null,"",null,null,"",null,null,""]
[null,null,"",null,null,"",null,null,""]
[null,null,"",null,null,"",null,null,""]
[null,null,"",null,null,"",null,null,""]
[null,null,"",null,null,"",null,null,""]
[null,null,"",null,null,"",null,null,""]
[null,null,"",null,null,"",null,null,""]
[null,null,"",null,null,"",null,null,""]
[null,null,"",null,null,"",null,null,""]
[null,null,"",null,null,"",null,null,""]
[null,null,"",null,null,"",null,null,""]
[null,null,"",null,null,"",null,null,""]
[null,null,"",null,null,"",null,null,""]
[null,null,"",null,null,"",null,null,""]
[null,null,"",null,null,"",null,null,""]
[null,null,"",null,null,"",null,null,""]
[null,null,"",null,null,"",null,null,""]
[null,null,"",null,null,"",null,null,""]
[null,null,"",null,null,"",null,null,""]
[null,null,"",null,null,"",null,null,""]
[null,null,"",null,null,"",null,null,""]
[null,null,"",null,null,"",null,null,""]
[null,null,"",null,null,"",null,null,""]
[null,null,"",null,null,"",null,null,""]
[null,null,"",null,null,"",null,null,""]
[null,null,"",null,null,"",null,null,""]
[null,null,"",null,null,"",null,null,""]
[null,null,"",null,null,"",null,null,""]
["더 이상 입력불가",null,null,"더 이상 입력불가",null,null,"더 이상 입력불가"]

{"sheet":"TranslatedLanguages","index":6,"n_rows":583,"n_cols":6,"rows_kept":583,"cut":false,"hidden":true,"merged":[]}
["Reserved","Text Index","Description","English","Korean","Custom"]
["F",1,"reserved index","* Currently we support only English and Korean as user interface (UI) languages at XLGantt. If you want to use another language as your UI language, add it using the \"Add Languages\" menu. Add a translation for each language in the \"TranslatedLanguages\" sheet. (The TranslatedLanguages sheet is hidden. You can unhide it on the sheet menu.) If you do not add the translation, English is used as the UI language.","* 현재 XLGantt는 영어와 한국어만 지원합니다. 다른 언어가 필요하면  아래 \"언어추가\"에서 다른 언어를 추가하고 TranslatedLanguages sheet에 각 언어별로 번역을 추가해야 합니다. 번역을 추가하지 않으면 기본언어인 영어로 표시됩니다(TranslatedLanguages sheet는 숨겨져 있음,Sheet메뉴에서 숨기기 취소하면 볼 수 있음)","* 현재 XLGantt는 영어와 한국어만 지원합니다. 다른 언어가 필요하면  아래 \"언어추가\"에서 다른 언어를 추가하고 TranslatedLanguages sheet에 각 언어별로 번역을 추가해야 합니다. 번역을 추가하지 않으면 기본언어인 영어로 표시됩니다(TranslatedLanguages sheet는 숨겨져 있음,Sheet메뉴에서 숨기기 취소하면 볼 수 있음)"]
[600,2,"reserved index","Please enter nonworking days only. All days other than nonworking days will be set as working days. \\nWhen you enter nonworking days, XLGantt excludes them from calculations of working time.\\n(However, depending on the calendar setting in the Options window, the calculation method of the nonworking day can be different)\\nStandard calendar is the default calendar. If you want to specify a different calendar for a specific task, please use \"User Defined Calendar 1\" or \"User Defined Calendar 2\"","여기에는 프로젝트의 휴무일만 입력하세요.휴무일을 제외한 날짜는 근무일자로 설정됩니다. \\n휴무일을 입력해야 작업기간 계산시 반영합니다. 입력한 일자만큼 작업기간에서 제외합니다.\\n(단, 옵션창의 캘린더 설정에 따라 휴무일계산방법은 달라질 수 있습니다.)\\n표준캘린더는 기본으로 적용되는 캘린더이며 특정 작업에 다른 캘린더를 지정하고 싶으면 \"사용자정의 캘린더1\", \"사용자정의 캘린더2\"에 휴무일을 지정하여 사용합니다.","여기에는 프로젝트의 휴무일만 입력하세요.휴무일을 제외한 날짜는 근무일자로 설정됩니다. \\n휴무일을 입력해야 작업기간 계산시 반영합니다. 입력한 일자만큼 작업기간에서 제외합니다.\\n(단, 옵션창의 캘린더 설정에 따라 휴무일계산방법은 달라질 수 있습니다.)\\n표준캘린더는 기본으로 적용되는 캘린더이며 특정 작업에 다른 캘린더를 지정하고 싶으면 \"사용자정의 캘린더1\", \"사용자정의 캘린더2\"에 휴무일을 지정하여 사용합니다."]
[null,3,"reserved index","The earliest start date({1}) of the tasks is earlier than the start date({2}) of the project.\\n\\nThe latest finish date({3}) of the tasks is later than the finish date({4}) of the project.\\n\\nIn this case, there may be problems with resource calculations. Please change the start date and finish date to valid date.","가장 빠른 작업의 시작일({1})이 프로젝트 시작일({2})보다 더 빠릅니다.\\n\\n가장 늦은 완료일({3})이 프로젝트 기간정보의 완료일({4})보다 더 늦습니다.\\n\\n이 경우 리소스 계산등에 문제가 있을 수 있습니다. 시작일,완료일을 환경설정메뉴의 프로젝트 기간내로 조정하거나 프로젝트 기간을 조정하시기 바랍니다.","가장 빠른 작업의 시작일({1})이 프로젝트 시작일({2})보다 더 빠릅니다.\\n\\n가장 늦은 완료일({3})이 프로젝트 기간정보의 완료일({4})보다 더 늦습니다.\\n\\n이 경우 리소스 계산등에 문제가 있을 수 있습니다. 시작일,완료일을 환경설정메뉴의 프로젝트 기간내로 조정하거나 프로젝트 기간을 조정하시기 바랍니다."]
[null,4,"reserved index","Error! Cause may be one of the following.\\n * File is invalid(e.g. the Excel file corrupted)\\n * Data format is invalid(First row:title, from second row:contents or XLGantt file is valid)\\n * If you cancel to open the file that is already opened\\n\\n Please check the messages below for details.","작업 중 에러가 발생했습니다. 원인은 다음 중 하나일 수 있습니다.\\n - 파일이 비정상적인 경우(엑셀파일이 손상된 경우 등)\\n - 자료 포맷이 틀린 경우(1행에 제목, 2행부터 내용이 들어가 있는 포맷 또는 XLGantt 파일만 허용)\\n - 이미 열려있는 파일을 또 열다가 취소하는 경우\\n\\n 자세한 원인은 아래의 메시지를 확인하시기 바랍니다.","작업 중 에러가 발생했습니다. 원인은 다음 중 하나일 수 있습니다.\\n - 파일이 비정상적인 경우(엑셀파일이 손상된 경우 등)\\n - 자료 포맷이 틀린 경우(1행에 제목, 2행부터 내용이 들어가 있는 포맷 또는 XLGantt 파일만 허용)\\n - 이미 열려있는 파일을 또 열다가 취소하는 경우\\n\\n 자세한 원인은 아래의 메시지를 확인하시기 바랍니다."]
[null,5,"reserved index","* You can import  files created in XLGantt.\r\n* You can import files if the version is 0.9.7 or higher than 0.9.7\r\n* You can import up to 10,000 records.\r\n* You can import multiple files simultaneously.","* 가져올 파일이 XLGantt로 작성된 경우만 가능\r\n\\n* XLGantt의 버전이 0.9.7 이상인 경우만 가능\\n* 자료의 갯수는 10,000개 이하까지만 처리됨\r\n\\n* 여러개의 파일 동시처리 가능\r\n","* 가져올 파일이 XLGantt로 작성된 경우만 가능\r\n\\n* XLGantt의 버전이 0.9.7 이상인 경우만 가능\\n* 자료의 갯수는 10,000개 이하까지만 처리됨\r\n\\n* 여러개의 파일 동시처리 가능\r\n"]
[null,6,"reserved index","Project duration is too long. The earliest start date is {1} and the latest finish date is {2}, so the project duration is {3} days. The maximum number of days allowed in XLGantt is {4} days. Reduce the project duration to within the limits allowed by XLGantt.","프로젝트 기간이 너무 깁니다. 가장 빠른 시작일자는 {1}이고 가장 늦은 완료일자는 {2}이므로 프로젝트 기간은 {3}일입니다. XLGantt에서 허용되는 최대일수는 {4}일입니다. 프로젝트 기간을 XLGantt에서 허용하는 범위내로 줄이십시오.","프로젝트 기간이 너무 깁니다. 가장 빠른 시작일자는 {1}이고 가장 늦은 완료일자는 {2}이므로 프로젝트 기간은 {3}일입니다. XLGantt에서 허용되는 최대일수는 {4}일입니다. 프로젝트 기간을 XLGantt에서 허용하는 범위내로 줄이십시오."]
[null,7,"reserved index","Saturdays, Sundays and the dates entered in the Calendar sheet\r","토요일,일요일 및 Calendar sheet에 입력된 날짜\r","토요일,일요일 및 Calendar sheet에 입력된 날짜\r"]
[null,8,"reserved index, for help sheet","XLGantt is a program designed to enable project scheduling in Microsoft Excel. It is composed of the following features. You don't need to install this program because it is a Excel macro file. You just download this file, save it to a folder, and open it in Excel.","엑셀간트(XLGantt)는 마이크로소프트 엑셀에서 프로젝트 일정관리를 할 수 있도록 만들어진 프로그램이며 아래와 같은 기능으로 구성되어 있다. 엑셀 VBA로 작성된 매크로 프로그램이므로 설치가 필요없고 매크로 파일만 실행하면 된다.","엑셀간트(XLGantt)는 마이크로소프트 엑셀에서 프로젝트 일정관리를 할 수 있도록 만들어진 프로그램이며 아래와 같은 기능으로 구성되어 있다. 엑셀 VBA로 작성된 매크로 프로그램이므로 설치가 필요없고 매크로 파일만 실행하면 된다."]
[null,9,"reserved index, for help sheet","Currently we support only English and Korean as user interface(UI) language at XLGantt. Since the program code and the resource file for multiple languages ​​are separated, it is possible to add multiple languages ​​without modifying the program.","엑셀간트는 다국어를 지원하는데 프로그램을 수정하지 않고 여러 다국어를 추가할 수 있다. 현재는 한국어, 영어 2개 국어가 추가되어 있다.","엑셀간트는 다국어를 지원하는데 프로그램을 수정하지 않고 여러 다국어를 추가할 수 있다. 현재는 한국어, 영어 2개 국어가 추가되어 있다."]
[null,10,"reserved index, for help sheet","When you enter nonworking days, XLGantt excludes them from calculations of working time. Standard calendar is the default calendar. If you want to specify a different calendar for a specific task, please use \"User Defined Calendar 1\" or \"User Defined Calendar 2\".","한주의 시작요일 지정, 휴무일 설정, 주차표시 기능을 제공한다.\n리본메뉴 > XLGantt – Project Scheduler > 옵션 > “Calendar” 탭에서 설정할 수 있다.","한주의 시작요일 지정, 휴무일 설정, 주차표시 기능을 제공한다.\n리본메뉴 > XLGantt – Project Scheduler > 옵션 > “Calendar” 탭에서 설정할 수 있다."]
[null,11,"reserved index, for help sheet","You can use this feature if you want to see the server's schedule data. If you put the schedule data on the Server into the ServerData sheet and download the XLGantt file and open the XLGantt file, the data comes into the Schedule sheet.","Server가 별도로 존재하는 IT시스템의 일정관리 데이터를 PC에서 보고자할 때 Server에서 일정관리 데이터를 ServerData 시트에 넣은 후 파일을 다운로드하고 XLGantt 파일을 열면 이 데이터가 Schedule 시트로 들어온다. 서버에서 작업연결정보를 내려주면 작업을 연결해서 보여준다.","Server가 별도로 존재하는 IT시스템의 일정관리 데이터를 PC에서 보고자할 때 Server에서 일정관리 데이터를 ServerData 시트에 넣은 후 파일을 다운로드하고 XLGantt 파일을 열면 이 데이터가 Schedule 시트로 들어온다. 서버에서 작업연결정보를 내려주면 작업을 연결해서 보여준다."]
[null,12,"reserved index, for help sheet","This “Program” is free software developed and distributed by xlworks.net. This program is free to use anywhere, anytime including personal / business / government / school. This Software is protected by copyright laws and other intellectual property laws and international treaties and may not be modified, reverse engineered, decompiled, disassembled, or made part of other software.","본 “소프트웨어”는 xlworks.net에서 개발하고 배포하는 무료 소프트웨어(Freeware)입니다. 이 프로그램은 개인/기업/관공서/학교 등 언제나 어디서나 무료로 사용이 가능합니다. 본 “소프트웨어”는 저작권법과 기타 지적재산권 관련 법률 및 국제 협약에 의해 보호를 받고 있으며, 본 “소프트웨어＂를 개작하거나 리버스 엔지니어링, 디컴파일, 디스어셈블, 다른 소프트웨어의 일부분으로 포함하여 제작 할 수 없습니다.","본 “소프트웨어”는 xlworks.net에서 개발하고 배포하는 무료 소프트웨어(Freeware)입니다. 이 프로그램은 개인/기업/관공서/학교 등 언제나 어디서나 무료로 사용이 가능합니다. 본 “소프트웨어”는 저작권법과 기타 지적재산권 관련 법률 및 국제 협약에 의해 보호를 받고 있으며, 본 “소프트웨어＂를 개작하거나 리버스 엔지니어링, 디컴파일, 디스어셈블, 다른 소프트웨어의 일부분으로 포함하여 제작 할 수 없습니다."]
[null,101,null,"              From                      To"," Source필드 명       Target필드 명"," Source필드 명       Target필드 명"]
[null,102,null,"           Field Name         Example"," 필드 명                값 예시"," 필드 명                값 예시"]
[null,103,null,"       Field Name           Field Value"," 필드 명                필드 값"," 필드 명                필드 값"]
[null,104,null," Mapped"," Mapping된 상태"," Mapping된 상태"]
[null,105,null," Setting nonworking days in the project calendar"," 프로젝트 휴무일 Calendar 설정"," 프로젝트 휴무일 Calendar 설정"]
[null,106,null,"\"%Work Complete\" is invalid. Type a number between 0% and 100%.","실적진척율은 0~100% 범위만 입력가능합니다.","실적진척율은 0~100% 범위만 입력가능합니다."]
[null,107,null,"\"Outline level\"(task Level) field. It displays the level of a task.Instead of \"Outline level\", you can use \"WBS\".","개요수준(작업Level)필드입니다. 작업의 Level을 표시합니다. 예를 들어 2 Level의 작업이면 숫자 2로 표시됩니다. 개요수준대신 WBS필드(1.3.2 등의 형식으로 표시)를 사용하기도 합니다.","개요수준(작업Level)필드입니다. 작업의 Level을 표시합니다. 예를 들어 2 Level의 작업이면 숫자 2로 표시됩니다. 개요수준대신 WBS필드(1.3.2 등의 형식으로 표시)를 사용하기도 합니다."]
[null,108,null,"\"WBS\"(Work Breakdown Structure) field. It displays the level of a task. Instead of WBS, you can use \"Outline level\".","WBS(Work Breakdown Structure) 필드입니다. 작업의 Level을 표시합니다. 1.3.2 등의 형식으로 표시됩니다. WBS대신 개요수준(작업Level)필드를 사용하기도 합니다. 예를 들어 2 Level의 작업이면 숫자 2로 표시됩니다.","WBS(Work Breakdown Structure) 필드입니다. 작업의 Level을 표시합니다. 1.3.2 등의 형식으로 표시됩니다. WBS대신 개요수준(작업Level)필드를 사용하기도 합니다. 예를 들어 2 Level의 작업이면 숫자 2로 표시됩니다."]
[null,109,null,"%Work Complete","실적진척율","실적진척율"]
[null,110,null,"%Work Complete(B)","실적 진척율(B)","실적 진척율(B)"]
[null,111,null,"%Work Complete(C/A)","실적(C/A)","실적(C/A)"]
[null,112,"for import columun","%Work__Complete","실적","실적"]
[null,113,null,"%Work\\nComplete","실적","실적"]
[null,114,"for help sheet","(Hidden sheet) Contains language-specific translations.","(숨겨진 시트) 언어별 번역이 들어 있다.","(숨겨진 시트) 언어별 번역이 들어 있다."]
[null,115,null,"(Resources unspecified)","(담당자미지정)","(담당자미지정)"]
[null,116,null,"* Automactically calulated if you click the \"Update Schedule\" button","* \"스케줄업데이트\" 버튼 클릭 시 아래 항목이 자동계산됩니다.","* \"스케줄업데이트\" 버튼 클릭 시 아래 항목이 자동계산됩니다."]
[null,117,null,"* Choose a language","* 언어를 선택하세요","* 언어를 선택하세요"]
[null,118,null,"* Common Excel file, Not XLGantt file\\n   (First row is title,from second rows are contents)\\n* You can import only one file at once.","* XLGantt 파일이 아닌 Excel파일(1행은 제목, 2행부터 내용이 있는 파일)\\n* 자료갯수 제한 없음\\n* 한번에 한개의 파일만 처리됨","* XLGantt 파일이 아닌 Excel파일(1행은 제목, 2행부터 내용이 있는 파일)\\n* 자료갯수 제한 없음\\n* 한번에 한개의 파일만 처리됨"]
[null,119,null,"* This sheet shows you project progresses by months.","* 월별로 프로젝트 진적율을 보여줍니다.","* 월별로 프로젝트 진적율을 보여줍니다."]
[null,120,null,"* This sheet shows you project progresses by weeks.","* 주별로 프로젝트 진적율을 보여줍니다.","* 주별로 프로젝트 진적율을 보여줍니다."]
[null,121,null,"* This sheet shows you tasks, workloads, progresses(%Work complete), etc by resources.","* 담당별로 투입된 Task와 총작업량, 계획작업량, 진척작업을 Man-day로 보여주고, 계획/실적 진행율을 보여줍니다.","* 담당별로 투입된 Task와 총작업량, 계획작업량, 진척작업을 Man-day로 보여주고, 계획/실적 진행율을 보여줍니다."]
[null,122,null,"* This sheet shows you workload allocations by resources.","* 담당별 Workload를 보여줍니다.","* 담당별 Workload를 보여줍니다."]
[null,123,null,"* This sheet shows you workload allocations by weeks or months.","* 주별 또는 월별 Workload를 보여줍니다.","* 주별 또는 월별 Workload를 보여줍니다."]
[null,124,null,"* This sheet shows you workload and %Work complete.","* 프로젝트 작업량과 진척율을 보여줍니다.","* 프로젝트 작업량과 진척율을 보여줍니다."]
[null,125,null,"* You need to click the \"Progress by Months\" button to update the contents.","* \"진척율(월별)\" 메뉴를 클릭해야 갱신됨","* \"진척율(월별)\" 메뉴를 클릭해야 갱신됨"]
[null,126,null,"* You need to click the \"Progress by Weeks\" button to update the contents.","* \"진척율(주별)\" 메뉴를 클릭해야 갱신됨","* \"진척율(주별)\" 메뉴를 클릭해야 갱신됨"]
[null,127,null,"* You need to click the \"Progresses by Resources\" button to update contents.","* \"담당별진행율\" 메뉴를 클릭해야 내용이 갱신됩니다.","* \"담당별진행율\" 메뉴를 클릭해야 내용이 갱신됩니다."]
[null,128,null,"* You need to click the \"Workloads by Resources\" button to update the contents.","* \"Workload(담당별)\" 메뉴를 클릭해야 내용이 갱신됩니다.","* \"Workload(담당별)\" 메뉴를 클릭해야 내용이 갱신됩니다."]
[null,129,null,"* You need to click the \"Workloads by Weeks\" or \"Workloads by Months\" button to update the contents.","* \"Workload(주별)\" 또는 \"Workload(월별)\" 메뉴를 클릭해야 내용이 갱신됩니다.","* \"Workload(주별)\" 또는 \"Workload(월별)\" 메뉴를 클릭해야 내용이 갱신됩니다."]
[null,130,null,"{} \"Outlook Appointment(s)\" have been added.","Outlook일정이 {}건 등록되었습니다.","Outlook일정이 {}건 등록되었습니다."]
[null,131,null,"{} \"Outlook Task(s)\" have been added.","Outlook작업이 {}건 등록되었습니다.","Outlook작업이 {}건 등록되었습니다."]
[null,132,null,"{} file does not exist.","{} 파일이 존재하지 않습니다","{} 파일이 존재하지 않습니다"]
[null,133,null,"<< Remove","<< 제거","<< 제거"]
[null,134,null,"<< Unmap","<< Mapping취소","<< Mapping취소"]
[null,135,null,"12/1/2018","2018-12-01","2018-12-01"]
[null,136,null,"12/31/2018","2018-12-31","2018-12-31"]
[null,137,null,"About","About","About"]
[null,138,null,"Accumulated\\nMan-Day","누적\\nMan-Day","누적\\nMan-Day"]
[null,139,"manual input","Actual","실적","실적"]
[null,140,null,"Actual %Complete is invalid. Enter a number only. Verify row {} of the source file.","실적진척율에 숫자가 아닌 값이 포함되어 있습니다. Import하는 파일의 {}행을 확인하세요.","실적진척율에 숫자가 아닌 값이 포함되어 있습니다. Import하는 파일의 {}행을 확인하세요."]
[null,141,null,"Actual %Work Complete from the start date to the current date","현재날짜까지 실제로 진행된 진척율, WBS의 \"실적진척율\"의 전체 합계 진척율을 표시함","현재날짜까지 실제로 진행된 진척율, WBS의 \"실적진척율\"의 전체 합계 진척율을 표시함"]
[null,142,null,"Actual Accumulated\\nMan-Day","실제 누적\\nMan-Day","실제 누적\\nMan-Day"]
[null,143,"for importOnStartup","Actual Finish","실제완료일","실제완료일"]
[null,144,null,"Actual Finish Date","실제완료일자","실제완료일자"]
[null,145,null,"Actual finish date field of a task. It must be in date format.","각 작업의 실제완료일(또는 실제종료일)을 표시합니다. 반드시 날짜 형식이어야 합니다.","각 작업의 실제완료일(또는 실제종료일)을 표시합니다. 반드시 날짜 형식이어야 합니다."]
[null,146,null,"Actual finish date is invalid.","실제완료일의 날짜형식이 잘못되었습니다.","실제완료일의 날짜형식이 잘못되었습니다."]
[null,147,null,"Actual finish date is invalid. Verify row {} of the source file.","실제완료일자에 날짜가 아닌 값이 포함되어 있습니다. Import하는 파일의 {}행을 확인하세요.","실제완료일자에 날짜가 아닌 값이 포함되어 있습니다. Import하는 파일의 {}행을 확인하세요."]
[null,148,null,"Actual Man-Day","실제 Man-Day","실제 Man-Day"]
[null,149,null,"Actual Progress","실제진척율","실제진척율"]
[null,150,null,"Actual progress rate(%Work Complete) field.","실제진척율 필드입니다. 현재까지 실제 진척된 작업량을 %로 표현합니다.","실제진척율 필드입니다. 현재까지 실제 진척된 작업량을 %로 표현합니다."]
[null,151,"for importOnStartup","Actual Start","실제시작일","실제시작일"]
[null,152,null,"Actual Start Date","실제시작일자","실제시작일자"]
[null,153,null,"Actual start date field of a task. It must be in date format.","각 작업의 실제시작일을 표시합니다. 반드시 날짜 형식이어야 합니다.","각 작업의 실제시작일을 표시합니다. 반드시 날짜 형식이어야 합니다."]
[null,154,null,"Actual start date is invalid.","실제시작일의 날짜형식이 잘못되었습니다.","실제시작일의 날짜형식이 잘못되었습니다."]
[null,155,null,"Actual start date is invalid. Verify row {} of the source file.","실제시작일자에 날짜가 아닌 값이 포함되어 있습니다. Import하는 파일의 {}행을 확인하세요.","실제시작일자에 날짜가 아닌 값이 포함되어 있습니다. Import하는 파일의 {}행을 확인하세요."]
[null,156,"for importOnStartup","Actual Total Duration","실제총기간","실제총기간"]
[null,157,"for importOnStartup","Actual Total Work","실제총작업량","실제총작업량"]
[null,158,null,"Actual Total Work\\nMan-day","실제 총작업량\\nMan-day","실제 총작업량\\nMan-day"]
[null,159,"for import columun","Actual Total__Duration","실제 총기간__(전체 기간)","실제 총기간__(전체 기간)"]
[null,160,null,"Actual Total\\nDuration","실제\\n총기간","실제\\n총기간"]
[null,161,null,"Actual Total\\nWork(Total\\nManDay)","실제 총작업량\\n(총ManDay,\r가중치 감안)","실제 총작업량\\n(총ManDay,\r가중치 감안)"]
[null,162,null,"Actual Workload Accumulated(Man-Day)","실제작업량 누적(Man-Day)","실제작업량 누적(Man-Day)"]
[null,163,null,"Actual Workload Progress","실제작업량 진척율","실제작업량 진척율"]
[null,164,null,"Actual Workload(Man-Day)","실제작업량(Man-Day)","실제작업량(Man-Day)"]
[null,165,"for import columun","Actual__Finish","실제__완료일","실제__완료일"]
[null,166,"for import columun","Actual__Start","실제__시작일","실제__시작일"]
[null,167,"for import columun","Actual__Total Duration","실제__총기간","실제__총기간"]
[null,168,"for import columun","Actual__Total Work","실제__총작업량","실제__총작업량"]
[null,169,null,"Actual\\nFinish","실제\\n완료일","실제\\n완료일"]
[null,170,null,"Actual\\nStart","실제\\n시작일","실제\\n시작일"]
[null,171,null,"Actual\\nStart-Finish","실제\r\\n시작일-완료일","실제\r\\n시작일-완료일"]
[null,172,null,"Actual\\nTotal Duration","실제\\n총기간","실제\\n총기간"]
[null,173,null,"Actual\\nTotal Work","실제\\n총작업량","실제\\n총작업량"]
[null,174,null,"Actually performed workload","실제 투입된 작업량","실제 투입된 작업량"]
[null,175,null,"Actually Performed workload when managing schedule changes","일정변경 관리할 때 현재까지 실제로 투입된 작업기간을 표시함","일정변경 관리할 때 현재까지 실제로 투입된 작업기간을 표시함"]
[null,176,null,"Actually performed workload when not managing schedule changes(Total Duration x %Work Complete)","일정변경관리 하지 않을 때 현재까지 실제로 진행된 작업기간을 표시함(총기간 x 총실적진행율)","일정변경관리 하지 않을 때 현재까지 실제로 진행된 작업기간을 표시함(총기간 x 총실적진행율)"]
[null,177,null,"Add >>","추가 >>","추가 >>"]
[null,178,null,"Add Languages","언어 추가","언어 추가"]
[null,179,null,"Add to MS Outlook Calendar","MS Outlook일정 등록","MS Outlook일정 등록"]
[null,180,null,"Add to MS Outlook Task","MS Outlook작업 등록","MS Outlook작업 등록"]
[null,181,"for help sheet","Adding Tasks to Microsoft Outlook Calendar","Microsoft Outlook작업, 일정등록","Microsoft Outlook작업, 일정등록"]
[null,182,"for help sheet","Adds tasks to the Outlook calendar(You must have Microsoft Outlook installed on your PC).","엑셀간트에서는 Schedule시트에 입력되어 있는 작업을 Microsoft Outlook에 작업이나 일정으로 등록할 수 있는 기능을 제공한다(단, PC에 Microsoft Outlook이 설치되어 있어야 한다).","엑셀간트에서는 Schedule시트에 입력되어 있는 작업을 Microsoft Outlook에 작업이나 일정으로 등록할 수 있는 기능을 제공한다(단, PC에 Microsoft Outlook이 설치되어 있어야 한다)."]
[null,183,null,"After turning off filtering, we'll proceed.","필터를 해제하고 작업을 진행합니다.","필터를 해제하고 작업을 진행합니다."]
[null,184,null,"Ahead of schedule","계획대비 빠름","계획대비 빠름"]
[null,185,null,"All tasks","전체 조회(필터 해제)","전체 조회(필터 해제)"]
[null,186,null,"An error occurred while checking for updates. Please try again \\nError Message: {}","최신버전 확인 중 에러가 발생했습니다. 잠시 후 다시 시도하세요.\\n에러메시지 : {}","최신버전 확인 중 에러가 발생했습니다. 잠시 후 다시 시도하세요.\\n에러메시지 : {}"]
[null,187,null,"An error occurred while checking XLGantt cell formats. Please restart XLGantt.","서식check 중 에러가 발생하였습니다. XLGantt를 종료하고 다시 시작하십시오.","서식check 중 에러가 발생하였습니다. XLGantt를 종료하고 다시 시작하십시오."]
[null,188,null,"An error occurred while processing. Please check the messages below.","처리 중 에러가 발생했습니다. 아래의 메시지를 확인하십시오.","처리 중 에러가 발생했습니다. 아래의 메시지를 확인하십시오."]
[null,189,null,"Analysis","분석","분석"]
[null,190,"for help sheet","Analysis report","분석 리포트","분석 리포트"]
[null,191,null,"Appearance","모양","모양"]
[null,192,null,"Automatic","자동","자동"]
[null,193,null,"Automatic Except for Data Tables","데이터 표만 수동","데이터 표만 수동"]
[null,194,null,"Automatically defined","자동지정","자동지정"]
[null,195,null,"Available Languages","추가 가능한 언어","추가 가능한 언어"]
[null,196,null,"Bar chart Text Display Position","Bar chart의 텍스트 표시 위치","Bar chart의 텍스트 표시 위치"]
[null,197,null,"Because the following task already has been added, XLGantt does not add it to \"Outlook\".\\n\\nTask Name : {1} \\nDue Date : {2}","다음 작업은 이미 등록되어 있으므로 등록하지 않습니다.\\n\\n작업명 : {1} \\n기한 : {2}","다음 작업은 이미 등록되어 있으므로 등록하지 않습니다.\\n\\n작업명 : {1} \\n기한 : {2}"]
[null,198,null,"Because the following task already has been added, XLGantt does not add it to \"Outlook\".\\n\\nTask Name : {1} \\nStart Date : {2}","다음 작업은 이미 등록되어 있으므로 등록하지 않습니다.\\n\\n작업명 : {1} \\n시작일 : {2}","다음 작업은 이미 등록되어 있으므로 등록하지 않습니다.\\n\\n작업명 : {1} \\n시작일 : {2}"]
[null,199,null,"Behind schedule","일정 지연","일정 지연"]
[null,200,null,"blabla","...","..."]
[null,201,null,"Black & White","흑백","흑백"]
[null,202,null,"By %Work Complete","완료율","완료율"]
[null,203,null,"By Duration","기간","기간"]
[null,204,null,"By Resource","담당","담당"]
[null,205,null,"by Resource Allocation Ratio","자원배정비율로 계산","자원배정비율로 계산"]
[null,206,null,"by Weight","가중치로 계산","가중치로 계산"]
[null,207,null,"Calculation Base Date of Planned %Work Complete","계획진척율 계산 기준일자","계획진척율 계산 기준일자"]
[null,208,null,"Calculation Base Date of Planned %Work Complete must be greater than or equal to project start date.","계획진척율 계산 기준일자는 프로젝트 시작일보다 크거나 같아야 합니다.","계획진척율 계산 기준일자는 프로젝트 시작일보다 크거나 같아야 합니다."]
[null,209,null,"Calculation Base Date of Planned %Work Complete must be less than or equal to project finish date.","계획진척율 계산 기준일자는 프로젝트 완료일보다 작거나 같아야 합니다.","계획진척율 계산 기준일자는 프로젝트 완료일보다 작거나 같아야 합니다."]
[null,210,null,"Calculation Options","계산 옵션","계산 옵션"]
[null,211,null,"Calendar","Calendar","Calendar"]
[null,212,null,"Cancel","취소","취소"]
[null,213,null,"Chart","차트","차트"]
[null,214,null,"Check for Updates","최신버전\\n확인","최신버전\\n확인"]
[null,215,null,"Check for Updates on Startup ","프로그램 시작 시 최신버전 확인","프로그램 시작 시 최신버전 확인"]
[null,216,null,"Check if you save deliverables in specific directory","산출물 관리를 할 경우에 체크하세요","산출물 관리를 할 경우에 체크하세요"]
[null,217,null,"Choose a file type to import","가져올 파일 종류 선택","가져올 파일 종류 선택"]
[null,218,null,"Choose a language used in XLGantt","XLGantt에서 사용할 언어 선택","XLGantt에서 사용할 언어 선택"]
[null,219,null,"Choose a language used in XLGantt.","XLGantt에서 사용할 언어를 선택하세요.","XLGantt에서 사용할 언어를 선택하세요."]
[null,220,null,"Choose a language.","언어를 선택하세요","언어를 선택하세요"]
[null,221,null,"Choose an import option.","가져오기 옵션을 선택하세요.","가져오기 옵션을 선택하세요."]
[null,222,null,"Choose directly","컴퓨터 O/S와 관계없이 직접 선택","컴퓨터 O/S와 관계없이 직접 선택"]
[null,223,null,"Choose the Type of Deliverables","산출물 종류를 선택하세요","산출물 종류를 선택하세요"]
[null,224,"for importOnStartup","Choose what to do after Importing Server Data","서버데이터 가져온 후 수행할 작업 선택","서버데이터 가져온 후 수행할 작업 선택"]
[null,225,null,"Close","닫기","닫기"]
[null,226,null,"Color Theme","컬러 테마","컬러 테마"]
[null,227,null,"Completed(=100%)","완료","완료"]
[null,228,null,"Contains","포함","포함"]
[null,229,null,"Create Workload Data by Months","Workload Data생성(월별)","Workload Data생성(월별)"]
[null,230,null,"Create Workload Data by Weeks","Workload Data생성(주별)","Workload Data생성(주별)"]
[null,231,null,"Current Version","현재 사용중인 버전","현재 사용중인 버전"]
[null,232,null,"Custom","사용자 정의","사용자 정의"]
[null,233,null,"Daily","일별","일별"]
[null,234,null,"Daily view","일별보기","일별보기"]
[null,235,null,"Days (Average number of working days per month)","일 (월평균 근무일수)","일 (월평균 근무일수)"]
[null,236,null,"Days counted as Nonworking days ","휴무일로 계산되는 날","휴무일로 계산되는 날"]
[null,237,null,"Default","기본","기본"]
[null,238,null,"Deliverables","산출물","산출물"]
[null,239,null,"Deliverables field.","산출물 필드입니다.","산출물 필드입니다."]
[null,240,null,"Deliverables type is not selected","산출물 종류가 선택되지 않았습니다","산출물 종류가 선택되지 않았습니다"]
[null,241,null,"Display  % Work Complete","실적진척율 표시","실적진척율 표시"]
[null,242,null,"Display date","날짜 표시","날짜 표시"]
[null,243,null,"Display date on the timescale","간트차트 눈금에 날짜 표시","간트차트 눈금에 날짜 표시"]
[null,244,null,"Display font color to gray for the completed tasks","완료된 작업의 폰트색상 회색표시","완료된 작업의 폰트색상 회색표시"]
[null,245,null,"Display interior color to gray for the task groups","작업그룹의 배경색 회색표시","작업그룹의 배경색 회색표시"]
[null,246,null,"Display Planned %Work Complete","계획진척율 표시","계획진척율 표시"]
[null,247,null,"Display project week number on the timescale","간트차트 눈금에 프로젝트 주차 표시","간트차트 눈금에 프로젝트 주차 표시"]
[null,248,null,"Display resource","담당 표시","담당 표시"]
[null,249,null,"Display task name ","작업명 표시","작업명 표시"]
[null,250,null,"Display the task name in the same field","같은 필드에 작업명 표시","같은 필드에 작업명 표시"]
[null,251,null,"Display the total workload of the project","프로젝트 전체의 작업량을 Man/Day로 표시한다. 가중치를 적용한 값이다.","프로젝트 전체의 작업량을 Man/Day로 표시한다. 가중치를 적용한 값이다."]
[null,252,null,"Display year on the timescale","간트차트 눈금에 년도 표시","간트차트 눈금에 년도 표시"]
[null,253,null,"Displayed in %Work complete column","실적 열에 표시됨","실적 열에 표시됨"]
[null,254,null,"Displays the task name in the different field for each level","Level별로 다른 필드에 작업명 표시","Level별로 다른 필드에 작업명 표시"]
[null,255,"for importOnStartup","Do not recalculate WBS area after import","가져오기 후 WBS영역 재계산 안함","가져오기 후 WBS영역 재계산 안함"]
[null,256,null,"Download the latest version","프로그램 최신버전 다운로드","프로그램 최신버전 다운로드"]
[null,257,null,"Drawing Gantt chart","Gantt chart 그리기 작업","Gantt chart 그리기 작업"]
[null,258,null,"Drawing progress line","진척율선 그리기","진척율선 그리기"]
[null,259,null,"Duration ","기간 지정","기간 지정"]
[null,260,null,"Earned Value Accumulated(Man-Day)","실적기성 누적(Man-Day)","실적기성 누적(Man-Day)"]
[null,261,null,"Earned value on planned schedule","실적기성","실적기성"]
[null,262,null,"Earned value on planned schedule when managing schedule changes(Total Duration x %Work Complete)","일정변경관리 할때 실적기성(총기간 x 총실적진행율)","일정변경관리 할때 실적기성(총기간 x 총실적진행율)"]
[null,263,null,"Earned value on planned schedule(Total Duration x %Work Complete)","실적기성(총기간 x 총실적진행율)","실적기성(총기간 x 총실적진행율)"]
[null,264,null,"Earned Value Progress","실적기성 진척율","실적기성 진척율"]
[null,265,null,"Earned Value(C)\\nMan-day","실적기성( C )\\nMan-day","실적기성( C )\\nMan-day"]
[null,266,null,"Earned Value(Man-Day)","실적기성(Man-Day)","실적기성(Man-Day)"]
[null,267,null,"Edit a Task","작업 정보","작업 정보"]
[null,268,null,"Elsa,John[50%]","홍길동,김길동[50%]","홍길동,김길동[50%]"]
[null,269,null,"Enabled Languages","사용할 수 있는 언어","사용할 수 있는 언어"]
[null,270,null,"Equals","같음","같음"]
[null,271,null,"Error! Calculated Total Man-Day is different from the Total Man-Day of the {} sheet.","오류! 계산된 Total Man-Day가 {} sheet의 Total Man-Day와 다릅니다.","오류! 계산된 Total Man-Day가 {} sheet의 Total Man-Day와 다릅니다."]
[null,272,null,"Error! Cause may be one of the following.\\n * File is invalid(e.g. the XLGantt file corrupted)\\n * Not XLGantt file but General Excel file\\n\\n Please check the messages below for details.","작업 중 에러가 발생했습니다. 원인은 다음 중 하나일 수 있습니다.\\n - 파일이 비정상적인 경우(XLGantt파일이 손상된 경우 등)\\n - XLGantt 파일이 아닌 일반 엑셀파일인 경우\\n\\n 자세한 원인은 아래의 메시지를 확인하시기 바랍니다.","작업 중 에러가 발생했습니다. 원인은 다음 중 하나일 수 있습니다.\\n - 파일이 비정상적인 경우(XLGantt파일이 손상된 경우 등)\\n - XLGantt 파일이 아닌 일반 엑셀파일인 경우\\n\\n 자세한 원인은 아래의 메시지를 확인하시기 바랍니다."]
[null,273,null,"Error, Invalid field specified.","오류, 지정할 수 없는 필드가 있습니다","오류, 지정할 수 없는 필드가 있습니다"]
[null,274,null,"Etc","기타","기타"]
[null,275,null,"Excel","엑셀","엑셀"]
[null,276,null,"Execution path of Program","프로그램 실행경로","프로그램 실행경로"]
[null,277,null,"Extension","확장자명","확장자명"]
[null,278,null,"Filter","필터 적용","필터 적용"]
[null,279,null,"Filter Task","작업 필터","작업 필터"]
[null,280,null,"Finish","완료일","완료일"]
[null,281,null,"Finish Date","완료일자","완료일자"]
[null,282,null,"Finish date field of a task. It must be in date format.","각 작업의 완료일(또는 종료일)을 표시합니다. 반드시 날짜 형식이어야 합니다.","각 작업의 완료일(또는 종료일)을 표시합니다. 반드시 날짜 형식이어야 합니다."]
[null,283,null,"Finish date is invalid.","작업완료일의 날짜형식이 잘못되었습니다.","작업완료일의 날짜형식이 잘못되었습니다."]
[null,284,null,"Finish date is invalid. Verify row {} of the source file.","완료일자에 날짜가 아닌 값이 포함되어 있습니다. Import하는 파일의 {}행을 확인하세요.","완료일자에 날짜가 아닌 값이 포함되어 있습니다. Import하는 파일의 {}행을 확인하세요."]
[null,285,null,"First day of week","한주의 시작요일","한주의 시작요일"]
[null,286,null,"Follow the language setting of your computer O/S","컴퓨터 O/S의 언어설정을 따름","컴퓨터 O/S의 언어설정을 따름"]
[null,287,null,"Fri","금","금"]
[null,288,null,"From (File to import )","Source파일(가져올 파일 )","Source파일(가져올 파일 )"]
[null,289,null,"From Date is invalid.","시작날짜 형식이 잘못되었습니다.","시작날짜 형식이 잘못되었습니다."]
[null,290,null,"Gantt Chart Display","Gantt chart표시 방법","Gantt chart표시 방법"]
[null,291,null,"Gantt chart group task bar","간트차트 그룹작업Bar","간트차트 그룹작업Bar"]
[null,292,null,"Gantt chart progress line","간트차트 진척율선","간트차트 진척율선"]
[null,293,null,"Gantt chart sub task bar","간트차트 하위작업Bar","간트차트 하위작업Bar"]
[null,294,null,"Gantt chart title","간트차트 타이틀","간트차트 타이틀"]
[null,295,null,"Gantt Chart View Style","Gantt Chart 보기 형식","Gantt Chart 보기 형식"]
[null,296,null,"Gantt Chart Zoom Ratio(Max 999%)","Gantt Chart 축소/확대 비율(최대 999%)","Gantt Chart 축소/확대 비율(최대 999%)"]
[null,297,null,"General","일반","일반"]
[null,298,"for help sheet","Getting Started With XLGantt","간단 사용법","간단 사용법"]
[null,299,null,"Green","그린","그린"]
[null,300,null,"Group rows","작업을 그룹으로 묶기","작업을 그룹으로 묶기"]
[null,301,null,"Group rows(Max 8 Levels)","작업을 그룹으로 묶기(최대 8 레벨)","작업을 그룹으로 묶기(최대 8 레벨)"]
[null,302,"for help sheet","Help","도움말","도움말"]
[null,303,"for help sheet","Help and the latest version","도움말, 최신 버전 다운로드","도움말, 최신 버전 다운로드"]
[null,304,"for help sheet","How to use","사용법","사용법"]
[null,305,"for help sheet","https://xlworks.net/en","https://xlworks.net","https://xlworks.net"]
[null,305,"for help sheet","https://xlworks.net/en/xlgantt-project-scheduler/","https://xlworks.net/xlgantt-project-scheduler/","https://xlworks.net/xlgantt-project-scheduler/"]
[null,306,"for help sheet","https://xlworks.net/en/xlgantt-howto-1-getting-started-with-xlgantt/","https://xlworks.net/xlgantt-easy-tip/","https://xlworks.net/xlgantt-easy-tip/"]
[null,307,"for help sheet","https://xlworks.net/en/xlgantt-howto-2-input-task-update-schedule/","https://xlworks.net/xlgantt-howto-02-task/","https://xlworks.net/xlgantt-howto-02-task/"]
[null,308,"for help sheet","https://xlworks.net/en/xlgantt-howto-03-gantt-chart/","https://xlworks.net/xlgantt-howto-03-gantt-chart/","https://xlworks.net/xlgantt-howto-03-gantt-chart/"]
[null,309,"for help sheet","https://xlworks.net/en/xlgantt-howto-04-project-progress/","https://xlworks.net/xlgantt-howto-04-project-progress/","https://xlworks.net/xlgantt-howto-04-project-progress/"]
[null,310,"for help sheet","https://xlworks.net/en/xlgantt-howto-05-analysis-report/","https://xlworks.net/xlgantt-howto-05-analysis-report/","https://xlworks.net/xlgantt-howto-05-analysis-report/"]
[null,311,"for help sheet","https://xlworks.net/en/xlgantt-howto-06-schedule-change-management/","https://xlworks.net/xlgantt-howto-06-schedule-change-management/","https://xlworks.net/xlgantt-howto-06-schedule-change-management/"]
[null,312,"for help sheet","https://xlworks.net/en/xlgantt-howto-07-deliverables/","https://xlworks.net/xlgantt-howto-07-deliverables/","https://xlworks.net/xlgantt-howto-07-deliverables/"]
[null,313,"for help sheet","https://xlworks.net/en/xlgantt-howto-08-add-tasks-to-outlook/","https://xlworks.net/xlgantt-howto-08-add-tasks-to-outlook/","https://xlworks.net/xlgantt-howto-08-add-tasks-to-outlook/"]
[null,314,"for help sheet","https://xlworks.net/en/xlgantt-howto-09-multilingual-support/","https://xlworks.net/xlgantt-howto-09-multilingual-support/","https://xlworks.net/xlgantt-howto-09-multilingual-support/"]
[null,315,"for help sheet","https://xlworks.net/en/xlgantt-howto-10-import-schedule/","https://xlworks.net/xlgantt-howto-10-import-schedule/","https://xlworks.net/xlgantt-howto-10-import-schedule/"]
[null,316,"for help sheet","https://xlworks.net/en/xlgantt-howto-11-calendar/","https://xlworks.net/xlgantt-howto-11-calendar/","https://xlworks.net/xlgantt-howto-11-calendar/"]
[null,317,"for help sheet","https://xlworks.net/en/xlgantt-howto-12-integration-with-excel/","https://xlworks.net/xlgantt-howto-12-integration-with-excel/","https://xlworks.net/xlgantt-howto-12-integration-with-excel/"]
[null,318,"for help sheet","https://xlworks.net/en/xlgantt-howto-13-server-data/","https://xlworks.net/xlgantt-howto-13-server-data/","https://xlworks.net/xlgantt-howto-13-server-data/"]
[null,319,null,"If the language in source file and the language in target file are different, you can not import.","가져오는 파일(소스파일)에 설정된 언어와 이 파일(타겟파일)에 설정된 언어가 다르면 Import할 수 없습니다.","가져오는 파일(소스파일)에 설정된 언어와 이 파일(타겟파일)에 설정된 언어가 다르면 Import할 수 없습니다."]
[null,320,null,"If you choose \"Assigning path by task name automatically\" option, you need to set the upper path.","작업명으로 하위 경로 자동지정을 선택한 경우에는 상위의 기본경로를 설정해야 합니다.","작업명으로 하위 경로 자동지정을 선택한 경우에는 상위의 기본경로를 설정해야 합니다."]
[null,321,null,"If you do not enter the actual finish date of row number {1} in the {2} sheet, you can't enter \"%Work Complete\" as 100%.","{2} sheet의 {1}행의 실제시작일만 입력하고 실제완료일을 비워놓으면 완료율을 100%로 입력할 수 없습니다.","{2} sheet의 {1}행의 실제시작일만 입력하고 실제완료일을 비워놓으면 완료율을 100%로 입력할 수 없습니다."]
[null,322,"for help sheet","If you want to learn the features quickly and easily, see the \"Getting Started With XLGantt\".","기능을 간단히 빨리 익히고 싶으면 “간단 사용법”을 참고한다","기능을 간단히 빨리 익히고 싶으면 “간단 사용법”을 참고한다"]
[null,323,null,"Import","가져오기","가져오기"]
[null,324,"for importOnStartup","Import  Data of \"ServerData\" sheet on Startup ","프로그램 시작 시 \"ServerData\" 시트의 데이터 가져오기","프로그램 시작 시 \"ServerData\" 시트의 데이터 가져오기"]
[null,325,null,"Import common Excel file","일반 Excel 파일","일반 Excel 파일"]
[null,326,null,"Import data after clearing the existing data","기존Data 지우고 가져오기","기존Data 지우고 가져오기"]
[null,327,null,"Import Data without Clearing the Existing Data","기존Data 아래에 추가하기","기존Data 아래에 추가하기"]
[null,328,"for importOnStartup","Import file format Error! Range A1 should contain \"xlgantt_reserved\" string.","가져오는 파일의 포맷이 잘못되었습니다. A1셀에는 \"xlgantt_reserved\"가 입력되어 있어야 합니다.","가져오는 파일의 포맷이 잘못되었습니다. A1셀에는 \"xlgantt_reserved\"가 입력되어 있어야 합니다."]
[null,329,"for importOnStartup","Import file format Error! Range A2 should contain the import result.","가져오는 파일의 포맷이 잘못되었습니다. A2셀에는 가져오기 결과가 입력되어 있어야 합니다.","가져오는 파일의 포맷이 잘못되었습니다. A2셀에는 가져오기 결과가 입력되어 있어야 합니다."]
[null,330,null,"Import files created in XLGantt","XLGantt로 작성된 파일 가져오기","XLGantt로 작성된 파일 가져오기"]
[null,331,"for importOnStartup","Import from Server","서버에서\\n가져오기","서버에서\\n가져오기"]
[null,332,"for importOnStartup","Import has already been completed.","가져오기가 이미 완료되었습니다.","가져오기가 이미 완료되었습니다."]
[null,333,null,"Import new data into the Schedule sheet after clearing the exisint data","이 XLGantt파일에 있는 Data를 지우고 새로운 Data를 가져와서 \r\n붙여 넣기","이 XLGantt파일에 있는 Data를 지우고 새로운 Data를 가져와서 \r\n붙여 넣기"]
[null,334,null,"Import new data into the Schedule sheet without clearing the existing  data","이 XLGantt파일에 있는 Data를 그대로 두고 맨 아래에 새로운 Data를 가져와서 붙여 넣기","이 XLGantt파일에 있는 Data를 그대로 두고 맨 아래에 새로운 Data를 가져와서 붙여 넣기"]
[null,335,null,"Import Option","가져오기 옵션","가져오기 옵션"]
[null,336,null,"Import success!\\nTotal rows of imported data : ","가져오기 작업이 정상적으로 완료되었습니다.\\n가져온 자료의 전체 행수 : ","가져오기 작업이 정상적으로 완료되었습니다.\\n가져온 자료의 전체 행수 : "]
[null,337,null,"Import without clearing the existing data.","기존Data에 추가하기","기존Data에 추가하기"]
[null,338,null,"Import Wizard","파일 가져오기","파일 가져오기"]
[null,339,"for help sheet","Importing Schedules from Another File","다른 파일에서 일정 가져오기","다른 파일에서 일정 가져오기"]
[null,340,"for help sheet","Importing Server Data","Server Data 가져오기","Server Data 가져오기"]
[null,341,null,"Importing..., Please wait...","자료를 가져옵니다. 잠시만 기다려주세요...","자료를 가져옵니다. 잠시만 기다려주세요..."]
[null,342,"for help sheet","Imports schedules into XLGantt. You can import the schedules by mapping the fields.","엑셀간트에서는 엑셀간트(XLGantt) 또는 일반 엑셀파일로 만들어진 일정을 가져오는 기능을 제공한다.","엑셀간트에서는 엑셀간트(XLGantt) 또는 일반 엑셀파일로 만들어진 일정을 가져오는 기능을 제공한다."]
[null,343,null,"Included in the selection\\nlist when deliverables\\nnot specified","산출물명 비었을때\\n선택목록에 포함\\n여부","산출물명 비었을때\\n선택목록에 포함\\n여부"]
[null,344,null,"Indent Task","작업레벨 내림","작업레벨 내림"]
[null,345,null,"Inside of the chart","Chart 내부","Chart 내부"]
[null,346,"for help sheet","Integration with Excel Features","Excel기능과 통합","Excel기능과 통합"]
[null,347,"for importOnStartup","Invalid field name!","필드명이 잘못되었습니다!","필드명이 잘못되었습니다!"]
[null,348,"for help sheet","It is used when you want to see schedule data of IT system where server exists separately.","Server가 별도로 존재하는 IT시스템의 일정관리 Data를 PC에서 보고자할 때 사용한다.","Server가 별도로 존재하는 IT시스템의 일정관리 Data를 PC에서 보고자할 때 사용한다."]
[null,349,null,"It recalculates duration and % Work Complete. Clicking the Save button will be the same."]
[null,350,null,"It's already chosen language.","이미 선택된 언어입니다.","이미 선택된 언어입니다."]
[null,351,null,"Job Results","작업결과","작업결과"]
[null,352,null,"John","홍길동","홍길동"]
[null,353,"for help sheet","Keeping track of project progress","프로젝트 전체 진행상황 파악하기","프로젝트 전체 진행상황 파악하기"]
[null,354,null,"Language","언어","언어"]
[null,355,null,"Left of the chart","Chart 왼쪽","Chart 왼쪽"]
[null,356,null,"License","라이선스","라이선스"]
[null,357,"for help sheet","Makes workload data by weekly and monthly. You can do analysis as you want by using Excel features such as pivot.","Workload data를 주별/월별로 만들어 준다. 피벗 등의 기능으로 사용자가 원하는대로 분석을 할 수 있다.","Workload data를 주별/월별로 만들어 준다. 피벗 등의 기능으로 사용자가 원하는대로 분석을 할 수 있다."]
[null,358,"for help sheet","Manages the planned schedule and actual schedule of the project.","엑셀간트에서는 “일정계획 변경관리”기능을 이용하여 작업의 실제시작일과 실제완료일을 입력할 수 있다. 실제 시작된 날짜와 실제 완료된 날짜를 입력하여 일정이 지연되고 있는 지, 일정이 계획보다 빠른 지 파악할 수 있다.","엑셀간트에서는 “일정계획 변경관리”기능을 이용하여 작업의 실제시작일과 실제완료일을 입력할 수 있다. 실제 시작된 날짜와 실제 완료된 날짜를 입력하여 일정이 지연되고 있는 지, 일정이 계획보다 빠른 지 파악할 수 있다."]
[null,359,null,"Managing Schedule Changes","일정변경 관리함(시작일/완료일, 실제시작일/실제완료일 사용)","일정변경 관리함(시작일/완료일, 실제시작일/실제완료일 사용)"]
[null,360,null,"Man-Day","Man-Day","Man-Day"]
[null,361,null,"Man-Month","Man-Month","Man-Month"]
[null,362,null,"Manual","수동","수동"]
[null,363,null,"Map >>","Mapping >>","Mapping >>"]
[null,364,null,"Mark task as milestone","작업을 마일스톤으로 지정","작업을 마일스톤으로 지정"]
[null,365,null,"mm/dd/yyyy","yyyy/mm/dd","yyyy/mm/dd"]
[null,366,null,"mmmm yyyy","yyyy년 m월","yyyy년 m월"]
[null,367,null,"Mon","월","월"]
[null,368,null,"Monthly","월별","월별"]
[null,369,null,"Monthly view","월별보기","월별보기"]
[null,370,null,"Months","월별","월별"]
[null,371,"for help sheet","Multilingual Support","다국어 지원","다국어 지원"]
[null,372,null,"Name of Nonworking Days","휴무일명","휴무일명"]
[null,373,null,"New Version","최신 버전","최신 버전"]
[null,374,null,"Next >>","다음 >>","다음 >>"]
[null,375,"for importOnStartup","No data to import.","가져올 데이터가 없습니다.","가져올 데이터가 없습니다."]
[null,376,null,"No need to enter in the Calendar sheet","Calendar sheet에 입력할 필요 없음","Calendar sheet에 입력할 필요 없음"]
[null,377,null,"No need to enter Saturdays and Sundays in the Calendar sheet","토요일,일요일은 Calendar sheet에 입력할 필요 없음","토요일,일요일은 Calendar sheet에 입력할 필요 없음"]
[null,378,"for Week Number","None","표시 안함","표시 안함"]
[null,379,null,"Nonworking Days","휴무일자","휴무일자"]
[null,380,null,"Not Completed(<>100%)","미완료","미완료"]
[null,381,null,"Not Managing Schedule Changes","일정변경 관리 안함(시작일/완료일만 사용)","일정변경 관리 안함(시작일/완료일만 사용)"]
[null,382,null,"Not Specified(Standard Calendar)","지정하지 않음(표준캘린더)","지정하지 않음(표준캘린더)"]
[null,383,null,"Note","비고","비고"]
[null,384,null,"Number of \"Task\" columns(Max 20)","\"작업\"열의 개수(최대 20개)","\"작업\"열의 개수(최대 20개)"]
[null,385,null,"Of the first two rows, at least one has been deleted. Please retry after changing the sheet to its previous state.","1~2행 중 한 행이 삭제되었습니다. 원래대로 복구한 후 작업하십시오.","1~2행 중 한 행이 삭제되었습니다. 원래대로 복구한 후 작업하십시오."]
[null,386,null,"On schedule","일정 준수","일정 준수"]
[null,387,null,"Once you choose \"Display the task name in the same field\" option, you should select a WBS No. or a WBS Level field.","\"같은 필드에 작업명 표시\" 옵션을 선택했으면 WBS No. 또는 개요수준(WBS Level) 필드 중 하나는 선택되어야 합니다","\"같은 필드에 작업명 표시\" 옵션을 선택했으면 WBS No. 또는 개요수준(WBS Level) 필드 중 하나는 선택되어야 합니다"]
[null,388,null,"Only Saturdays and Sundays","토요일,일요일만","토요일,일요일만"]
[null,389,null,"Only the dates entered in the Calendar sheet","Calendar sheet에 입력된 날짜만","Calendar sheet에 입력된 날짜만"]
[null,390,null,"Open Deliverables","산출물 열기","산출물 열기"]
[null,391,null,"Open Deliverables Folder","산출물 폴더 열기","산출물 폴더 열기"]
[null,392,null,"Options","옵션","옵션"]
[null,393,null,"Outdent Task","작업레벨 올림","작업레벨 올림"]
[null,394,null,"Outline Level","개요수준","개요수준"]
[null,395,null,"Percent ","퍼센트 지정","퍼센트 지정"]
[null,396,null,"Pick a Date","날짜 선택","날짜 선택"]
[null,397,"manual input","Plan","계획","계획"]
[null,398,"for importOnStartup","Planned %Work Complete","계획진척율","계획진척율"]
[null,399,null,"Planned %Work Complete calculation base date","계획진척율 계산 기준일자","계획진척율 계산 기준일자"]
[null,400,null,"Planned %Work Complete from the start date to the current date","현재날짜까지 계획된 진척율, WBS의 \"계획진척율\"의 전체 합계 진척율을 표시함","현재날짜까지 계획된 진척율, WBS의 \"계획진척율\"의 전체 합계 진척율을 표시함"]
[null,401,null,"Planned %Work Complete(A)","계획 진척율(A)","계획 진척율(A)"]
[null,402,null,"Planned %Work Complete(B/A)","계획(B/A)","계획(B/A)"]
[null,403,"for importOnStartup","Planned Duration","계획기간","계획기간"]
[null,404,null,"Planned Progress","계획진척율","계획진척율"]
[null,405,"for importOnStartup","Planned Work","계획작업량","계획작업량"]
[null,406,null,"Planned Work(B)\\nMan-day","계획작업량(B)\\nMan-day","계획작업량(B)\\nMan-day"]
[null,407,null,"Planned Work\\n(ManDay to Today)","계획 작업량\r\n(현재일까지ManDay,\r\n가중치 감안)","계획 작업량\r\n(현재일까지ManDay,\r\n가중치 감안)"]
[null,408,null,"Planned workload","현재일까지 계획된 작업량","현재일까지 계획된 작업량"]
[null,409,null,"Planned Workload Accumulated(Man-Day)","계획작업량 누적(Man-Day)","계획작업량 누적(Man-Day)"]
[null,410,null,"Planned workload from the start date to the current date","해당작업의 시작일부터 현재일까지의 작업기간을 의미함(현재 날짜까지 진행되었어야 할 기간)","해당작업의 시작일부터 현재일까지의 작업기간을 의미함(현재 날짜까지 진행되었어야 할 기간)"]
[null,411,null,"Planned Workload Progress","계획작업량 진척율","계획작업량 진척율"]
[null,412,null,"Planned Workload(Man-Day)","계획작업량(Man-Day)","계획작업량(Man-Day)"]
[null,413,"for import columun","Planned__%Work Complete","계획","계획"]
[null,414,"for import columun","Planned__Duration","계획__기간","계획__기간"]
[null,415,"for import columun","Planned__Work","계획__작업량","계획__작업량"]
[null,416,null,"Planned\\n%Work Complete","계획","계획"]
[null,417,null,"Planned\\nDuration","계획\\n기간","계획\\n기간"]
[null,418,null,"Planned\\nWork","계획\\n작업량","계획\\n작업량"]
[null,419,null,"Please choose a type of the task field.","작업필드의 유형을 선택하세요.","작업필드의 유형을 선택하세요."]
[null,420,null,"Please enter the extension.","확장자명을 입력하세요.","확장자명을 입력하세요."]
[null,421,null,"Please enter the path where deliverables are saved.","산출물이 저장될 특정경로를 입력하세요.","산출물이 저장될 특정경로를 입력하세요."]
[null,422,null,"Please enter the program execution path.","프로그램 실행경로를 입력하세요.","프로그램 실행경로를 입력하세요."]
[null,423,null,"Please set project calendars in this sheet.","이 Sheet에서 프로젝트 Calendar를 설정하세요.","이 Sheet에서 프로젝트 Calendar를 설정하세요."]
[null,424,null,"Positive - ahead of schedule, Negative - behind schedule","양수이면 계획보다 빨리 진행, 음수이면 지연","양수이면 계획보다 빨리 진행, 음수이면 지연"]
[null,425,null,"Powerpoint","파워포인트","파워포인트"]
[null,426,null,"Program Info","프로그램 정보","프로그램 정보"]
[null,427,null,"Program Name","프로그램명","프로그램명"]
[null,428,null,"Program Site","프로그램 사이트","프로그램 사이트"]
[null,429,null,"Progress","진척율","진척율"]
[null,430,null,"Progress by Months","진척율(월별)","진척율(월별)"]
[null,431,null,"Progress by Weeks","진척율(주별)","진척율(주별)"]
[null,432,null,"Progresses by Resources","담당별\\n진행율","담당별\\n진행율"]
[null,433,null,"Project Execution Plan","프로젝트수행계획서","프로젝트수행계획서"]
[null,434,null,"Project Information","프로젝트 정보","프로젝트 정보"]
[null,435,null,"Project Name","프로젝트명","프로젝트명"]
[null,436,null,"Project Progress - When managing schedule changes","프로젝트 진척율 - 일정변경 관리할때","프로젝트 진척율 - 일정변경 관리할때"]
[null,437,null,"Project Progress - When not managing schedule changes","프로젝트 진척율 - 일정변경 관리하지 않을때","프로젝트 진척율 - 일정변경 관리하지 않을때"]
[null,438,null,"Project Progresses by Months","프로젝트 진척율(월별)","프로젝트 진척율(월별)"]
[null,439,null,"Project Progresses by Weeks","프로젝트 진척율(주별)","프로젝트 진척율(주별)"]
[null,440,null,"Project Scheduler","Project Scheduler","Project Scheduler"]
[null,441,"for help sheet","Provides you with analytical reports such as progress, workload, and workload data for tracking the status of your project.","프로젝트의 현황을 파악할 수 있는 진행율, Workload 등의 분석 리포트와 분석용 Workload data를 제공한다.","프로젝트의 현황을 파악할 수 있는 진행율, Workload 등의 분석 리포트와 분석용 Workload data를 제공한다."]
[null,442,null,"Purple","퍼플","퍼플"]
[null,443,"for importOnStartup","Recalculate WBS area after import","가져오기 후 WBS영역 재계산","가져오기 후 WBS영역 재계산"]
[null,444,null,"Reformatting","서식\\n재설정","서식\\n재설정"]
[null,445,null,"Regardless of the language setting in computer O/S, you can choose a language directly","컴퓨터 O/S에 설정된 언어와 관계없이 사용자가 표시할 언어를 직접 선택할 수 \r\n있습니다.","컴퓨터 O/S에 설정된 언어와 관계없이 사용자가 표시할 언어를 직접 선택할 수 \r\n있습니다."]
[null,446,null,"Release Date","릴리즈 일자","릴리즈 일자"]
[null,447,null,"Resource Allocation Ratio","자원배정비율","자원배정비율"]
[null,448,null,"Resource field.","자원 필드입니다. 담당자, 리소스 등의 이름으로 불리기도 합니다. 해당 작업의 담당자를 표시합니다","자원 필드입니다. 담당자, 리소스 등의 이름으로 불리기도 합니다. 해당 작업의 담당자를 표시합니다"]
[null,449,null,"Resources","담당","담당"]
[null,450,null,"Right of the chart","Chart 오른쪽","Chart 오른쪽"]
[null,451,null,"Rows of imported data : ","가져온 자료의 행수 : ","가져온 자료의 행수 : "]
[null,452,null,"Run \"Update Schedule\"  When Saving XLGantt File","File저장시 \"스케줄업데이트\" 실행","File저장시 \"스케줄업데이트\" 실행"]
[null,453,null,"Sat","토","토"]
[null,454,null,"Save","저장","저장"]
[null,455,"for help sheet","Schedule change","일정계획 변경관리","일정계획 변경관리"]
[null,456,null,"Schedule Change Management","일정계획 변경관리","일정계획 변경관리"]
[null,457,null,"Schedule update has been completed.","스케줄업데이트 작업이 완료되었습니다.","스케줄업데이트 작업이 완료되었습니다."]
[null,458,null,"Schedule variance","계획대비 실적 차이","계획대비 실적 차이"]
[null,459,null,"Schedule Variance(B-A)","차이(B-A)","차이(B-A)"]
[null,460,null,"Search for the tasks based on criteria."]
[null,461,null,"Select source files(Muliple Select)","가져올 파일을 선택하세요(다중선택가능)","가져올 파일을 선택하세요(다중선택가능)"]
[null,462,null,"Set \"the earliest start date and the lastest fisnish date of the tasks\" to the Project Start-Finish date.","Task의 가장 빠른 시작일과 가장 늦은 완료일을 프로젝트 기간으로 자동설정","Task의 가장 빠른 시작일과 가장 늦은 완료일을 프로젝트 기간으로 자동설정"]
[null,463,null,"Set path by the task name automatically\\n(in this case, specify the upper path of automatically assigned path) ","작업명으로 경로 자동지정(이 경우 자동지정된 경로의 상위경로를 입력) ","작업명으로 경로 자동지정(이 경우 자동지정된 경로의 상위경로를 입력) "]
[null,464,null,"Set program execution paths to open deliverables","산출물열기 프로그램 실행경로 지정","산출물열기 프로그램 실행경로 지정"]
[null,465,null,"Set saving path of deliverables","산출물 저장경로","산출물 저장경로"]
[null,466,"for help sheet","Sets nonworking days.","프로젝트의 휴무일을 설정한다.","프로젝트의 휴무일을 설정한다."]
[null,467,"for help sheet","Setting Gantt chart display style","간트차트 표시방법 설정","간트차트 표시방법 설정"]
[null,468,null,"Settings","설정","설정"]
[null,469,"for help sheet","Sheets","시트 구성","시트 구성"]
[null,470,"for help sheet","Shows you the progresses and workloads of the project by weeks, months, and resources.","담당별 진행율, Workload등 분석용 Report를 만들어서 보여준다.","담당별 진행율, Workload등 분석용 Report를 만들어서 보여준다."]
[null,471,"for help sheet","Shows you the workloads, progresses, etc.","작업량, 진척율 등을 볼 수 있다.","작업량, 진척율 등을 볼 수 있다."]
[null,472,null,"Specific Date","특정날짜","특정날짜"]
[null,473,null,"Specific path","특정 경로","특정 경로"]
[null,474,"for help sheet","Specifies the save path of the deliverables and open the deliverables.","엑셀간트에서는 산출물의 저장 경로(폴더 위치)를 지정하고 Schedule시트에서 바로 산출물을 열 수 있는 기능을 제공한다. 리본 메뉴에서 “옵션” 버튼을 클릭하면  “산출물”과 관련된 설정을 할 수 있다.","엑셀간트에서는 산출물의 저장 경로(폴더 위치)를 지정하고 Schedule시트에서 바로 산출물을 열 수 있는 기능을 제공한다. 리본 메뉴에서 “옵션” 버튼을 클릭하면  “산출물”과 관련된 설정을 할 수 있다."]
[null,475,null,"Standard Calendar","표준캘린더","표준캘린더"]
[null,476,null,"Star(*) marks-required fields","별(*)표시는 필수입력","별(*)표시는 필수입력"]
[null,477,null,"Start","시작일","시작일"]
[null,478,null,"Start Date","시작일자","시작일자"]
[null,479,null,"Start date field of a task. It must be in date format.","각 작업의 시작일을 표시합니다. 반드시 날짜 형식이어야 합니다.","각 작업의 시작일을 표시합니다. 반드시 날짜 형식이어야 합니다."]
[null,480,null,"Start date is invalid.","작업시작일의 날짜형식이 잘못되었습니다.","작업시작일의 날짜형식이 잘못되었습니다."]
[null,481,null,"Start date is invalid. Verify row {} of the source file.","시작일자에 날짜가 아닌 값이 포함되어 있습니다. Import하는 파일의 {}행을 확인하세요.","시작일자에 날짜가 아닌 값이 포함되어 있습니다. Import하는 파일의 {}행을 확인하세요."]
[null,482,null,"Started as planned","계획과 같은 날짜에 시작됨","계획과 같은 날짜에 시작됨"]
[null,483,null,"Started earlier than planned","계획보다 일찍 시작됨","계획보다 일찍 시작됨"]
[null,484,null,"Started later than planned","계획보다 늦게 시작됨","계획보다 늦게 시작됨"]
[null,485,null,"Start-Finish","시작일-완료일","시작일-완료일"]
[null,486,"for importOnStartup","Successfully imported.","가져오기가 정상적으로 완료되었습니다.","가져오기가 정상적으로 완료되었습니다."]
[null,487,null,"Sun","일","일"]
[null,488,"for Week Number","System 1","체계 1","체계 1"]
[null,489,"for Week Number","System 2","체계 2","체계 2"]
[null,490,null,"Task","작업","작업"]
[null,491,null,"Task area was not selected. Please select a task area.","작업영역이 선택되지 않았습니다. 영역을 선택하세요.","작업영역이 선택되지 않았습니다. 영역을 선택하세요."]
[null,492,"for help sheet","Enter tasks, Update schedule","작업입력, 스케줄 업데이트","작업입력, 스케줄 업데이트"]
[null,493,null,"Task Name","작업명","작업명"]
[null,494,null,"Task name field.It's also referred to as \"Work\" or \"Activity\" or etc.","작업명 필드입니다. 이름, Task, Activity등 다른 이름으로 불리기도 합니다. 작업의 Level에 따라 표시하는 방식이 다를 수 있습니다. Level별로 다른 필드에 작업명이 표시되는 경우에는 1 Level 필드만 Traget파일의 \"작업명\"필드와 Mapping하면 됩니다.","작업명 필드입니다. 이름, Task, Activity등 다른 이름으로 불리기도 합니다. 작업의 Level에 따라 표시하는 방식이 다를 수 있습니다. Level별로 다른 필드에 작업명이 표시되는 경우에는 1 Level 필드만 Traget파일의 \"작업명\"필드와 Mapping하면 됩니다."]
[null,495,null,"Task(Task name or Name) is missing.","Task(작업명, 이름 등)는 반드시 입력되어야 합니다.","Task(작업명, 이름 등)는 반드시 입력되어야 합니다."]
[null,496,null,"The \"%Work Complete\" column has been deleted. Please retry after changing the sheet to its previous state.","실적진척율 열이 삭제되었습니다. 원래대로 복구한 후 작업하세요.","실적진척율 열이 삭제되었습니다. 원래대로 복구한 후 작업하세요."]
[null,497,null,"The \"%Work Complete\" of row number {1} in the {2} sheet is not a number.","{2} sheet의 {1}행의 실적진척율이 숫자가 아닙니다.","{2} sheet의 {1}행의 실적진척율이 숫자가 아닙니다."]
[null,498,null,"The \"Actual Finish Date\" column has been deleted. Please retry after changing the sheet to its previous state.","실제완료일 열이 삭제되었습니다. 원래대로 복구한 후 작업하세요.","실제완료일 열이 삭제되었습니다. 원래대로 복구한 후 작업하세요."]
[null,499,null,"The \"Actual Start Date\" column has been deleted. Please retry after changing the sheet to its previous state.","실제시작일 열이 삭제되었습니다. 원래대로 복구한 후 작업하세요.","실제시작일 열이 삭제되었습니다. 원래대로 복구한 후 작업하세요."]
[null,500,null,"The \"Actual Total Duration\" column has been deleted. Please retry after changing the sheet to its previous state.","실제총기간 열이 삭제되었습니다. 원래대로 복구한 후 작업하세요.","실제총기간 열이 삭제되었습니다. 원래대로 복구한 후 작업하세요."]
[null,501,null,"The \"Actual Total Work\" column has been deleted. Please retry after changing the sheet to its previous state.","실제총작업량 열이 삭제되었습니다. 원래대로 복구한 후 작업하세요.","실제총작업량 열이 삭제되었습니다. 원래대로 복구한 후 작업하세요."]
[null,502,null,"The \"Calendar\" column has been deleted. Please retry after changing the sheet to its previous state.","Calendar 열이 삭제되었습니다. 원래대로 복구한 후 작업하세요.","Calendar 열이 삭제되었습니다. 원래대로 복구한 후 작업하세요."]
[null,503,null,"The \"Deliverables\" column has been deleted. Please retry after changing the sheet to its previous state.","산출물 열이 삭제되었습니다. 원래대로 복구한 후 작업하세요.","산출물 열이 삭제되었습니다. 원래대로 복구한 후 작업하세요."]
[null,504,null,"The \"Finish Date\" column has been deleted. Please retry after changing the sheet to its previous state.","완료일 열이 삭제되었습니다. 원래대로 복구한 후 작업하세요.","완료일 열이 삭제되었습니다. 원래대로 복구한 후 작업하세요."]
[null,505,null,"The \"Note\" column has been deleted. Please retry after changing the sheet to its previous state.","비고 열이 삭제되었습니다. 원래대로 복구한 후 작업하세요.","비고 열이 삭제되었습니다. 원래대로 복구한 후 작업하세요."]
[null,506,null,"The \"Planned %Work Complete\" column has been deleted. Please retry after changing the sheet to its previous state.","계획진척율 열이 삭제되었습니다. 원래대로 복구한 후 작업하세요.","계획진척율 열이 삭제되었습니다. 원래대로 복구한 후 작업하세요."]
[null,507,null,"The \"Planned Duration\" column has been deleted. Please retry after changing the sheet to its previous state.","계획기간 열이 삭제되었습니다. 원래대로 복구한 후 작업하세요.","계획기간 열이 삭제되었습니다. 원래대로 복구한 후 작업하세요."]
[null,508,null,"The \"Planned Work\" column has been deleted. Please retry after changing the sheet to its previous state.","계획작업량 열이 삭제되었습니다. 원래대로 복구한 후 작업하세요.","계획작업량 열이 삭제되었습니다. 원래대로 복구한 후 작업하세요."]
[null,509,null,"The \"Resources\" column has been deleted. Please retry after changing the sheet to its previous state.","담당 열이 삭제되었습니다. 원래대로 복구한 후 작업하세요.","담당 열이 삭제되었습니다. 원래대로 복구한 후 작업하세요."]
[null,510,null,"The \"Start Date\" column has been deleted. Please retry after changing the sheet to its previous state.","시작일 열이 삭제되었습니다. 원래대로 복구한 후 작업하세요.","시작일 열이 삭제되었습니다. 원래대로 복구한 후 작업하세요."]
[null,511,null,"The \"Task\" column has been deleted. Please retry after changing the sheet to its previous state.","작업 열이 삭제되었습니다. 원래대로 복구한 후 작업하세요.","작업 열이 삭제되었습니다. 원래대로 복구한 후 작업하세요."]
[null,512,null,"The \"Total Duration\" column has been deleted. Please retry after changing the sheet to its previous state.","총기간 열이 삭제되었습니다. 원래대로 복구한 후 작업하세요.","총기간 열이 삭제되었습니다. 원래대로 복구한 후 작업하세요."]
[null,513,null,"The \"Total Work\" column has been deleted. Please retry after changing the sheet to its previous state.","총작업량 열이 삭제되었습니다. 원래대로 복구한 후 작업하세요.","총작업량 열이 삭제되었습니다. 원래대로 복구한 후 작업하세요."]
[null,514,null,"The \"WBS Level\" column has been deleted. Please retry after changing the sheet to its previous state.","WBS Level 열이 삭제되었습니다. 원래대로 복구한 후 작업하세요.","WBS Level 열이 삭제되었습니다. 원래대로 복구한 후 작업하세요."]
[null,515,null,"The \"WBS\" column has been deleted. Please retry after changing the sheet to its previous state.","WBS 열이 삭제되었습니다. 원래대로 복구한 후 작업하세요.","WBS 열이 삭제되었습니다. 원래대로 복구한 후 작업하세요."]
[null,516,null,"The \"Weight\" column has been deleted. Please retry after changing the sheet to its previous state.","가중치 열이 삭제되었습니다. 원래대로 복구한 후 작업하세요.","가중치 열이 삭제되었습니다. 원래대로 복구한 후 작업하세요."]
[null,517,null,"The {} sheet does not exist. Please check that you changed or deleted the sheet.","{} sheet가 존재하지 않습니다. 이름을 변경하거나 삭제했는지 확인하세요.","{} sheet가 존재하지 않습니다. 이름을 변경하거나 삭제했는지 확인하세요."]
[null,518,null,"The {} sheet does not exist. Please check that you have changed or deleted the sheet.","{} sheet가 존재하지 않습니다. 이름을 변경하거나 삭제했는지 확인하세요.","{} sheet가 존재하지 않습니다. 이름을 변경하거나 삭제했는지 확인하세요."]
[null,519,null,"The actual finish date format of row number {1} in the {2} sheet is invalid.","{2} sheet의 {1}행의 실제완료일이 날짜형식이 아닙니다. 정확한 날짜형식으로 입력하세요.","{2} sheet의 {1}행의 실제완료일이 날짜형식이 아닙니다. 정확한 날짜형식으로 입력하세요."]
[null,520,null,"The actual finish date of the row number {1} in the {2} sheet was entered, but the actual start date is empty.","{2} sheet의 {1}행의 실제시작일이 비어있고 실제완료일만 입력되어 있습니다.","{2} sheet의 {1}행의 실제시작일이 비어있고 실제완료일만 입력되어 있습니다."]
[null,521,null,"The actual start date format of row number {1} in the {2} sheet is invalid.","{2} sheet의 {1}행의 실제시작일이 날짜형식이 아닙니다. 정확한 날짜형식으로 입력하세요.","{2} sheet의 {1}행의 실제시작일이 날짜형식이 아닙니다. 정확한 날짜형식으로 입력하세요."]
[null,522,null,"The actual start date of row number {1} in the {2} sheet is later than the actual finish date.","{2} sheet의 {1}행의 실제시작일이 실제완료일보다 큽니다.","{2} sheet의 {1}행의 실제시작일이 실제완료일보다 큽니다."]
[null,523,null,"The actual start date of row number {1} in the {2} sheet is out of the project duration.","{2} sheet의 {1}행의 실제 시작일이 프로젝트 기간을 벗어났습니다.","{2} sheet의 {1}행의 실제 시작일이 프로젝트 기간을 벗어났습니다."]
[null,524,null,"The actual start or finish date of row number {1} in the {2} sheet is out of the project duration.","{2} sheet의 {1}행의 실젝 시작일 또는 완료일이 프로젝트 기간을 벗어났습니다.","{2} sheet의 {1}행의 실젝 시작일 또는 완료일이 프로젝트 기간을 벗어났습니다."]
[null,525,null,"The count of level","Level의 갯수","Level의 갯수"]
[null,526,null,"The date field of row number {1} in the {2} sheet was entered, but the task field is empty.\\nEnter a value in the task field or clear the date field.","{2} sheet의 {1}행의 날짜는 입력되었는데 작업필드가 비어있습니다.\\n작업필드의 값을 채우거나 날짜를 지우세요.","{2} sheet의 {1}행의 날짜는 입력되었는데 작업필드가 비어있습니다.\\n작업필드의 값을 채우거나 날짜를 지우세요."]
[null,527,null,"The deliverables name is empty.","산출물명이 비어있습니다.","산출물명이 비어있습니다."]
[null,528,null,"The earliest start date({1}) of the tasks is earlier than the start date({2}) of the project.\\n\\nIn this case, there may be problems with resource calculations. Please change the start date to valid date.","가장 빠른 시작일({1})이 프로젝트 기간정보의 시작일({2})보다 더 빠릅니다.\\n\\n이 경우 리소스 계산등에 문제가 있을 수 있습니다. 시작일을 환경설정메뉴의 프로젝트 기간내로 조정하거나 프로젝트 기간을 조정하시기 바랍니다.","가장 빠른 시작일({1})이 프로젝트 기간정보의 시작일({2})보다 더 빠릅니다.\\n\\n이 경우 리소스 계산등에 문제가 있을 수 있습니다. 시작일을 환경설정메뉴의 프로젝트 기간내로 조정하거나 프로젝트 기간을 조정하시기 바랍니다."]
[null,529,null,"The finish date format of row number {1} in the {2} sheet is invalid.","{2} sheet의 {1}행의 완료일이 날짜형식이 아닙니다. 정확한 날짜형식으로 입력하세요.","{2} sheet의 {1}행의 완료일이 날짜형식이 아닙니다. 정확한 날짜형식으로 입력하세요."]
[null,530,null,"The first column of Gantt area has been deleted. Please retry after changing the sheet to its previous state.","Gantt영역의 첫번째 열이 삭제되었습니다. 원래대로 복구한 후 작업하세요.","Gantt영역의 첫번째 열이 삭제되었습니다. 원래대로 복구한 후 작업하세요."]
[null,531,null,"The following file formats are not supported. You can import files with version 0.9.7 or higher than 0.9.7.","다음 파일은 지원하지 않는 형식입니다. XLGantt Version 0.9.7 이상 버전만 지원합니다.","다음 파일은 지원하지 않는 형식입니다. XLGantt Version 0.9.7 이상 버전만 지원합니다."]
[null,532,null,"The following file formats are not supported. You can import the files if the version is 0.9.7 or higher than 0.9.7.","다음의 XLGantt파일은 지원하지 않는 버전입니다. Version 0.9.7 이상 버전만 지원합니다.","다음의 XLGantt파일은 지원하지 않는 버전입니다. Version 0.9.7 이상 버전만 지원합니다."]
[null,533,null,"The following files have been successfully imported.","다음 파일을 성공적으로 가져왔습니다.","다음 파일을 성공적으로 가져왔습니다."]
[null,534,null,"The following folder does not exist.","다음의 폴더가 존재하지 않습니다.","다음의 폴더가 존재하지 않습니다."]
[null,535,null,"The format of \"Calculation Base Date of Planned %Work Complete\" is invalid.","계획진척율 계산 기준일자의 날짜형식이 잘못되었습니다.","계획진척율 계산 기준일자의 날짜형식이 잘못되었습니다."]
[null,536,null,"The format of the project finish date is invalid.","프로젝트 완료일의 날짜형식이 잘못되었습니다.","프로젝트 완료일의 날짜형식이 잘못되었습니다."]
[null,537,null,"The format of the project start date is invalid.","프로젝트 시작일의 날짜형식이 잘못되었습니다.","프로젝트 시작일의 날짜형식이 잘못되었습니다."]
[null,538,null,"The job was not completed successfully.","작업이 정상적으로 완료되지 않았습니다.","작업이 정상적으로 완료되지 않았습니다."]
[null,539,null,"The kind of period is invalid. You must enter one of the M(Months) or W(Weeks)","기간의 종류가 잘못되었습니다. W(주), M(월) 중에 하나를 입력해야 합니다","기간의 종류가 잘못되었습니다. W(주), M(월) 중에 하나를 입력해야 합니다"]
[null,540,"manual input","The language setting has been changed.\\nPress the OK button to start translation. \\nIt may take a long time to translate.\\nHowever, translation of Ribbon menu and Popup menu takes effect after reopening this XLGantt file.","언어설정이 변경되었습니다.\\n확인버튼을 누르면 번역을 시작합니다. 번역은 시간이 걸릴 수 있습니다. \\n리본메뉴, 팝업메뉴의 언어는 이 XLGantt파일을 닫은 후 새로 열어야 번역이 적용됩니다.","언어설정이 변경되었습니다.\\n확인버튼을 누르면 번역을 시작합니다. 번역은 시간이 걸릴 수 있습니다. \\n리본메뉴, 팝업메뉴의 언어는 이 XLGantt파일을 닫은 후 새로 열어야 번역이 적용됩니다."]
[null,541,null,"The latest finish date({1}) of the tasks is later than the finish date({2}) of the project.\\n\\nIn this case, there may be problems with resource calculations. Please change the finish date to valid date.","가장 늦은 완료일({1})이 프로젝트 기간정보의 완료일({2})보다 더 늦습니다.\\n\\n이 경우 리소스 계산등에 문제가 있을 수 있습니다. 완료일을 환경설정메뉴의 프로젝트 기간내로 조정하거나 프로젝트 기간을 조정하시기 바랍니다.","가장 늦은 완료일({1})이 프로젝트 기간정보의 완료일({2})보다 더 늦습니다.\\n\\n이 경우 리소스 계산등에 문제가 있을 수 있습니다. 완료일을 환경설정메뉴의 프로젝트 기간내로 조정하거나 프로젝트 기간을 조정하시기 바랍니다."]
[null,542,null,"The level of row {} is invalid.","{} 행의 Level이 맞지 않습니다. Level을 1보다 크게 증가했는지 확인하세요.","{} 행의 Level이 맞지 않습니다. Level을 1보다 크게 증가했는지 확인하세요."]
[null,543,null,"The number of Level must be less than or equal to {}","Level의 갯수는 {}개까지만 가능합니다.","Level의 갯수는 {}개까지만 가능합니다."]
[null,544,null,"The number of Level must be positive integer.","Level의 갯수는 양의 정수만 가능합니다.","Level의 갯수는 양의 정수만 가능합니다."]
[null,545,null,"The number of task columns is not 10. Please retry after changing the sheet to its previous state.","Task열의 갯수가 10개가 아닙니다. 원래대로 복구한 후 작업하세요.","Task열의 갯수가 10개가 아닙니다. 원래대로 복구한 후 작업하세요."]
[null,546,null,"The process was terminated due to the {} sheet error.","{} sheet의 에러로 인해 작업이 중단되었습니다.","{} sheet의 에러로 인해 작업이 중단되었습니다."]
[null,547,null,"The project finish date({}) you entered is not valid date format.","입력한 프로젝트 기간의 완료일({})이 날짜형식이 아닙니다.","입력한 프로젝트 기간의 완료일({})이 날짜형식이 아닙니다."]
[null,548,null,"The project start date({}) you entered is not valid date format.","입력한 프로젝트 기간의 시작일({})이 날짜형식이 아닙니다","입력한 프로젝트 기간의 시작일({})이 날짜형식이 아닙니다"]
[null,549,null,"The resource allocation ratio in the resource field of row number {1} in the {2} sheet is invalid.","{2} sheet의 {1}행의 자원배정비율이 잘못입력되었습니다.","{2} sheet의 {1}행의 자원배정비율이 잘못입력되었습니다."]
[null,550,null,"The resource field should be entered in the following format.","자원배정비율은 다음과 같은 형식으로 입력되어야 합니다.","자원배정비율은 다음과 같은 형식으로 입력되어야 합니다."]
[null,551,null,"The start date format of row number {1} in the {2} sheet is invalid.","{2} sheet의 {1}행의 시작일이 날짜형식이 아닙니다. 정확한 날짜형식으로 입력하세요.","{2} sheet의 {1}행의 시작일이 날짜형식이 아닙니다. 정확한 날짜형식으로 입력하세요."]
[null,552,null,"The start date is later than the finish date.","시작일이 완료일보다 큽니다.","시작일이 완료일보다 큽니다."]
[null,553,null,"The start date of row number {1} in the {2} sheet is later than the finish date.","{2} sheet의 {1}행의 시작일이 완료일보다 큽니다.","{2} sheet의 {1}행의 시작일이 완료일보다 큽니다."]
[null,554,null,"The start or finish date of row number {1} in the {2} sheet is out of the project duration.","{2} sheet의 {1}행의 시작일 또는 완료일이 프로젝트 기간을 벗어났습니다.","{2} sheet의 {1}행의 시작일 또는 완료일이 프로젝트 기간을 벗어났습니다."]
[null,555,null,"The task of the first row of the {} sheet is not level 1.","{} sheet 첫행의 작업이 1 Level이 아닙니다. 첫행의 작업이 첫째칸이 아닌 다른 칸에 입력되었는지 확인하세요.","{} sheet 첫행의 작업이 1 Level이 아닙니다. 첫행의 작업이 첫째칸이 아닌 다른 칸에 입력되었는지 확인하세요."]
[null,556,null,"The type of task fields","Task필드 유형","Task필드 유형"]
[null,557,"for Week Number","The week containing January 1 is the first week of the year.","1월 1일을 포함하는 주가 년도의 첫주가 되는 방식","1월 1일을 포함하는 주가 년도의 첫주가 되는 방식"]
[null,558,"for Week Number","The week containing the first Thursday of the year is the first week of the year(ISO 8601 Standard).","한주의 시작은 월요일이며 년도의 첫번째 목요일을 포함하는 주가 첫주가 되는 방식(ISO 8601 표준)","한주의 시작은 월요일이며 년도의 첫번째 목요일을 포함하는 주가 첫주가 되는 방식(ISO 8601 표준)"]
[null,559,null,"The weight of row number {1} in the {2} sheet is not a number.","{2} sheet의 {1}행의 가중치가 숫자가 아닙니다.","{2} sheet의 {1}행의 가중치가 숫자가 아닙니다."]
[null,560,null,"There are no executable programs that open the deliverables.","입력한 산출물을 열 수 있는 실행프로그램이 없습니다.","입력한 산출물을 열 수 있는 실행프로그램이 없습니다."]
[null,561,null,"There is an error in the total workload or planned workload field of row number {1} in the {2} sheet. Please check that the start / finish date was entered correctly, or that the formula is correct.","{2} sheet의 {1}행의 총작업량 또는계획작업량 필드에 오류가 있습니다. 시작일/완료일이 잘못 입력되었는지 또는 수식에 문제가 없는지 확인하세요.","{2} sheet의 {1}행의 총작업량 또는계획작업량 필드에 오류가 있습니다. 시작일/완료일이 잘못 입력되었는지 또는 수식에 문제가 없는지 확인하세요."]
[null,562,null,"There is no data in the following files","다음 파일에 자료가 없습니다.","다음 파일에 자료가 없습니다."]
[null,563,null,"There is no input data","입력된 자료가 없습니다","입력된 자료가 없습니다"]
[null,564,null,"There is no input data that will be calculated.","계산할 입력자료가 없습니다.","계산할 입력자료가 없습니다."]
[null,565,null,"There is no input data.","입력된 자료가 없습니다.","입력된 자료가 없습니다."]
[null,566,null,"There is no input data. Please enter after reformatting.","입력된 자료가 없습니다. 입력 후 서식재설정 해 주세요.","입력된 자료가 없습니다. 입력 후 서식재설정 해 주세요."]
[null,567,null,"There was an error in \"Progress Line\" drawing. This can happen if the actual start date or actual finish date is beyond the project period. Check the message below.","진척율선 그리기 작업 중 에러가 발생했습니다. 실제시작일 또는 실제완료일이 프로젝트 기간을 벗어난 경우에 발생할 수 있습니다. 아래의 메시지를 확인하십시오.","진척율선 그리기 작업 중 에러가 발생했습니다. 실제시작일 또는 실제완료일이 프로젝트 기간을 벗어난 경우에 발생할 수 있습니다. 아래의 메시지를 확인하십시오."]
[null,568,null,"This area can not be selected. Please select an area that contains tasks.","선택할 수 없는 영역입니다. 작업명이 입력된 행을 선택하세요.","선택할 수 없는 영역입니다. 작업명이 입력된 행을 선택하세요."]
[null,569,null,"This Month only","이번 달 작업만 조회","이번 달 작업만 조회"]
[null,570,null,"This Week only","이번 주 작업만 조회","이번 주 작업만 조회"]
[null,571,null,"This XLGantt is not the latest version. Download the latest version from the following site.","지금 사용하고 계신 XLGantt는 최신버전이 아닙니다.\\n\r\n최신버전을 아래의 사이트에서 다운로드 받으세요.","지금 사용하고 계신 XLGantt는 최신버전이 아닙니다.\\n\r\n최신버전을 아래의 사이트에서 다운로드 받으세요."]
[null,572,null,"Thu","목","목"]
[null,573,null,"Time bucket type is invalid.","Time bucket type 오류입니다.","Time bucket type 오류입니다."]
[null,574,null,"Title above Gantt chart","간트차트 위의 타이틀","간트차트 위의 타이틀"]
[null,575,null,"Title above WBS","WBS영역 위의 타이틀","WBS영역 위의 타이틀"]
[null,576,null,"To (XLGantt)","Target파일(가져온 후 파일)","Target파일(가져온 후 파일)"]
[null,577,null,"To Date is invalid.","끝날짜 형식이 잘못되었습니다.","끝날짜 형식이 잘못되었습니다."]
[null,578,null,"To import files from source to the target file, map the respective fields.\\nSelect a field in source file first and then find a corresponding field in the target file.","Source파일에서 Target파일로 가져오기 위해서 각각의 필드를 Mapping합니다. \r\nSource파일의 필드를 먼저 선택하고 해당되는 필드를 Targe파일에서 찾아서 Mapping합니다.","Source파일에서 Target파일로 가져오기 위해서 각각의 필드를 Mapping합니다. \r\nSource파일의 필드를 먼저 선택하고 해당되는 필드를 Targe파일에서 찾아서 Mapping합니다."]
[null,579,null,"Today","오늘","오늘"]
[null,580,null,"Today only","오늘 작업만 조회","오늘 작업만 조회"]
[null,581,"for importOnStartup","Total Duration","총기간","총기간"]
[null,582,"for importOnStartup","Total Work","총작업량","총작업량"]
[null,583,null,"Total Work(A)\\nMan-day","총작업량(A)\\nMan-day","총작업량(A)\\nMan-day"]
[null,584,null,"Total Work\\n(Total ManDay)","총 작업량\r\n(총ManDay,\r\n가중치 감안)","총 작업량\r\n(총ManDay,\r\n가중치 감안)"]
[null,585,null,"Total workload of the project","프로젝트 전체 작업량","프로젝트 전체 작업량"]
[null,586,"for import columun","Total__Duration","총__기간","총__기간"]
[null,587,"for import columun","Total__Work","총__작업량","총__작업량"]
[null,588,null,"Total\\nDuration","총\\n기간","총\\n기간"]
[null,589,null,"Total\\nWork","총\\n작업량","총\\n작업량"]
[null,590,null,"Tue","화","화"]
[null,591,null,"Type a number between 0% and 100% in \"%Work Complete\" field of row number {1} in the {2} sheet.","{2} sheet의 {1}행의 실적진척율을 0~100% 범위로 입력해주세요.","{2} sheet의 {1}행의 실적진척율을 0~100% 범위로 입력해주세요."]
[null,592,null,"UI Design","화면설계","화면설계"]
[null,593,null,"Unable to open file. Please change the \"Check if you save deliverables in specific directory\" option to the checked state in the Setting>Deliverables tab.","파일을 열수 없습니다. 환경설정>산출물관리 탭에서 \"산출물 관리를 할 경우에 체크하세요\" 옵션을 체크상태로 변경해 주세요.","파일을 열수 없습니다. 환경설정>산출물관리 탭에서 \"산출물 관리를 할 경우에 체크하세요\" 옵션을 체크상태로 변경해 주세요."]
[null,594,null,"Update Schedule","스케줄\\n업데이트","스케줄\\n업데이트"]
[null,595,null,"Updates","업데이트 내용","업데이트 내용"]
[null,596,null,"Updating schedule... \\nplease wait...","스케줄업데이트 중입니다...\\n잠시만 기다려 주세요...","스케줄업데이트 중입니다...\\n잠시만 기다려 주세요..."]
[null,597,null,"User Defined Calendar 1","사용자정의 캘린더1","사용자정의 캘린더1"]
[null,598,null,"User Defined Calendar 2","사용자정의 캘린더2","사용자정의 캘린더2"]
[null,599,null,"Variance(Actual-Planned)","차이(실적-계획)","차이(실적-계획)"]
[null,600,null,"WBS","WBS","WBS"]
[null,601,null,"WBS Area Display","WBS영역 표시방법","WBS영역 표시방법"]
[null,602,null,"WBS Level is invalid. Enter a number only. Verify row {} of the source file.","WBS Level(개요번호)에 숫자가 아닌 값이 포함되어 있습니다. Import하는 파일의 {}행을 확인하세요.","WBS Level(개요번호)에 숫자가 아닌 값이 포함되어 있습니다. Import하는 파일의 {}행을 확인하세요."]
[null,603,null,"WBS No.","WBS No.","WBS No."]
[null,604,null,"WBS title - auto calculated field","WBS 타이틀 - 자동계산필드","WBS 타이틀 - 자동계산필드"]
[null,605,null,"WBS title - input field","WBS 타이틀 - 입력필드","WBS 타이틀 - 입력필드"]
[null,606,null,"WBS,Gantt Chart"]
[null,607,null,"Wed","수","수"]
[null,608,"for Week Number","Week Numbers Display","주차 표시방식","주차 표시방식"]
[null,609,null,"Weekly","주별","주별"]
[null,610,null,"Weekly view","주별보기","주별보기"]
[null,611,null,"Weeks","주별","주별"]
[null,612,null,"Weight","가중치","가중치"]
[null,613,null,"Weight is invalid.","가중치의 숫자형식이 잘못되었습니다.","가중치의 숫자형식이 잘못되었습니다."]
[null,614,null,"Weight must be greater than zero.","가중치는 0보다 커야 합니다.","가중치는 0보다 커야 합니다."]
[null,615,null,"When managing schedule changes","일정변경 관리할 때","일정변경 관리할 때"]
[null,616,null,"When not managing schedule changes","일정변경 관리 안할 때","일정변경 관리 안할 때"]
[null,617,"for help sheet","When you enter a task and a schedule, the progress rate is calculated and the schedule of the task is displayed as a gantt chart.","작업과 일정을 입력하면 진척율이 계산되며 작업의 일정을 간트차트로 표시해 준다.","작업과 일정을 입력하면 진척율이 계산되며 작업의 일정을 간트차트로 표시해 준다."]
[null,618,"for help sheet","When you enter task names, start and finish dates, and %work complete values, XLGantt automatically calculates the tasks durations, planned %work complete values.","작업명, 시작일, 완료일, 진척율을 입력하면 휴무일, 가중치를 고려하여 자동으로 작업기간, 계획진척율, 실적진척율 등이 계산된다.","작업명, 시작일, 완료일, 진척율을 입력하면 휴무일, 가중치를 고려하여 자동으로 작업기간, 계획진척율, 실적진척율 등이 계산된다."]
[null,619,null,"Word","워드","워드"]
[null,620,null,"Workload Calculation","작업량 계산","작업량 계산"]
[null,621,null,"Workload Data","Workload Data","Workload Data"]
[null,622,null,"Workload\\n(Man-Day)"]
[null,623,null,"Workload\\n(Man-Month)"]
[null,624,null,"Workloads","Workload","Workload"]
[null,625,null,"Workloads by {}","Workload현황({})","Workload현황({})"]
[null,626,null,"Workloads by Months","Workload(월별)","Workload(월별)"]
[null,627,null,"Workloads by Resouces","Workload(담당별)","Workload(담당별)"]
[null,628,null,"Workloads by Weeks","Workload(주별)","Workload(주별)"]
[null,629,null,"Worloads by Resources","Workload(담당별)","Workload(담당별)"]
[null,630,null,"Would you like to update the schedule before saving?","저장하기 전에 스케줄을 업데이트하시겠습니까?\\n\\n[스케줄업데이트]메뉴를 클릭할 때와 동일한 작업을 수행합니다.","저장하기 전에 스케줄을 업데이트하시겠습니까?\\n\\n[스케줄업데이트]메뉴를 클릭할 때와 동일한 작업을 수행합니다."]
[null,631,"for help sheet","XLGantt  - Project Scheduler","엑셀간트(XLGantt) - 엑셀 일정관리","엑셀간트(XLGantt) - 엑셀 일정관리"]
[null,632,"for help sheet","XLGantt Version {} Terms of Use","XLGantt Version {} 사용조건","XLGantt Version {} 사용조건"]
[null,633,null,"XLGantt Version Check","XLGantt Version Check","XLGantt Version Check"]
[null,634,null,"You are using the latest version of XLGantt.\\nCurrent Verison : {}","사용하고 계신 XLGantt는 최신 버전입니다.\\n현재 버전 : {}","사용하고 계신 XLGantt는 최신 버전입니다.\\n현재 버전 : {}"]
[null,635,null,"You can add \"Outlook Appointments\" only on the {} sheet.","{} Sheet에서만 Outlook일정을 등록할 수 있습니다.","{} Sheet에서만 Outlook일정을 등록할 수 있습니다."]
[null,636,null,"You can add \"Outlook Tasks\" only on the {} sheet.","{} Sheet에서만 Outlook작업을 등록할 수 있습니다.","{} Sheet에서만 Outlook작업을 등록할 수 있습니다."]
[null,637,"for help sheet","You can click the \"Options\" button on the ribbon to customize a Gantt chart style.","Bar chart형태로 간트차트를 보여주며 여러 가지 표시방법을 옵션에서 설정할 수 있다.","Bar chart형태로 간트차트를 보여주며 여러 가지 표시방법을 옵션에서 설정할 수 있다."]
[null,638,null,"You can edit task only on the {} sheet.","{} Sheet에서만 작업을 편집할 수 있습니다.","{} Sheet에서만 작업을 편집할 수 있습니다."]
[null,639,"for help sheet","You can include the formulas and functions of the Excel in XLGantt.","엑셀간트에서는 입력된 프로젝트 정보를 가지고 올 수 있는 함수와 엑셀의 수식계산 기능 등을 엑셀간트에 포함할 수 있는 기능을 제공하고 있다.\n이 기능을 이용하면 프로젝트의 상황에 맞도록 엑셀간트를 재 구성할 수 있다.","엑셀간트에서는 입력된 프로젝트 정보를 가지고 올 수 있는 함수와 엑셀의 수식계산 기능 등을 엑셀간트에 포함할 수 있는 기능을 제공하고 있다.\n이 기능을 이용하면 프로젝트의 상황에 맞도록 엑셀간트를 재 구성할 수 있다."]
[null,640,null,"You can indent or outdent tasks only on the {} sheet.","{} Sheet에서만 작업가능합니다.","{} Sheet에서만 작업가능합니다."]
[null,641,null,"You can not add \"Outlook Appointments\" in the selected area.","선택한 위치에서는 작업할 수 없습니다.","선택한 위치에서는 작업할 수 없습니다."]
[null,642,null,"You can not add \"Outlook Tasks\" in the selected area.","선택한 위치에서는 Outlook작업을 등록할 수 없습니다.","선택한 위치에서는 Outlook작업을 등록할 수 없습니다."]
[null,643,null,"You can not add a column between column A and C because the range is reserved by XLGantt.","A열부터 C열까지는 XLGantt프로그램에서 사용하는 영역이므로 임의로 열을 추가할 수 없습니다.","A열부터 C열까지는 XLGantt프로그램에서 사용하는 영역이므로 임의로 열을 추가할 수 없습니다."]
[null,644,null,"You can not edit a task in the selected area.","선택한 위치에서는 작업할 수 없습니다.","선택한 위치에서는 작업할 수 없습니다."]
[null,645,null,"You can not enter any more.","더 이상 입력불가","더 이상 입력불가"]
[null,646,null,"You can not indent any more!","더 이상 오른쪽으로 이동할 수 없습니다!","더 이상 오른쪽으로 이동할 수 없습니다!"]
[null,647,null,"You can not indent or outdent the selected row.","선택한 위치에서는 이동할 수 없습니다.","선택한 위치에서는 이동할 수 없습니다."]
[null,648,null,"You can not outdent any more!","더 이상 왼쪽으로 이동할 수 없습니다!","더 이상 왼쪽으로 이동할 수 없습니다!"]
[null,649,null,"You can not use \"Microsoft Outlook\". \\nMake sure you properly installed it.","Microsoft Outlook을 사용할 수 없습니다.\\n정상적으로 설치되어 있는지 확인하세요.","Microsoft Outlook을 사용할 수 없습니다.\\n정상적으로 설치되어 있는지 확인하세요."]
[null,650,null,"You can open deliverables only on the {} Sheet.","{} Sheet에서만 작업가능합니다.","{} Sheet에서만 작업가능합니다."]
[null,651,"for help sheet","You can use %work complete to keep track of the progress of the project.","진척율을 이용하여 프로젝트 전체 진행상황을 파악할 수 있다.","진척율을 이용하여 프로젝트 전체 진행상황을 파악할 수 있다."]
[null,652,null,"You can use only start and finish dates. So you can not manage schedule changes.","일정을 관리할 때 작업 시작일/완료일만 사용합니다. 변경된 일정은 관리하지 않습니다. 일정이 변경되었을 때는 시작일과 완료일을 변경합니다.  ","일정을 관리할 때 작업 시작일/완료일만 사용합니다. 변경된 일정은 관리하지 않습니다. 일정이 변경되었을 때는 시작일과 완료일을 변경합니다.  "]
[null,653,null,"You can use start and finish dates, actual start and finish dates. You can identify the schedule is delayed or aheaded by entering actual start and finish dates. ","일정을 관리할 때 작업 시작일/완료일, 실제시작일/실제완료일을 사용합니다. 실제 시작된 날짜와 실제 완료된 날짜를 입력하여 일정이 지연되었거나 빨리 진행된 것을 관리할 수 있습니다.  ","일정을 관리할 때 작업 시작일/완료일, 실제시작일/실제완료일을 사용합니다. 실제 시작된 날짜와 실제 완료된 날짜를 입력하여 일정이 지연되었거나 빨리 진행된 것을 관리할 수 있습니다.  "]
[null,654,null,"You can't choose a field that is empty.","필드명이 비어있는 항목은 선택할 수 없습니다.","필드명이 비어있는 항목은 선택할 수 없습니다."]
[null,655,null,"You can't import an Excel Macro file. Please import after saving it as an xls or xlsx file. If it is an XLGantt file, you can import it at the menu \"Import files created in XLGantt\"","엑셀매크로 파일은 가져오기를 할 수 없습니다. xls 또는 xlsx파일로 저장하여 작업하시기 바랍니다. 만약 XLGantt파일인 경우에는 \"XLGantt로 작성된 파일 가져오기\"에서 작업 가능합니다","엑셀매크로 파일은 가져오기를 할 수 없습니다. xls 또는 xlsx파일로 저장하여 작업하시기 바랍니다. 만약 XLGantt파일인 경우에는 \"XLGantt로 작성된 파일 가져오기\"에서 작업 가능합니다"]
[null,656,null,"You can't remove the default languages(English and Korean).","기본언어인 English와 Korean은 삭제할 수 없습니다.","기본언어인 English와 Korean은 삭제할 수 없습니다."]
[null,657,null,"You didn't choose a language.","언어가 선택되지 않았습니다.","언어가 선택되지 않았습니다."]
[null,658,null,"You didn't choose a source field.","Source항목이 선택되지 않았습니다.","Source항목이 선택되지 않았습니다."]
[null,659,null,"You didn't choose a target field.","Target항목이 선택되지 않았습니다.","Target항목이 선택되지 않았습니다."]
[null,660,null,"You didn't choose an unmap item.","Mapping취소항목이 선택되지 않았습니다.","Mapping취소항목이 선택되지 않았습니다."]
[null,661,null,"You selected {} areas. Please select only one area.","한곳만 선택하세요. 현재 {}곳이 선택되었습니다.","한곳만 선택하세요. 현재 {}곳이 선택되었습니다."]
[null,662,null,"Date","날짜","날짜"]
[null,663,null,"Day","요일","요일"]
[null,664,null,"Display date or day on the timescale","간트차트 눈금에 날짜/요일 표시방법","간트차트 눈금에 날짜/요일 표시방법"]
[null,665,null,"Align WBS Column","WBS열 정렬","WBS열 정렬"]
[null,666,null,"Left","왼쪽","왼쪽"]
[null,667,null,"Center","가운데","가운데"]
[null,667,null,"Right","오른쪽","오른쪽"]
[null,667,null,"The same field name exists.","동일한 필드명이 존재합니다.","동일한 필드명이 존재합니다."]

{"sheet":"Workload","index":7,"n_rows":265,"n_cols":30,"rows_kept":265,"cut":false,"hidden":false,"merged":[]}
["wbsLevel","wbs","wbsLevel01","wbsLevel02","wbsLevel03","wbsLevel04","wbsLevel05","wbsLevel06","wbsLevel07","wbsLevel08","wbsLevel09","wbsLevel10","task","resource","start","finish","timebucketStart","timebucketFinish","weekNumber","projectWeekNumber","totalWorkload","planWorkload","resourceWeight","resourceAssignRate","planRate","actualRate","actualStart","actualFinish","earnedValue","actualWorkload"]
["4","1.1.1.1","1","1.1","1.1.1","1.1.1.1",null,null,null,null,null,null,"Schedule Config ( 인증 대응 개발 포함 )","양형석","2025-05-01","2025-05-15","2025-04-27","2025-05-03",18,18,1,1,0,1,0.625,0,null,null,0]
["4","1.1.1.1","1","1.1","1.1.1","1.1.1.1",null,null,null,null,null,null,"Schedule Config ( 인증 대응 개발 포함 )","양형석","2025-05-01","2025-05-15","2025-05-04","2025-05-10",19,19,3,3,0,1,0.625,0,null,null,0]
["4","1.1.1.1","1","1.1","1.1.1","1.1.1.1",null,null,null,null,null,null,"Schedule Config ( 인증 대응 개발 포함 )","양형석","2025-05-01","2025-05-15","2025-05-11","2025-05-17",20,20,4,1,0,1,0.625,0,null,null,0]
["4","1.1.1.2","1","1.1","1.1.1","1.1.1.2",null,null,null,null,null,null,"Backup & Restore ( 인증 대응 개발 포함 )","양형석","2025-05-16","2025-05-30","2025-05-11","2025-05-17",20,20,1,0,0,1,0,0,null,null,0]
["4","1.1.1.2","1","1.1","1.1.1","1.1.1.2",null,null,null,null,null,null,"Backup & Restore ( 인증 대응 개발 포함 )","양형석","2025-05-16","2025-05-30","2025-05-18","2025-05-24",21,21,5,0,0,1,0,0,null,null,0]
["4","1.1.1.2","1","1.1","1.1.1","1.1.1.2",null,null,null,null,null,null,"Backup & Restore ( 인증 대응 개발 포함 )","양형석","2025-05-16","2025-05-30","2025-05-25","2025-05-31",22,22,5,0,0,1,0,0,null,null,0]
["4","1.1.1.3","1","1.1","1.1.1","1.1.1.3",null,null,null,null,null,null,"License & System Info ( 인증 대응 개발 포함 )","양형석","2025-06-01","2025-06-15","2025-06-01","2025-06-07",23,23,3,0,0,1,0,0,null,null,0]
["4","1.1.1.3","1","1.1","1.1.1","1.1.1.3",null,null,null,null,null,null,"License & System Info ( 인증 대응 개발 포함 )","양형석","2025-06-01","2025-06-15","2025-06-08","2025-06-14",24,24,5,0,0,1,0,0,null,null,0]
["4","1.1.1.3","1","1.1","1.1.1","1.1.1.3",null,null,null,null,null,null,"License & System Info ( 인증 대응 개발 포함 )","양형석","2025-06-01","2025-06-15","2025-06-15","2025-06-21",25,25,0,0,0,1,0,0,null,null,0]
["4","1.1.1.4","1","1.1","1.1.1","1.1.1.4",null,null,null,null,null,null,"Language Config ( 인증 대응 개발 포함 )","양형석","2025-06-16","2025-06-30","2025-06-15","2025-06-21",25,25,5,0,0,1,0,0,null,null,0]
["4","1.1.1.4","1","1.1","1.1.1","1.1.1.4",null,null,null,null,null,null,"Language Config ( 인증 대응 개발 포함 )","양형석","2025-06-16","2025-06-30","2025-06-22","2025-06-28",26,26,5,0,0,1,0,0,null,null,0]
["4","1.1.1.4","1","1.1","1.1.1","1.1.1.4",null,null,null,null,null,null,"Language Config ( 인증 대응 개발 포함 )","양형석","2025-06-16","2025-06-30","2025-06-29","2025-07-05",27,27,1,0,0,1,0,0,null,null,0]
["4","1.1.1.5","1","1.1","1.1.1","1.1.1.5",null,null,null,null,null,null,"License 암호화 모듈 개발","이민규","2025-05-12","2025-05-15","2025-05-11","2025-05-17",20,20,4,1,0,1,0.25,0.5,null,null,2]
["4","1.1.1.6","1","1.1","1.1.1","1.1.1.6",null,null,null,null,null,null,"인증 관련 시스템 페이지 스타일 작업 ( CSS 리팩토링 포함 )","홍성훈","2025-05-12","2025-05-15","2025-05-11","2025-05-17",20,20,4,1,0,1,0.25,0.8,null,null,3.2]
["4","1.1.2.1","1","1.1","1.1.2","1.1.2.1",null,null,null,null,null,null,"OS Command - 화면 개발","양형석","2025-01-01","2025-01-15","2025-01-01","2025-01-04",1,1,2,2,0,1,1,1,null,null,2]
["4","1.1.2.1","1","1.1","1.1.2","1.1.2.1",null,null,null,null,null,null,"OS Command - 화면 개발","양형석","2025-01-01","2025-01-15","2025-01-05","2025-01-11",2,2,5,5,0,1,1,1,null,null,5]
["4","1.1.2.1","1","1.1","1.1.2","1.1.2.1",null,null,null,null,null,null,"OS Command - 화면 개발","양형석","2025-01-01","2025-01-15","2025-01-12","2025-01-18",3,3,3,3,0,1,1,1,null,null,3]
["4","1.1.2.2","1","1.1","1.1.2","1.1.2.2",null,null,null,null,null,null,"OS Command - 서버 개발","이민규","2025-01-01","2025-01-15","2025-01-01","2025-01-04",1,1,2,2,0,1,1,1,null,null,2]
["4","1.1.2.2","1","1.1","1.1.2","1.1.2.2",null,null,null,null,null,null,"OS Command - 서버 개발","이민규","2025-01-01","2025-01-15","2025-01-05","2025-01-11",2,2,5,5,0,1,1,1,null,null,5]
["4","1.1.2.2","1","1.1","1.1.2","1.1.2.2",null,null,null,null,null,null,"OS Command - 서버 개발","이민규","2025-01-01","2025-01-15","2025-01-12","2025-01-18",3,3,3,3,0,1,1,1,null,null,3]
["4","1.1.2.3","1","1.1","1.1.2","1.1.2.3",null,null,null,null,null,null,"Host Command - 화면 개발","양형석","2025-01-16","2025-01-30","2025-01-12","2025-01-18",3,3,2,2,0,1,1,1,null,null,5]
["4","1.1.2.3","1","1.1","1.1.2","1.1.2.3",null,null,null,null,null,null,"Host Command - 화면 개발","양형석","2025-01-16","2025-01-30","2025-01-19","2025-01-25",4,4,5,5,0,1,1,1,null,null,3]
["4","1.1.2.3","1","1.1","1.1.2","1.1.2.3",null,null,null,null,null,null,"Host Command - 화면 개발","양형석","2025-01-16","2025-01-30","2025-01-26","2025-02-01",5,5,1,1,0,1,1,1,null,null,0]
["4","1.1.2.4","1","1.1","1.1.2","1.1.2.4",null,null,null,null,null,null,"Host Command - 서버 개발","이민규","2025-01-16","2025-01-30","2025-01-12","2025-01-18",3,3,2,2,0,1,1,1,null,null,5]
["4","1.1.2.4","1","1.1","1.1.2","1.1.2.4",null,null,null,null,null,null,"Host Command - 서버 개발","이민규","2025-01-16","2025-01-30","2025-01-19","2025-01-25",4,4,5,5,0,1,1,1,null,null,3]
["4","1.1.2.4","1","1.1","1.1.2","1.1.2.4",null,null,null,null,null,null,"Host Command - 서버 개발","이민규","2025-01-16","2025-01-30","2025-01-26","2025-02-01",5,5,1,1,0,1,1,1,null,null,0]
["4","1.1.2.5","1","1.1","1.1.2","1.1.2.5",null,null,null,null,null,null,"신세계INC-대응 ( Unknown Host, Network, Proc State ) - 화면","양형석","2025-02-01","2025-02-28","2025-01-26","2025-02-01",5,5,0,0,0,1,1,1,null,null,2]
["4","1.1.2.5","1","1.1","1.1.2","1.1.2.5",null,null,null,null,null,null,"신세계INC-대응 ( Unknown Host, Network, Proc State ) - 화면","양형석","2025-02-01","2025-02-28","2025-02-02","2025-02-08",6,6,5,5,0,1,1,1,null,null,5]
["4","1.1.2.5","1","1.1","1.1.2","1.1.2.5",null,null,null,null,null,null,"신세계INC-대응 ( Unknown Host, Network, Proc State ) - 화면","양형석","2025-02-01","2025-02-28","2025-02-09","2025-02-15",7,7,5,5,0,1,1,1,null,null,5]
["4","1.1.2.5","1","1.1","1.1.2","1.1.2.5",null,null,null,null,null,null,"신세계INC-대응 ( Unknown Host, Network, Proc State ) - 화면","양형석","2025-02-01","2025-02-28","2025-02-16","2025-02-22",8,8,5,5,0,1,1,1,null,null,5]
["4","1.1.2.5","1","1.1","1.1.2","1.1.2.5",null,null,null,null,null,null,"신세계INC-대응 ( Unknown Host, Network, Proc State ) - 화면","양형석","2025-02-01","2025-02-28","2025-02-23","2025-03-01",9,9,5,5,0,1,1,1,null,null,3]
["4","1.1.2.6","1","1.1","1.1.2","1.1.2.6",null,null,null,null,null,null,"신세계INC-대응 ( Unknown Host, Network, Proc State ) - 서버","이민규","2025-02-01","2025-02-28","2025-01-26","2025-02-01",5,5,0,0,0,1,1,1,null,null,2]
["4","1.1.2.6","1","1.1","1.1.2","1.1.2.6",null,null,null,null,null,null,"신세계INC-대응 ( Unknown Host, Network, Proc State ) - 서버","이민규","2025-02-01","2025-02-28","2025-02-02","2025-02-08",6,6,5,5,0,1,1,1,null,null,5]
["4","1.1.2.6","1","1.1","1.1.2","1.1.2.6",null,null,null,null,null,null,"신세계INC-대응 ( Unknown Host, Network, Proc State ) - 서버","이민규","2025-02-01","2025-02-28","2025-02-09","2025-02-15",7,7,5,5,0,1,1,1,null,null,5]
["4","1.1.2.6","1","1.1","1.1.2","1.1.2.6",null,null,null,null,null,null,"신세계INC-대응 ( Unknown Host, Network, Proc State ) - 서버","이민규","2025-02-01","2025-02-28","2025-02-16","2025-02-22",8,8,5,5,0,1,1,1,null,null,5]
["4","1.1.2.6","1","1.1","1.1.2","1.1.2.6",null,null,null,null,null,null,"신세계INC-대응 ( Unknown Host, Network, Proc State ) - 서버","이민규","2025-02-01","2025-02-28","2025-02-23","2025-03-01",9,9,5,5,0,1,1,1,null,null,3]
["4","1.1.2.7","1","1.1","1.1.2","1.1.2.7",null,null,null,null,null,null,"KT - 대응 ( 데이터 암호화 , Disk 표시 ) - 설정, 화면","양형석","2025-03-01","2025-03-30","2025-02-23","2025-03-01",9,9,0,0,0,1,1,1,null,null,5]
["4","1.1.2.7","1","1.1","1.1.2","1.1.2.7",null,null,null,null,null,null,"KT - 대응 ( 데이터 암호화 , Disk 표시 ) - 설정, 화면","양형석","2025-03-01","2025-03-30","2025-03-02","2025-03-08",10,10,4,4,0,1,1,1,null,null,4]
["4","1.1.2.7","1","1.1","1.1.2","1.1.2.7",null,null,null,null,null,null,"KT - 대응 ( 데이터 암호화 , Disk 표시 ) - 설정, 화면","양형석","2025-03-01","2025-03-30","2025-03-09","2025-03-15",11,11,5,5,0,1,1,1,null,null,5]
["4","1.1.2.7","1","1.1","1.1.2","1.1.2.7",null,null,null,null,null,null,"KT - 대응 ( 데이터 암호화 , Disk 표시 ) - 설정, 화면","양형석","2025-03-01","2025-03-30","2025-03-16","2025-03-22",12,12,5,5,0,1,1,1,null,null,5]
["4","1.1.2.7","1","1.1","1.1.2","1.1.2.7",null,null,null,null,null,null,"KT - 대응 ( 데이터 암호화 , Disk 표시 ) - 설정, 화면","양형석","2025-03-01","2025-03-30","2025-03-23","2025-03-29",13,13,5,5,0,1,1,1,null,null,0]
["4","1.1.2.7","1","1.1","1.1.2","1.1.2.7",null,null,null,null,null,null,"KT - 대응 ( 데이터 암호화 , Disk 표시 ) - 설정, 화면","양형석","2025-03-01","2025-03-30","2025-03-30","2025-04-05",14,14,0,0,0,1,1,1,null,null,0]
["4","1.1.2.8","1","1.1","1.1.2","1.1.2.8",null,null,null,null,null,null,"KT - 대응 ( 데이터 암호화 , Disk 표시 ) - 서버","이민규","2025-03-01","2025-03-30","2025-02-23","2025-03-01",9,9,0,0,0,1,1,1,null,null,5]
["4","1.1.2.8","1","1.1","1.1.2","1.1.2.8",null,null,null,null,null,null,"KT - 대응 ( 데이터 암호화 , Disk 표시 ) - 서버","이민규","2025-03-01","2025-03-30","2025-03-02","2025-03-08",10,10,4,4,0,1,1,1,null,null,4]
["4","1.1.2.8","1","1.1","1.1.2","1.1.2.8",null,null,null,null,null,null,"KT - 대응 ( 데이터 암호화 , Disk 표시 ) - 서버","이민규","2025-03-01","2025-03-30","2025-03-09","2025-03-15",11,11,5,5,0,1,1,1,null,null,5]
["4","1.1.2.8","1","1.1","1.1.2","1.1.2.8",null,null,null,null,null,null,"KT - 대응 ( 데이터 암호화 , Disk 표시 ) - 서버","이민규","2025-03-01","2025-03-30","2025-03-16","2025-03-22",12,12,5,5,0,1,1,1,null,null,5]
["4","1.1.2.8","1","1.1","1.1.2","1.1.2.8",null,null,null,null,null,null,"KT - 대응 ( 데이터 암호화 , Disk 표시 ) - 서버","이민규","2025-03-01","2025-03-30","2025-03-23","2025-03-29",13,13,5,5,0,1,1,1,null,null,0]
["4","1.1.2.8","1","1.1","1.1.2","1.1.2.8",null,null,null,null,null,null,"KT - 대응 ( 데이터 암호화 , Disk 표시 ) - 서버","이민규","2025-03-01","2025-03-30","2025-03-30","2025-04-05",14,14,0,0,0,1,1,1,null,null,0]
["4","1.1.2.9","1","1.1","1.1.2","1.1.2.9",null,null,null,null,null,null,"I-CON 준비","이동민","2025-02-15","2025-02-28","2025-02-09","2025-02-15",7,7,0,0,0,1,1,1,null,null,5]
["4","1.1.2.9","1","1.1","1.1.2","1.1.2.9",null,null,null,null,null,null,"I-CON 준비","이동민","2025-02-15","2025-02-28","2025-02-16","2025-02-22",8,8,5,5,0,1,1,1,null,null,5]
["4","1.1.2.9","1","1.1","1.1.2","1.1.2.9",null,null,null,null,null,null,"I-CON 준비","이동민","2025-02-15","2025-02-28","2025-02-23","2025-03-01",9,9,5,5,0,1,1,1,null,null,0]
["4","1.1.2.10","1","1.1","1.1.2","1.1.2.10",null,null,null,null,null,null,"ITSHOW 준비","이동민","2025-03-01","2025-03-30","2025-02-23","2025-03-01",9,9,0,0,0,1,1,1,null,null,5]
["4","1.1.2.10","1","1.1","1.1.2","1.1.2.10",null,null,null,null,null,null,"ITSHOW 준비","이동민","2025-03-01","2025-03-30","2025-03-02","2025-03-08",10,10,4,4,0,1,1,1,null,null,4]
["4","1.1.2.10","1","1.1","1.1.2","1.1.2.10",null,null,null,null,null,null,"ITSHOW 준비","이동민","2025-03-01","2025-03-30","2025-03-09","2025-03-15",11,11,5,5,0,1,1,1,null,null,5]
["4","1.1.2.10","1","1.1","1.1.2","1.1.2.10",null,null,null,null,null,null,"ITSHOW 준비","이동민","2025-03-01","2025-03-30","2025-03-16","2025-03-22",12,12,5,5,0,1,1,1,null,null,5]
["4","1.1.2.10","1","1.1","1.1.2","1.1.2.10",null,null,null,null,null,null,"ITSHOW 준비","이동민","2025-03-01","2025-03-30","2025-03-23","2025-03-29",13,13,5,5,0,1,1,1,null,null,0]
["4","1.1.2.10","1","1.1","1.1.2","1.1.2.10",null,null,null,null,null,null,"ITSHOW 준비","이동민","2025-03-01","2025-03-30","2025-03-30","2025-04-05",14,14,0,0,0,1,1,1,null,null,0]
["4","1.1.2.11","1","1.1","1.1.2","1.1.2.11",null,null,null,null,null,null,"I-CON, ITSHOW 대응 ( 스크린샷, PPT, 문서 )","양형석","2025-04-01","2025-04-12","2025-03-30","2025-04-05",14,14,4,4,0,1,1,1,null,null,5]
["4","1.1.2.11","1","1.1","1.1.2","1.1.2.11",null,null,null,null,null,null,"I-CON, ITSHOW 대응 ( 스크린샷, PPT, 문서 )","양형석","2025-04-01","2025-04-12","2025-04-06","2025-04-12",15,15,5,5,0,1,1,1,null,null,4]
["4","1.1.2.12","1","1.1","1.1.2","1.1.2.12",null,null,null,null,null,null,"I-CON, ITSHOW 대응 ( 스크린샷, PPT, 문서 )","이민규","2025-04-01","2025-04-12","2025-03-30","2025-04-05",14,14,4,4,0,1,1,1,null,null,5]
["4","1.1.2.12","1","1.1","1.1.2","1.1.2.12",null,null,null,null,null,null,"I-CON, ITSHOW 대응 ( 스크린샷, PPT, 문서 )","이민규","2025-04-01","2025-04-12","2025-04-06","2025-04-12",15,15,5,5,0,1,1,1,null,null,4]
["4","1.1.2.13","1","1.1","1.1.2","1.1.2.13",null,null,null,null,null,null,"Security -Group 기능 구현 ( Keycloak 어트리뷰트 UI )","양형석","2025-04-16","2025-04-30","2025-04-13","2025-04-19",16,16,3,3,0,1,1,1,null,null,5]
["4","1.1.2.13","1","1.1","1.1.2","1.1.2.13",null,null,null,null,null,null,"Security -Group 기능 구현 ( Keycloak 어트리뷰트 UI )","양형석","2025-04-16","2025-04-30","2025-04-20","2025-04-26",17,17,5,5,0,1,1,1,null,null,5]
["4","1.1.2.13","1","1.1","1.1.2","1.1.2.13",null,null,null,null,null,null,"Security -Group 기능 구현 ( Keycloak 어트리뷰트 UI )","양형석","2025-04-16","2025-04-30","2025-04-27","2025-05-03",18,18,3,3,0,1,1,1,null,null,1]
["4","1.1.2.14","1","1.1","1.1.2","1.1.2.14",null,null,null,null,null,null,"Security -Group 기능 구현 ( Keycloak Group Role 구현 )","이민규","2025-04-16","2025-04-30","2025-04-13","2025-04-19",16,16,3,3,0,1,1,1,null,null,5]
["4","1.1.2.14","1","1.1","1.1.2","1.1.2.14",null,null,null,null,null,null,"Security -Group 기능 구현 ( Keycloak Group Role 구현 )","이민규","2025-04-16","2025-04-30","2025-04-20","2025-04-26",17,17,5,5,0,1,1,1,null,null,5]
["4","1.1.2.14","1","1.1","1.1.2","1.1.2.14",null,null,null,null,null,null,"Security -Group 기능 구현 ( Keycloak Group Role 구현 )","이민규","2025-04-16","2025-04-30","2025-04-27","2025-05-03",18,18,3,3,0,1,1,1,null,null,1]
["4","1.1.3.1","1","1.1","1.1.3","1.1.3.1",null,null,null,null,null,null,"User","홍성훈","2025-01-01","2025-01-30","2025-01-01","2025-01-04",1,1,2,2,0,1,1,0.8,null,null,2]
["4","1.1.3.1","1","1.1","1.1.3","1.1.3.1",null,null,null,null,null,null,"User","홍성훈","2025-01-01","2025-01-30","2025-01-05","2025-01-11",2,2,5,5,0,1,1,0.8,null,null,5]
["4","1.1.3.1","1","1.1","1.1.3","1.1.3.1",null,null,null,null,null,null,"User","홍성훈","2025-01-01","2025-01-30","2025-01-12","2025-01-18",3,3,5,5,0,1,1,0.8,null,null,5]
["4","1.1.3.1","1","1.1","1.1.3","1.1.3.1",null,null,null,null,null,null,"User","홍성훈","2025-01-01","2025-01-30","2025-01-19","2025-01-25",4,4,5,5,0,1,1,0.8,null,null,2.4000000000000004]
["4","1.1.3.1","1","1.1","1.1.3","1.1.3.1",null,null,null,null,null,null,"User","홍성훈","2025-01-01","2025-01-30","2025-01-26","2025-02-01",5,5,1,1,0,1,1,0.8,null,null,0]
["4","1.1.3.2","1","1.1","1.1.3","1.1.3.2",null,null,null,null,null,null,"Role","홍성훈","2025-02-01","2025-02-28","2025-01-26","2025-02-01",5,5,0,0,0,1,1,1,null,null,2]
["4","1.1.3.2","1","1.1","1.1.3","1.1.3.2",null,null,null,null,null,null,"Role","홍성훈","2025-02-01","2025-02-28","2025-02-02","2025-02-08",6,6,5,5,0,1,1,1,null,null,5]
["4","1.1.3.2","1","1.1","1.1.3","1.1.3.2",null,null,null,null,null,null,"Role","홍성훈","2025-02-01","2025-02-28","2025-02-09","2025-02-15",7,7,5,5,0,1,1,1,null,null,5]
["4","1.1.3.2","1","1.1","1.1.3","1.1.3.2",null,null,null,null,null,null,"Role","홍성훈","2025-02-01","2025-02-28","2025-02-16","2025-02-22",8,8,5,5,0,1,1,1,null,null,5]
["4","1.1.3.2","1","1.1","1.1.3","1.1.3.2",null,null,null,null,null,null,"Role","홍성훈","2025-02-01","2025-02-28","2025-02-23","2025-03-01",9,9,5,5,0,1,1,1,null,null,3]
["4","1.1.3.3","1","1.1","1.1.3","1.1.3.3",null,null,null,null,null,null,"Group - Front Validate","홍성훈","2025-03-01","2025-03-30","2025-02-23","2025-03-01",9,9,0,0,0,1,1,1,null,null,5]
["4","1.1.3.3","1","1.1","1.1.3","1.1.3.3",null,null,null,null,null,null,"Group - Front Validate","홍성훈","2025-03-01","2025-03-30","2025-03-02","2025-03-08",10,10,4,4,0,1,1,1,null,null,4]
["4","1.1.3.3","1","1.1","1.1.3","1.1.3.3",null,null,null,null,null,null,"Group - Front Validate","홍성훈","2025-03-01","2025-03-30","2025-03-09","2025-03-15",11,11,5,5,0,1,1,1,null,null,5]
["4","1.1.3.3","1","1.1","1.1.3","1.1.3.3",null,null,null,null,null,null,"Group - Front Validate","홍성훈","2025-03-01","2025-03-30","2025-03-16","2025-03-22",12,12,5,5,0,1,1,1,null,null,5]
["4","1.1.3.3","1","1.1","1.1.3","1.1.3.3",null,null,null,null,null,null,"Group - Front Validate","홍성훈","2025-03-01","2025-03-30","2025-03-23","2025-03-29",13,13,5,5,0,1,1,1,null,null,0]
["4","1.1.3.3","1","1.1","1.1.3","1.1.3.3",null,null,null,null,null,null,"Group - Front Validate","홍성훈","2025-03-01","2025-03-30","2025-03-30","2025-04-05",14,14,0,0,0,1,1,1,null,null,0]
["4","1.1.3.4","1","1.1","1.1.3","1.1.3.4",null,null,null,null,null,null,"Access Control","홍성훈","2025-04-01","2025-04-30","2025-03-30","2025-04-05",14,14,4,4,0,1,1,1,null,null,5]
["4","1.1.3.4","1","1.1","1.1.3","1.1.3.4",null,null,null,null,null,null,"Access Control","홍성훈","2025-04-01","2025-04-30","2025-04-06","2025-04-12",15,15,5,5,0,1,1,1,null,null,5]
["4","1.1.3.4","1","1.1","1.1.3","1.1.3.4",null,null,null,null,null,null,"Access Control","홍성훈","2025-04-01","2025-04-30","2025-04-13","2025-04-19",16,16,5,5,0,1,1,1,null,null,5]
["4","1.1.3.4","1","1.1","1.1.3","1.1.3.4",null,null,null,null,null,null,"Access Control","홍성훈","2025-04-01","2025-04-30","2025-04-20","2025-04-26",17,17,5,5,0,1,1,1,null,null,5]
["4","1.1.3.4","1","1.1","1.1.3","1.1.3.4",null,null,null,null,null,null,"Access Control","홍성훈","2025-04-01","2025-04-30","2025-04-27","2025-05-03",18,18,3,3,0,1,1,1,null,null,2]
["4","1.1.4.1","1","1.1","1.1.4","1.1.4.1",null,null,null,null,null,null,"개인정보처리방침","양형석","2025-04-15","2025-04-20","2025-04-13","2025-04-19",16,16,4,4,0,1,1,0.5,null,null,2]
["4","1.1.4.1","1","1.1","1.1.4","1.1.4.1",null,null,null,null,null,null,"개인정보처리방침","양형석","2025-04-15","2025-04-20","2025-04-20","2025-04-26",17,17,0,0,0,1,1,0.5,null,null,0]
["4","1.1.4.2","1","1.1","1.1.4","1.1.4.2",null,null,null,null,null,null,"자산 식별 (*IRMS 사용방법)","이동민","2025-04-01","2025-04-03","2025-03-30","2025-04-05",14,14,3,3,0,1,1,1,null,null,3]
["4","1.1.4.3","1","1.1","1.1.4","1.1.4.3",null,null,null,null,null,null,"자산 식별 (*스페이스원 연동작업)","이동민","2025-04-04","2025-04-06","2025-03-30","2025-04-05",14,14,1,1,0,1,1,1,null,null,1]
["4","1.1.4.3","1","1.1","1.1.4","1.1.4.3",null,null,null,null,null,null,"자산 식별 (*스페이스원 연동작업)","이동민","2025-04-04","2025-04-06","2025-04-06","2025-04-12",15,15,0,0,0,1,1,1,null,null,0]
["4","1.1.4.4","1","1.1","1.1.4","1.1.4.4",null,null,null,null,null,null,"정보서비스 흐름도 ( IRM N/A )","이동민","2025-04-07","2025-04-09","2025-04-06","2025-04-12",15,15,3,3,0,1,1,1,null,null,3]
["4","1.1.4.5","1","1.1","1.1.4","1.1.4.5",null,null,null,null,null,null,"개인정보흐름표","이동민","2025-04-10","2025-04-12","2025-04-06","2025-04-12",15,15,2,2,0,1,1,1,null,null,2]
["4","1.1.4.6","1","1.1","1.1.4","1.1.4.6",null,null,null,null,null,null,"정보자산관리대장(자산&인원식별) ( IRM N/A )","이동민","2025-04-13","2025-04-13","2025-04-13","2025-04-19",16,16,0,0,0,1,0,1,null,null,0]
["4","1.1.4.7","1","1.1","1.1.4","1.1.4.7",null,null,null,null,null,null,"ISMS-P_인증심사 운영 증적 취합","이동민","2025-04-14","2025-04-16","2025-04-13","2025-04-19",16,16,3,3,0,1,1,1,null,null,3]
["4","1.1.4.8","1","1.1","1.1.4","1.1.4.8",null,null,null,null,null,null,"HyperMig 네트워크 구성도 - 서비스 구성도","이동민","2025-04-17","2025-04-19","2025-04-13","2025-04-19",16,16,2,2,0,1,1,1,null,null,2]
["4","1.1.4.9","1","1.1","1.1.4","1.1.4.9",null,null,null,null,null,null,"서비스 운영정의서","이동민","2025-05-29","2025-05-30","2025-05-25","2025-05-31",22,22,2,0,0,1,0,0,null,null,0]
["4","1.1.4.10","1","1.1","1.1.4","1.1.4.10",null,null,null,null,null,null,"정보자산 관리대장","이동민","2025-05-27","2025-05-28","2025-05-25","2025-05-31",22,22,2,0,0,1,0,0,null,null,0]
["4","1.1.4.11","1","1.1","1.1.4","1.1.4.11",null,null,null,null,null,null,"업무(서비스/개발) 담당자 관리대장","이동민","2025-05-25","2025-05-26","2025-05-25","2025-05-31",22,22,1,0,0,1,0,0,null,null,0]
["4","1.1.4.12","1","1.1","1.1.4","1.1.4.12",null,null,null,null,null,null,"정보시스템 변경관리대장","이동민","2025-05-23","2025-05-24","2025-05-18","2025-05-24",21,21,1,0,0,1,0,0,null,null,0]
["4","1.1.4.13","1","1.1","1.1.4","1.1.4.13",null,null,null,null,null,null,"로그관리대장","이동민","2025-05-21","2025-05-22","2025-05-18","2025-05-24",21,21,2,0,0,1,0,0,null,null,0]
["4","1.1.4.14","1","1.1","1.1.4","1.1.4.14",null,null,null,null,null,null,"비밀번호 규칙 및 암호키 관리대장","이동민","2025-05-19","2025-05-20","2025-05-18","2025-05-24",21,21,2,0,0,1,0,0,null,null,0]
["4","1.1.4.15","1","1.1","1.1.4","1.1.4.15",null,null,null,null,null,null,"장애조치보고서 및 이력관리대장","이동민","2025-05-17","2025-05-18","2025-05-11","2025-05-17",20,20,0,0,0,1,0,0,null,null,0]
["4","1.1.4.15","1","1.1","1.1.4","1.1.4.15",null,null,null,null,null,null,"장애조치보고서 및 이력관리대장","이동민","2025-05-17","2025-05-18","2025-05-18","2025-05-24",21,21,0,0,0,1,0,0,null,null,0]
["4","1.1.4.16","1","1.1","1.1.4","1.1.4.16",null,null,null,null,null,null,"백업관리 대장","이동민","2025-05-15","2025-05-16","2025-05-11","2025-05-17",20,20,2,0,0,1,0,0,null,null,0]
["4","1.1.4.17","1","1.1","1.1.4","1.1.4.17",null,null,null,null,null,null,"침해사고 보고서","이동민","2025-05-13","2025-05-14","2025-05-11","2025-05-17",20,20,2,0,0,1,0,0,null,null,0]
["4","1.1.4.18","1","1.1","1.1.4","1.1.4.18",null,null,null,null,null,null,"취약점 대응 및 AWS 시스템 작업","이동민","2025-05-04","2025-05-10","2025-05-04","2025-05-10",19,19,3,3,0,1,1,1,null,null,3]
["4","1.2.1.1","1","1.2","1.2.1","1.2.1.1",null,null,null,null,null,null,"Public LLM 선정, Ai Framework Skeleton ~ Interface 구현","이동민","2025-11-01","2025-11-30","2025-10-26","2025-11-01",44,44,0,0,0,1,0,0,null,null,0]
["4","1.2.1.1","1","1.2","1.2.1","1.2.1.1",null,null,null,null,null,null,"Public LLM 선정, Ai Framework Skeleton ~ Interface 구현","이동민","2025-11-01","2025-11-30","2025-11-02","2025-11-08",45,45,5,0,0,1,0,0,null,null,0]
["4","1.2.1.1","1","1.2","1.2.1","1.2.1.1",null,null,null,null,null,null,"Public LLM 선정, Ai Framework Skeleton ~ Interface 구현","이동민","2025-11-01","2025-11-30","2025-11-09","2025-11-15",46,46,5,0,0,1,0,0,null,null,0]
["4","1.2.1.1","1","1.2","1.2.1","1.2.1.1",null,null,null,null,null,null,"Public LLM 선정, Ai Framework Skeleton ~ Interface 구현","이동민","2025-11-01","2025-11-30","2025-11-16","2025-11-22",47,47,5,0,0,1,0,0,null,null,0]
["4","1.2.1.1","1","1.2","1.2.1","1.2.1.1",null,null,null,null,null,null,"Public LLM 선정, Ai Framework Skeleton ~ Interface 구현","이동민","2025-11-01","2025-11-30","2025-11-23","2025-11-29",48,48,5,0,0,1,0,0,null,null,0]
["4","1.2.1.1","1","1.2","1.2.1","1.2.1.1",null,null,null,null,null,null,"Public LLM 선정, Ai Framework Skeleton ~ Interface 구현","이동민","2025-11-01","2025-11-30","2025-11-30","2025-12-06",49,49,0,0,0,1,0,0,null,null,0]
["4","1.2.1.2","1","1.2","1.2.1","1.2.1.2",null,null,null,null,null,null,"Application Code 대상 분석 프롬프트 구현","이민규","2025-12-01","2025-12-07","2025-11-30","2025-12-06",49,49,5,0,0,1,0,0,null,null,0]
["4","1.2.1.2","1","1.2","1.2.1","1.2.1.2",null,null,null,null,null,null,"Application Code 대상 분석 프롬프트 구현","홍성훈","2025-12-01","2025-12-07","2025-11-30","2025-12-06",49,49,5,0,0,1,0,0,null,null,0]
["4","1.2.1.2","1","1.2","1.2.1","1.2.1.2",null,null,null,null,null,null,"Application Code 대상 분석 프롬프트 구현","양형석","2025-12-01","2025-12-07","2025-11-30","2025-12-06",49,49,5,0,0,1,0,0,null,null,0]
["4","1.2.1.2","1","1.2","1.2.1","1.2.1.2",null,null,null,null,null,null,"Application Code 대상 분석 프롬프트 구현","이민규","2025-12-01","2025-12-07","2025-12-07","2025-12-13",50,50,0,0,0,1,0,0,null,null,0]
["4","1.2.1.2","1","1.2","1.2.1","1.2.1.2",null,null,null,null,null,null,"Application Code 대상 분석 프롬프트 구현","홍성훈","2025-12-01","2025-12-07","2025-12-07","2025-12-13",50,50,0,0,0,1,0,0,null,null,0]
["4","1.2.1.2","1","1.2","1.2.1","1.2.1.2",null,null,null,null,null,null,"Application Code 대상 분석 프롬프트 구현","양형석","2025-12-01","2025-12-07","2025-12-07","2025-12-13",50,50,0,0,0,1,0,0,null,null,0]
["4","1.2.1.3","1","1.2","1.2.1","1.2.1.3",null,null,null,null,null,null,"Application Code 대상 패턴 분석 vs AI 분석 비교 기능","이민규","2025-12-08","2025-12-15","2025-12-07","2025-12-13",50,50,5,0,0,1,0,0,null,null,0]
["4","1.2.1.3","1","1.2","1.2.1","1.2.1.3",null,null,null,null,null,null,"Application Code 대상 패턴 분석 vs AI 분석 비교 기능","홍성훈","2025-12-08","2025-12-15","2025-12-07","2025-12-13",50,50,5,0,0,1,0,0,null,null,0]
["4","1.2.1.3","1","1.2","1.2.1","1.2.1.3",null,null,null,null,null,null,"Application Code 대상 패턴 분석 vs AI 분석 비교 기능","양형석","2025-12-08","2025-12-15","2025-12-07","2025-12-13",50,50,5,0,0,1,0,0,null,null,0]
["4","1.2.1.3","1","1.2","1.2.1","1.2.1.3",null,null,null,null,null,null,"Application Code 대상 패턴 분석 vs AI 분석 비교 기능","이민규","2025-12-08","2025-12-15","2025-12-14","2025-12-20",51,51,1,0,0,1,0,0,null,null,0]
["4","1.2.1.3","1","1.2","1.2.1","1.2.1.3",null,null,null,null,null,null,"Application Code 대상 패턴 분석 vs AI 분석 비교 기능","홍성훈","2025-12-08","2025-12-15","2025-12-14","2025-12-20",51,51,1,0,0,1,0,0,null,null,0]
["4","1.2.1.3","1","1.2","1.2.1","1.2.1.3",null,null,null,null,null,null,"Application Code 대상 패턴 분석 vs AI 분석 비교 기능","양형석","2025-12-08","2025-12-15","2025-12-14","2025-12-20",51,51,1,0,0,1,0,0,null,null,0]
["4","1.2.1.4","1","1.2","1.2.1","1.2.1.4",null,null,null,null,null,null,"Application Code 대상 패턴 분석 vs AI 분석 우선순위 기능","이민규","2025-12-16","2025-12-23","2025-12-14","2025-12-20",51,51,4,0,0,1,0,0,null,null,0]
["4","1.2.1.4","1","1.2","1.2.1","1.2.1.4",null,null,null,null,null,null,"Application Code 대상 패턴 분석 vs AI 분석 우선순위 기능","홍성훈","2025-12-16","2025-12-23","2025-12-14","2025-12-20",51,51,4,0,0,1,0,0,null,null,0]
["4","1.2.1.4","1","1.2","1.2.1","1.2.1.4",null,null,null,null,null,null,"Application Code 대상 패턴 분석 vs AI 분석 우선순위 기능","양형석","2025-12-16","2025-12-23","2025-12-14","2025-12-20",51,51,4,0,0,1,0,0,null,null,0]
["4","1.2.1.4","1","1.2","1.2.1","1.2.1.4",null,null,null,null,null,null,"Application Code 대상 패턴 분석 vs AI 분석 우선순위 기능","이민규","2025-12-16","2025-12-23","2025-12-21","2025-12-27",52,52,2,0,0,1,0,0,null,null,0]
["4","1.2.1.4","1","1.2","1.2.1","1.2.1.4",null,null,null,null,null,null,"Application Code 대상 패턴 분석 vs AI 분석 우선순위 기능","홍성훈","2025-12-16","2025-12-23","2025-12-21","2025-12-27",52,52,2,0,0,1,0,0,null,null,0]
["4","1.2.1.4","1","1.2","1.2.1","1.2.1.4",null,null,null,null,null,null,"Application Code 대상 패턴 분석 vs AI 분석 우선순위 기능","양형석","2025-12-16","2025-12-23","2025-12-21","2025-12-27",52,52,2,0,0,1,0,0,null,null,0]
["4","1.2.1.5","1","1.2","1.2.1","1.2.1.5",null,null,null,null,null,null,"결과 데이터 맵핑 기능","이민규","2025-12-24","2025-12-30","2025-12-21","2025-12-27",52,52,2,0,0,1,0,0,null,null,0]
["4","1.2.1.5","1","1.2","1.2.1","1.2.1.5",null,null,null,null,null,null,"결과 데이터 맵핑 기능","홍성훈","2025-12-24","2025-12-30","2025-12-21","2025-12-27",52,52,2,0,0,1,0,0,null,null,0]
["4","1.2.1.5","1","1.2","1.2.1","1.2.1.5",null,null,null,null,null,null,"결과 데이터 맵핑 기능","양형석","2025-12-24","2025-12-30","2025-12-21","2025-12-27",52,52,2,0,0,1,0,0,null,null,0]
["4","1.2.1.5","1","1.2","1.2.1","1.2.1.5",null,null,null,null,null,null,"결과 데이터 맵핑 기능","이민규","2025-12-24","2025-12-30","2025-12-28","2026-01-03",53,53,2,0,0,1,0,0,null,null,0]
["4","1.2.1.5","1","1.2","1.2.1","1.2.1.5",null,null,null,null,null,null,"결과 데이터 맵핑 기능","홍성훈","2025-12-24","2025-12-30","2025-12-28","2026-01-03",53,53,2,0,0,1,0,0,null,null,0]
["4","1.2.1.5","1","1.2","1.2.1","1.2.1.5",null,null,null,null,null,null,"결과 데이터 맵핑 기능","양형석","2025-12-24","2025-12-30","2025-12-28","2026-01-03",53,53,2,0,0,1,0,0,null,null,0]
["4","1.2.2.1","1","1.2","1.2.2","1.2.2.1",null,null,null,null,null,null,"Git Server 동적 설정 모듈 ( Git Repo C/R/U/D, Config )","이민규","2025-05-16","2025-06-15","2025-05-11","2025-05-17",20,20,1,0,0,1,0,0,null,null,0]
["4","1.2.2.1","1","1.2","1.2.2","1.2.2.1",null,null,null,null,null,null,"Git Server 동적 설정 모듈 ( Git Repo C/R/U/D, Config )","이민규","2025-05-16","2025-06-15","2025-05-18","2025-05-24",21,21,5,0,0,1,0,0,null,null,0]
["4","1.2.2.1","1","1.2","1.2.2","1.2.2.1",null,null,null,null,null,null,"Git Server 동적 설정 모듈 ( Git Repo C/R/U/D, Config )","이민규","2025-05-16","2025-06-15","2025-05-25","2025-05-31",22,22,5,0,0,1,0,0,null,null,0]
["4","1.2.2.1","1","1.2","1.2.2","1.2.2.1",null,null,null,null,null,null,"Git Server 동적 설정 모듈 ( Git Repo C/R/U/D, Config )","이민규","2025-05-16","2025-06-15","2025-06-01","2025-06-07",23,23,3,0,0,1,0,0,null,null,0]
["4","1.2.2.1","1","1.2","1.2.2","1.2.2.1",null,null,null,null,null,null,"Git Server 동적 설정 모듈 ( Git Repo C/R/U/D, Config )","이민규","2025-05-16","2025-06-15","2025-06-08","2025-06-14",24,24,5,0,0,1,0,0,null,null,0]
["4","1.2.2.1","1","1.2","1.2.2","1.2.2.1",null,null,null,null,null,null,"Git Server 동적 설정 모듈 ( Git Repo C/R/U/D, Config )","이민규","2025-05-16","2025-06-15","2025-06-15","2025-06-21",25,25,0,0,0,1,0,0,null,null,0]
["4","1.2.2.2","1","1.2","1.2.2","1.2.2.2",null,null,null,null,null,null,"Git Server 업로더, SCM 연동 - 동적 설정 화면 개발","홍성훈","2025-05-16","2025-06-15","2025-05-11","2025-05-17",20,20,1,0,0,1,0,0,null,null,0]
["4","1.2.2.2","1","1.2","1.2.2","1.2.2.2",null,null,null,null,null,null,"Git Server 업로더, SCM 연동 - 동적 설정 화면 개발","홍성훈","2025-05-16","2025-06-15","2025-05-18","2025-05-24",21,21,5,0,0,1,0,0,null,null,0]
["4","1.2.2.2","1","1.2","1.2.2","1.2.2.2",null,null,null,null,null,null,"Git Server 업로더, SCM 연동 - 동적 설정 화면 개발","홍성훈","2025-05-16","2025-06-15","2025-05-25","2025-05-31",22,22,5,0,0,1,0,0,null,null,0]
["4","1.2.2.2","1","1.2","1.2.2","1.2.2.2",null,null,null,null,null,null,"Git Server 업로더, SCM 연동 - 동적 설정 화면 개발","홍성훈","2025-05-16","2025-06-15","2025-06-01","2025-06-07",23,23,3,0,0,1,0,0,null,null,0]
["4","1.2.2.2","1","1.2","1.2.2","1.2.2.2",null,null,null,null,null,null,"Git Server 업로더, SCM 연동 - 동적 설정 화면 개발","홍성훈","2025-05-16","2025-06-15","2025-06-08","2025-06-14",24,24,5,0,0,1,0,0,null,null,0]
["4","1.2.2.2","1","1.2","1.2.2","1.2.2.2",null,null,null,null,null,null,"Git Server 업로더, SCM 연동 - 동적 설정 화면 개발","홍성훈","2025-05-16","2025-06-15","2025-06-15","2025-06-21",25,25,0,0,0,1,0,0,null,null,0]
["4","1.2.2.3","1","1.2","1.2.2","1.2.2.3",null,null,null,null,null,null,"Git Server - Application Code (ES) 연동 모듈","이민규","2025-06-16","2025-07-15","2025-06-15","2025-06-21",25,25,5,0,0,1,0,0,null,null,0]
["4","1.2.2.3","1","1.2","1.2.2","1.2.2.3",null,null,null,null,null,null,"Git Server - Application Code (ES) 연동 모듈","이민규","2025-06-16","2025-07-15","2025-06-22","2025-06-28",26,26,5,0,0,1,0,0,null,null,0]
["4","1.2.2.3","1","1.2","1.2.2","1.2.2.3",null,null,null,null,null,null,"Git Server - Application Code (ES) 연동 모듈","이민규","2025-06-16","2025-07-15","2025-06-29","2025-07-05",27,27,5,0,0,1,0,0,null,null,0]
["4","1.2.2.3","1","1.2","1.2.2","1.2.2.3",null,null,null,null,null,null,"Git Server - Application Code (ES) 연동 모듈","이민규","2025-06-16","2025-07-15","2025-07-06","2025-07-12",28,28,5,0,0,1,0,0,null,null,0]
["4","1.2.2.3","1","1.2","1.2.2","1.2.2.3",null,null,null,null,null,null,"Git Server - Application Code (ES) 연동 모듈","이민규","2025-06-16","2025-07-15","2025-07-13","2025-07-19",29,29,2,0,0,1,0,0,null,null,0]
["4","1.2.2.4","1","1.2","1.2.2","1.2.2.4",null,null,null,null,null,null,"Git Server - Application Code (ES) Code Viewer 개발","홍성훈","2025-06-16","2025-07-15","2025-06-15","2025-06-21",25,25,5,0,0,1,0,0,null,null,0]
["4","1.2.2.4","1","1.2","1.2.2","1.2.2.4",null,null,null,null,null,null,"Git Server - Application Code (ES) Code Viewer 개발","홍성훈","2025-06-16","2025-07-15","2025-06-22","2025-06-28",26,26,5,0,0,1,0,0,null,null,0]
["4","1.2.2.4","1","1.2","1.2.2","1.2.2.4",null,null,null,null,null,null,"Git Server - Application Code (ES) Code Viewer 개발","홍성훈","2025-06-16","2025-07-15","2025-06-29","2025-07-05",27,27,5,0,0,1,0,0,null,null,0]
["4","1.2.2.4","1","1.2","1.2.2","1.2.2.4",null,null,null,null,null,null,"Git Server - Application Code (ES) Code Viewer 개발","홍성훈","2025-06-16","2025-07-15","2025-07-06","2025-07-12",28,28,5,0,0,1,0,0,null,null,0]
["4","1.2.2.4","1","1.2","1.2.2","1.2.2.4",null,null,null,null,null,null,"Git Server - Application Code (ES) Code Viewer 개발","홍성훈","2025-06-16","2025-07-15","2025-07-13","2025-07-19",29,29,2,0,0,1,0,0,null,null,0]
["4","1.2.2.5","1","1.2","1.2.2","1.2.2.5",null,null,null,null,null,null,"설정 파일 분류 / 분석 모듈 ( XML, YML, JSON )","이민규","2025-07-16","2025-08-15","2025-07-13","2025-07-19",29,29,3,0,0,1,0,0,null,null,0]
["4","1.2.2.5","1","1.2","1.2.2","1.2.2.5",null,null,null,null,null,null,"설정 파일 분류 / 분석 모듈 ( XML, YML, JSON )","이민규","2025-07-16","2025-08-15","2025-07-20","2025-07-26",30,30,5,0,0,1,0,0,null,null,0]
["4","1.2.2.5","1","1.2","1.2.2","1.2.2.5",null,null,null,null,null,null,"설정 파일 분류 / 분석 모듈 ( XML, YML, JSON )","이민규","2025-07-16","2025-08-15","2025-07-27","2025-08-02",31,31,5,0,0,1,0,0,null,null,0]
["4","1.2.2.5","1","1.2","1.2.2","1.2.2.5",null,null,null,null,null,null,"설정 파일 분류 / 분석 모듈 ( XML, YML, JSON )","이민규","2025-07-16","2025-08-15","2025-08-03","2025-08-09",32,32,5,0,0,1,0,0,null,null,0]
["4","1.2.2.5","1","1.2","1.2.2","1.2.2.5",null,null,null,null,null,null,"설정 파일 분류 / 분석 모듈 ( XML, YML, JSON )","이민규","2025-07-16","2025-08-15","2025-08-10","2025-08-16",33,33,4,0,0,1,0,0,null,null,0]
["4","1.2.2.6","1","1.2","1.2.2","1.2.2.6",null,null,null,null,null,null,"설정 파일 분석 전 분류 상태 Viewer 화면 개발","양형석","2025-07-16","2025-08-15","2025-07-13","2025-07-19",29,29,3,0,0,1,0,0,null,null,0]
["4","1.2.2.6","1","1.2","1.2.2","1.2.2.6",null,null,null,null,null,null,"설정 파일 분석 전 분류 상태 Viewer 화면 개발","양형석","2025-07-16","2025-08-15","2025-07-20","2025-07-26",30,30,5,0,0,1,0,0,null,null,0]
["4","1.2.2.6","1","1.2","1.2.2","1.2.2.6",null,null,null,null,null,null,"설정 파일 분석 전 분류 상태 Viewer 화면 개발","양형석","2025-07-16","2025-08-15","2025-07-27","2025-08-02",31,31,5,0,0,1,0,0,null,null,0]
["4","1.2.2.6","1","1.2","1.2.2","1.2.2.6",null,null,null,null,null,null,"설정 파일 분석 전 분류 상태 Viewer 화면 개발","양형석","2025-07-16","2025-08-15","2025-08-03","2025-08-09",32,32,5,0,0,1,0,0,null,null,0]
["4","1.2.2.6","1","1.2","1.2.2","1.2.2.6",null,null,null,null,null,null,"설정 파일 분석 전 분류 상태 Viewer 화면 개발","양형석","2025-07-16","2025-08-15","2025-08-10","2025-08-16",33,33,4,0,0,1,0,0,null,null,0]
["4","1.2.2.7","1","1.2","1.2.2","1.2.2.7",null,null,null,null,null,null,"설정 파일 분석 후 결과 화면 - 코드 및 설정 참조 트리 ","홍성훈","2025-07-16","2025-08-15","2025-07-13","2025-07-19",29,29,3,0,0,1,0,0,null,null,0]
["4","1.2.2.7","1","1.2","1.2.2","1.2.2.7",null,null,null,null,null,null,"설정 파일 분석 후 결과 화면 - 코드 및 설정 참조 트리 ","홍성훈","2025-07-16","2025-08-15","2025-07-20","2025-07-26",30,30,5,0,0,1,0,0,null,null,0]
["4","1.2.2.7","1","1.2","1.2.2","1.2.2.7",null,null,null,null,null,null,"설정 파일 분석 후 결과 화면 - 코드 및 설정 참조 트리 ","홍성훈","2025-07-16","2025-08-15","2025-07-27","2025-08-02",31,31,5,0,0,1,0,0,null,null,0]
["4","1.2.2.7","1","1.2","1.2.2","1.2.2.7",null,null,null,null,null,null,"설정 파일 분석 후 결과 화면 - 코드 및 설정 참조 트리 ","홍성훈","2025-07-16","2025-08-15","2025-08-03","2025-08-09",32,32,5,0,0,1,0,0,null,null,0]
["4","1.2.2.7","1","1.2","1.2.2","1.2.2.7",null,null,null,null,null,null,"설정 파일 분석 후 결과 화면 - 코드 및 설정 참조 트리 ","홍성훈","2025-07-16","2025-08-15","2025-08-10","2025-08-16",33,33,4,0,0,1,0,0,null,null,0]
["4","1.2.2.8","1","1.2","1.2.2","1.2.2.8",null,null,null,null,null,null,"어플리케이션 패키지레벨 코드 분석","이민규","2025-08-16","2025-09-30","2025-08-10","2025-08-16",33,33,0,0,0,1,0,0,null,null,0]
["4","1.2.2.8","1","1.2","1.2.2","1.2.2.8",null,null,null,null,null,null,"어플리케이션 패키지레벨 코드 분석","이민규","2025-08-16","2025-09-30","2025-08-17","2025-08-23",34,34,5,0,0,1,0,0,null,null,0]
["4","1.2.2.8","1","1.2","1.2.2","1.2.2.8",null,null,null,null,null,null,"어플리케이션 패키지레벨 코드 분석","이민규","2025-08-16","2025-09-30","2025-08-24","2025-08-30",35,35,5,0,0,1,0,0,null,null,0]
["4","1.2.2.8","1","1.2","1.2.2","1.2.2.8",null,null,null,null,null,null,"어플리케이션 패키지레벨 코드 분석","이민규","2025-08-16","2025-09-30","2025-08-31","2025-09-06",36,36,5,0,0,1,0,0,null,null,0]
["4","1.2.2.8","1","1.2","1.2.2","1.2.2.8",null,null,null,null,null,null,"어플리케이션 패키지레벨 코드 분석","이민규","2025-08-16","2025-09-30","2025-09-07","2025-09-13",37,37,5,0,0,1,0,0,null,null,0]
["4","1.2.2.8","1","1.2","1.2.2","1.2.2.8",null,null,null,null,null,null,"어플리케이션 패키지레벨 코드 분석","이민규","2025-08-16","2025-09-30","2025-09-14","2025-09-20",38,38,5,0,0,1,0,0,null,null,0]
["4","1.2.2.8","1","1.2","1.2.2","1.2.2.8",null,null,null,null,null,null,"어플리케이션 패키지레벨 코드 분석","이민규","2025-08-16","2025-09-30","2025-09-21","2025-09-27",39,39,5,0,0,1,0,0,null,null,0]
["4","1.2.2.8","1","1.2","1.2.2","1.2.2.8",null,null,null,null,null,null,"어플리케이션 패키지레벨 코드 분석","이민규","2025-08-16","2025-09-30","2025-09-28","2025-10-04",40,40,2,0,0,1,0,0,null,null,0]
["4","1.2.2.9","1","1.2","1.2.2","1.2.2.9",null,null,null,null,null,null,"패키지 코드 분석 전 분류 상태 Viewer 화면 개발","양형석","2025-08-16","2025-09-15","2025-08-10","2025-08-16",33,33,0,0,0,1,0,0,null,null,0]
["4","1.2.2.9","1","1.2","1.2.2","1.2.2.9",null,null,null,null,null,null,"패키지 코드 분석 전 분류 상태 Viewer 화면 개발","양형석","2025-08-16","2025-09-15","2025-08-17","2025-08-23",34,34,5,0,0,1,0,0,null,null,0]
["4","1.2.2.9","1","1.2","1.2.2","1.2.2.9",null,null,null,null,null,null,"패키지 코드 분석 전 분류 상태 Viewer 화면 개발","양형석","2025-08-16","2025-09-15","2025-08-24","2025-08-30",35,35,5,0,0,1,0,0,null,null,0]
["4","1.2.2.9","1","1.2","1.2.2","1.2.2.9",null,null,null,null,null,null,"패키지 코드 분석 전 분류 상태 Viewer 화면 개발","양형석","2025-08-16","2025-09-15","2025-08-31","2025-09-06",36,36,5,0,0,1,0,0,null,null,0]
["4","1.2.2.9","1","1.2","1.2.2","1.2.2.9",null,null,null,null,null,null,"패키지 코드 분석 전 분류 상태 Viewer 화면 개발","양형석","2025-08-16","2025-09-15","2025-09-07","2025-09-13",37,37,5,0,0,1,0,0,null,null,0]
["4","1.2.2.9","1","1.2","1.2.2","1.2.2.9",null,null,null,null,null,null,"패키지 코드 분석 전 분류 상태 Viewer 화면 개발","양형석","2025-08-16","2025-09-15","2025-09-14","2025-09-20",38,38,1,0,0,1,0,0,null,null,0]
["4","1.2.2.10","1","1.2","1.2.2","1.2.2.10",null,null,null,null,null,null,"패키지 코드 분석 후 결과 화면 - 코드 레벨 데이터베이스 참조 트리","홍성훈","2025-08-16","2025-09-15","2025-08-10","2025-08-16",33,33,0,0,0,1,0,0,null,null,0]
["4","1.2.2.10","1","1.2","1.2.2","1.2.2.10",null,null,null,null,null,null,"패키지 코드 분석 후 결과 화면 - 코드 레벨 데이터베이스 참조 트리","홍성훈","2025-08-16","2025-09-15","2025-08-17","2025-08-23",34,34,5,0,0,1,0,0,null,null,0]
["4","1.2.2.10","1","1.2","1.2.2","1.2.2.10",null,null,null,null,null,null,"패키지 코드 분석 후 결과 화면 - 코드 레벨 데이터베이스 참조 트리","홍성훈","2025-08-16","2025-09-15","2025-08-24","2025-08-30",35,35,5,0,0,1,0,0,null,null,0]
["4","1.2.2.10","1","1.2","1.2.2","1.2.2.10",null,null,null,null,null,null,"패키지 코드 분석 후 결과 화면 - 코드 레벨 데이터베이스 참조 트리","홍성훈","2025-08-16","2025-09-15","2025-08-31","2025-09-06",36,36,5,0,0,1,0,0,null,null,0]
["4","1.2.2.10","1","1.2","1.2.2","1.2.2.10",null,null,null,null,null,null,"패키지 코드 분석 후 결과 화면 - 코드 레벨 데이터베이스 참조 트리","홍성훈","2025-08-16","2025-09-15","2025-09-07","2025-09-13",37,37,5,0,0,1,0,0,null,null,0]
["4","1.2.2.10","1","1.2","1.2.2","1.2.2.10",null,null,null,null,null,null,"패키지 코드 분석 후 결과 화면 - 코드 레벨 데이터베이스 참조 트리","홍성훈","2025-08-16","2025-09-15","2025-09-14","2025-09-20",38,38,1,0,0,1,0,0,null,null,0]
["4","1.2.2.11","1","1.2","1.2.2","1.2.2.11",null,null,null,null,null,null,"데이터베이스 설정 및 mapping 분석","이민규","2025-10-01","2025-10-30","2025-09-28","2025-10-04",40,40,2,0,0,1,0,0,null,null,0]
["4","1.2.2.11","1","1.2","1.2.2","1.2.2.11",null,null,null,null,null,null,"데이터베이스 설정 및 mapping 분석","이민규","2025-10-01","2025-10-30","2025-10-05","2025-10-11",41,41,1,0,0,1,0,0,null,null,0]
["4","1.2.2.11","1","1.2","1.2.2","1.2.2.11",null,null,null,null,null,null,"데이터베이스 설정 및 mapping 분석","이민규","2025-10-01","2025-10-30","2025-10-12","2025-10-18",42,42,5,0,0,1,0,0,null,null,0]
["4","1.2.2.11","1","1.2","1.2.2","1.2.2.11",null,null,null,null,null,null,"데이터베이스 설정 및 mapping 분석","이민규","2025-10-01","2025-10-30","2025-10-19","2025-10-25",43,43,5,0,0,1,0,0,null,null,0]
["4","1.2.2.11","1","1.2","1.2.2","1.2.2.11",null,null,null,null,null,null,"데이터베이스 설정 및 mapping 분석","이민규","2025-10-01","2025-10-30","2025-10-26","2025-11-01",44,44,4,0,0,1,0,0,null,null,0]
["4","1.2.2.12","1","1.2","1.2.2","1.2.2.12",null,null,null,null,null,null,"데이터베이스 맵핑 분석 전 분류 상태 Viewer 화면 개발","양형석","2025-09-16","2025-10-15","2025-09-14","2025-09-20",38,38,4,0,0,1,0,0,null,null,0]
["4","1.2.2.12","1","1.2","1.2.2","1.2.2.12",null,null,null,null,null,null,"데이터베이스 맵핑 분석 전 분류 상태 Viewer 화면 개발","양형석","2025-09-16","2025-10-15","2025-09-21","2025-09-27",39,39,5,0,0,1,0,0,null,null,0]
["4","1.2.2.12","1","1.2","1.2.2","1.2.2.12",null,null,null,null,null,null,"데이터베이스 맵핑 분석 전 분류 상태 Viewer 화면 개발","양형석","2025-09-16","2025-10-15","2025-09-28","2025-10-04",40,40,4,0,0,1,0,0,null,null,0]
["4","1.2.2.12","1","1.2","1.2.2","1.2.2.12",null,null,null,null,null,null,"데이터베이스 맵핑 분석 전 분류 상태 Viewer 화면 개발","양형석","2025-09-16","2025-10-15","2025-10-05","2025-10-11",41,41,1,0,0,1,0,0,null,null,0]
["4","1.2.2.12","1","1.2","1.2.2","1.2.2.12",null,null,null,null,null,null,"데이터베이스 맵핑 분석 전 분류 상태 Viewer 화면 개발","양형석","2025-09-16","2025-10-15","2025-10-12","2025-10-18",42,42,3,0,0,1,0,0,null,null,0]
["4","1.2.2.13","1","1.2","1.2.2","1.2.2.13",null,null,null,null,null,null,"데이터베이스 맵핑 분석 후 결과 화면 - 데이터베이스 오브젝트 참조 트리","홍성훈","2025-09-16","2025-10-15","2025-09-14","2025-09-20",38,38,4,0,0,1,0,0,null,null,0]
["4","1.2.2.13","1","1.2","1.2.2","1.2.2.13",null,null,null,null,null,null,"데이터베이스 맵핑 분석 후 결과 화면 - 데이터베이스 오브젝트 참조 트리","홍성훈","2025-09-16","2025-10-15","2025-09-21","2025-09-27",39,39,5,0,0,1,0,0,null,null,0]
["4","1.2.2.13","1","1.2","1.2.2","1.2.2.13",null,null,null,null,null,null,"데이터베이스 맵핑 분석 후 결과 화면 - 데이터베이스 오브젝트 참조 트리","홍성훈","2025-09-16","2025-10-15","2025-09-28","2025-10-04",40,40,4,0,0,1,0,0,null,null,0]
["4","1.2.2.13","1","1.2","1.2.2","1.2.2.13",null,null,null,null,null,null,"데이터베이스 맵핑 분석 후 결과 화면 - 데이터베이스 오브젝트 참조 트리","홍성훈","2025-09-16","2025-10-15","2025-10-05","2025-10-11",41,41,1,0,0,1,0,0,null,null,0]
["4","1.2.2.13","1","1.2","1.2.2","1.2.2.13",null,null,null,null,null,null,"데이터베이스 맵핑 분석 후 결과 화면 - 데이터베이스 오브젝트 참조 트리","홍성훈","2025-09-16","2025-10-15","2025-10-12","2025-10-18",42,42,3,0,0,1,0,0,null,null,0]
["4","1.2.2.14","1","1.2","1.2.2","1.2.2.14",null,null,null,null,null,null,"진단 컬럼 분류 분석 자동 데이터 맵핑","이민규","2025-11-01","2025-11-30","2025-10-26","2025-11-01",44,44,0,0,0,1,0,0,null,null,0]
["4","1.2.2.14","1","1.2","1.2.2","1.2.2.14",null,null,null,null,null,null,"진단 컬럼 분류 분석 자동 데이터 맵핑","이민규","2025-11-01","2025-11-30","2025-11-02","2025-11-08",45,45,5,0,0,1,0,0,null,null,0]
["4","1.2.2.14","1","1.2","1.2.2","1.2.2.14",null,null,null,null,null,null,"진단 컬럼 분류 분석 자동 데이터 맵핑","이민규","2025-11-01","2025-11-30","2025-11-09","2025-11-15",46,46,5,0,0,1,0,0,null,null,0]
["4","1.2.2.14","1","1.2","1.2.2","1.2.2.14",null,null,null,null,null,null,"진단 컬럼 분류 분석 자동 데이터 맵핑","이민규","2025-11-01","2025-11-30","2025-11-16","2025-11-22",47,47,5,0,0,1,0,0,null,null,0]
["4","1.2.2.14","1","1.2","1.2.2","1.2.2.14",null,null,null,null,null,null,"진단 컬럼 분류 분석 자동 데이터 맵핑","이민규","2025-11-01","2025-11-30","2025-11-23","2025-11-29",48,48,5,0,0,1,0,0,null,null,0]
["4","1.2.2.14","1","1.2","1.2.2","1.2.2.14",null,null,null,null,null,null,"진단 컬럼 분류 분석 자동 데이터 맵핑","이민규","2025-11-01","2025-11-30","2025-11-30","2025-12-06",49,49,0,0,0,1,0,0,null,null,0]
["4","1.2.2.15","1","1.2","1.2.2","1.2.2.15",null,null,null,null,null,null,"맵핑 후 분석 결과 - 변경 영향 분석 ( 토폴로지 맵핑 정보 )","홍성훈","2025-10-16","2025-11-30","2025-10-12","2025-10-18",42,42,2,0,0,1,0,0,null,null,0]
["4","1.2.2.15","1","1.2","1.2.2","1.2.2.15",null,null,null,null,null,null,"맵핑 후 분석 결과 - 변경 영향 분석 ( 토폴로지 맵핑 정보 )","홍성훈","2025-10-16","2025-11-30","2025-10-19","2025-10-25",43,43,5,0,0,1,0,0,null,null,0]
["4","1.2.2.15","1","1.2","1.2.2","1.2.2.15",null,null,null,null,null,null,"맵핑 후 분석 결과 - 변경 영향 분석 ( 토폴로지 맵핑 정보 )","홍성훈","2025-10-16","2025-11-30","2025-10-26","2025-11-01",44,44,5,0,0,1,0,0,null,null,0]
["4","1.2.2.15","1","1.2","1.2.2","1.2.2.15",null,null,null,null,null,null,"맵핑 후 분석 결과 - 변경 영향 분석 ( 토폴로지 맵핑 정보 )","홍성훈","2025-10-16","2025-11-30","2025-11-02","2025-11-08",45,45,5,0,0,1,0,0,null,null,0]
["4","1.2.2.15","1","1.2","1.2.2","1.2.2.15",null,null,null,null,null,null,"맵핑 후 분석 결과 - 변경 영향 분석 ( 토폴로지 맵핑 정보 )","홍성훈","2025-10-16","2025-11-30","2025-11-09","2025-11-15",46,46,5,0,0,1,0,0,null,null,0]
["4","1.2.2.15","1","1.2","1.2.2","1.2.2.15",null,null,null,null,null,null,"맵핑 후 분석 결과 - 변경 영향 분석 ( 토폴로지 맵핑 정보 )","홍성훈","2025-10-16","2025-11-30","2025-11-16","2025-11-22",47,47,5,0,0,1,0,0,null,null,0]
["4","1.2.2.15","1","1.2","1.2.2","1.2.2.15",null,null,null,null,null,null,"맵핑 후 분석 결과 - 변경 영향 분석 ( 토폴로지 맵핑 정보 )","홍성훈","2025-10-16","2025-11-30","2025-11-23","2025-11-29",48,48,5,0,0,1,0,0,null,null,0]
["4","1.2.2.15","1","1.2","1.2.2","1.2.2.15",null,null,null,null,null,null,"맵핑 후 분석 결과 - 변경 영향 분석 ( 토폴로지 맵핑 정보 )","홍성훈","2025-10-16","2025-11-30","2025-11-30","2025-12-06",49,49,0,0,0,1,0,0,null,null,0]
["4","1.2.2.16","1","1.2","1.2.2","1.2.2.16",null,null,null,null,null,null,"맵핑 후 분석 결과 - 변경 영향 분석 ( 코드 레벨 변경 시 설정 정보 변경 )","양형석","2025-10-16","2025-11-30","2025-10-12","2025-10-18",42,42,2,0,0,1,0,0,null,null,0]
["4","1.2.2.16","1","1.2","1.2.2","1.2.2.16",null,null,null,null,null,null,"맵핑 후 분석 결과 - 변경 영향 분석 ( 코드 레벨 변경 시 설정 정보 변경 )","양형석","2025-10-16","2025-11-30","2025-10-19","2025-10-25",43,43,5,0,0,1,0,0,null,null,0]
["4","1.2.2.16","1","1.2","1.2.2","1.2.2.16",null,null,null,null,null,null,"맵핑 후 분석 결과 - 변경 영향 분석 ( 코드 레벨 변경 시 설정 정보 변경 )","양형석","2025-10-16","2025-11-30","2025-10-26","2025-11-01",44,44,5,0,0,1,0,0,null,null,0]
["4","1.2.2.16","1","1.2","1.2.2","1.2.2.16",null,null,null,null,null,null,"맵핑 후 분석 결과 - 변경 영향 분석 ( 코드 레벨 변경 시 설정 정보 변경 )","양형석","2025-10-16","2025-11-30","2025-11-02","2025-11-08",45,45,5,0,0,1,0,0,null,null,0]
["4","1.2.2.16","1","1.2","1.2.2","1.2.2.16",null,null,null,null,null,null,"맵핑 후 분석 결과 - 변경 영향 분석 ( 코드 레벨 변경 시 설정 정보 변경 )","양형석","2025-10-16","2025-11-30","2025-11-09","2025-11-15",46,46,5,0,0,1,0,0,null,null,0]
["4","1.2.2.16","1","1.2","1.2.2","1.2.2.16",null,null,null,null,null,null,"맵핑 후 분석 결과 - 변경 영향 분석 ( 코드 레벨 변경 시 설정 정보 변경 )","양형석","2025-10-16","2025-11-30","2025-11-16","2025-11-22",47,47,5,0,0,1,0,0,null,null,0]
["4","1.2.2.16","1","1.2","1.2.2","1.2.2.16",null,null,null,null,null,null,"맵핑 후 분석 결과 - 변경 영향 분석 ( 코드 레벨 변경 시 설정 정보 변경 )","양형석","2025-10-16","2025-11-30","2025-11-23","2025-11-29",48,48,5,0,0,1,0,0,null,null,0]
["4","1.2.2.16","1","1.2","1.2.2","1.2.2.16",null,null,null,null,null,null,"맵핑 후 분석 결과 - 변경 영향 분석 ( 코드 레벨 변경 시 설정 정보 변경 )","양형석","2025-10-16","2025-11-30","2025-11-30","2025-12-06",49,49,0,0,0,1,0,0,null,null,0]
["4","1.2.3.1","1","1.2","1.2.3","1.2.3.1",null,null,null,null,null,null,"온라인 메뉴얼 시스템 선정 및 구축","이동민","2025-06-01","2025-06-15","2025-06-01","2025-06-07",23,23,3,0,0,1,0,0,null,null,0]
["4","1.2.3.1","1","1.2","1.2.3","1.2.3.1",null,null,null,null,null,null,"온라인 메뉴얼 시스템 선정 및 구축","이동민","2025-06-01","2025-06-15","2025-06-08","2025-06-14",24,24,5,0,0,1,0,0,null,null,0]
["4","1.2.3.1","1","1.2","1.2.3","1.2.3.1",null,null,null,null,null,null,"온라인 메뉴얼 시스템 선정 및 구축","이동민","2025-06-01","2025-06-15","2025-06-15","2025-06-21",25,25,0,0,0,1,0,0,null,null,0]
["4","1.2.3.2","1","1.2","1.2.3","1.2.3.2",null,null,null,null,null,null,"메뉴얼 작성 : System","이동민","2025-06-16","2025-06-30","2025-06-15","2025-06-21",25,25,5,0,0,1,0,0,null,null,0]
["4","1.2.3.2","1","1.2","1.2.3","1.2.3.2",null,null,null,null,null,null,"메뉴얼 작성 : System","이동민","2025-06-16","2025-06-30","2025-06-22","2025-06-28",26,26,5,0,0,1,0,0,null,null,0]
["4","1.2.3.2","1","1.2","1.2.3","1.2.3.2",null,null,null,null,null,null,"메뉴얼 작성 : System","이동민","2025-06-16","2025-06-30","2025-06-29","2025-07-05",27,27,1,0,0,1,0,0,null,null,0]
["4","1.2.3.3","1","1.2","1.2.3","1.2.3.3",null,null,null,null,null,null,"메뉴얼 작성 : Discovery","이동민","2025-07-01","2025-07-15","2025-06-29","2025-07-05",27,27,4,0,0,1,0,0,null,null,0]
["4","1.2.3.3","1","1.2","1.2.3","1.2.3.3",null,null,null,null,null,null,"메뉴얼 작성 : Discovery","이동민","2025-07-01","2025-07-15","2025-07-06","2025-07-12",28,28,5,0,0,1,0,0,null,null,0]
["4","1.2.3.3","1","1.2","1.2.3","1.2.3.3",null,null,null,null,null,null,"메뉴얼 작성 : Discovery","이동민","2025-07-01","2025-07-15","2025-07-13","2025-07-19",29,29,2,0,0,1,0,0,null,null,0]
["4","1.2.3.4","1","1.2","1.2.3","1.2.3.4",null,null,null,null,null,null,"메뉴얼 작성 : Assessment","이동민","2025-07-16","2025-07-30","2025-07-13","2025-07-19",29,29,3,0,0,1,0,0,null,null,0]
["4","1.2.3.4","1","1.2","1.2.3","1.2.3.4",null,null,null,null,null,null,"메뉴얼 작성 : Assessment","이동민","2025-07-16","2025-07-30","2025-07-20","2025-07-26",30,30,5,0,0,1,0,0,null,null,0]
["4","1.2.3.4","1","1.2","1.2.3","1.2.3.4",null,null,null,null,null,null,"메뉴얼 작성 : Assessment","이동민","2025-07-16","2025-07-30","2025-07-27","2025-08-02",31,31,3,0,0,1,0,0,null,null,0]
["4","1.2.3.5","1","1.2","1.2.3","1.2.3.5",null,null,null,null,null,null,"메뉴얼 작성 : Migrtaion","이동민","2025-08-01","2025-08-15","2025-07-27","2025-08-02",31,31,1,0,0,1,0,0,null,null,0]
["4","1.2.3.5","1","1.2","1.2.3","1.2.3.5",null,null,null,null,null,null,"메뉴얼 작성 : Migrtaion","이동민","2025-08-01","2025-08-15","2025-08-03","2025-08-09",32,32,5,0,0,1,0,0,null,null,0]
["4","1.2.3.5","1","1.2","1.2.3","1.2.3.5",null,null,null,null,null,null,"메뉴얼 작성 : Migrtaion","이동민","2025-08-01","2025-08-15","2025-08-10","2025-08-16",33,33,4,0,0,1,0,0,null,null,0]
["4","1.2.3.6","1","1.2","1.2.3","1.2.3.6",null,null,null,null,null,null,"메뉴얼 작성 : BackOffice","이동민","2025-08-16","2025-08-30","2025-08-10","2025-08-16",33,33,0,0,0,1,0,0,null,null,0]
["4","1.2.3.6","1","1.2","1.2.3","1.2.3.6",null,null,null,null,null,null,"메뉴얼 작성 : BackOffice","이동민","2025-08-16","2025-08-30","2025-08-17","2025-08-23",34,34,5,0,0,1,0,0,null,null,0]
["4","1.2.3.6","1","1.2","1.2.3","1.2.3.6",null,null,null,null,null,null,"메뉴얼 작성 : BackOffice","이동민","2025-08-16","2025-08-30","2025-08-24","2025-08-30",35,35,5,0,0,1,0,0,null,null,0]
["4","1.2.4.1","1","1.2","1.2.4","1.2.4.1",null,null,null,null,null,null,"Product Development 기술 지원","이동민","2025-09-01","2025-09-15","2025-08-31","2025-09-06",36,36,5,0,0,1,0,0,null,null,0]
["4","1.2.4.1","1","1.2","1.2.4","1.2.4.1",null,null,null,null,null,null,"Product Development 기술 지원","이동민","2025-09-01","2025-09-15","2025-09-07","2025-09-13",37,37,5,0,0,1,0,0,null,null,0]
["4","1.2.4.1","1","1.2","1.2.4","1.2.4.1",null,null,null,null,null,null,"Product Development 기술 지원","이동민","2025-09-01","2025-09-15","2025-09-14","2025-09-20",38,38,1,0,0,1,0,0,null,null,0]
["4","1.2.4.2","1","1.2","1.2.4","1.2.4.2",null,null,null,null,null,null,"Product Development, MVP Development PM Role","이동민","2025-10-01","2025-10-30","2025-09-28","2025-10-04",40,40,2,0,0,1,0,0,null,null,0]
["4","1.2.4.2","1","1.2","1.2.4","1.2.4.2",null,null,null,null,null,null,"Product Development, MVP Development PM Role","이동민","2025-10-01","2025-10-30","2025-10-05","2025-10-11",41,41,1,0,0,1,0,0,null,null,0]
["4","1.2.4.2","1","1.2","1.2.4","1.2.4.2",null,null,null,null,null,null,"Product Development, MVP Development PM Role","이동민","2025-10-01","2025-10-30","2025-10-12","2025-10-18",42,42,5,0,0,1,0,0,null,null,0]
["4","1.2.4.2","1","1.2","1.2.4","1.2.4.2",null,null,null,null,null,null,"Product Development, MVP Development PM Role","이동민","2025-10-01","2025-10-30","2025-10-19","2025-10-25",43,43,5,0,0,1,0,0,null,null,0]
["4","1.2.4.2","1","1.2","1.2.4","1.2.4.2",null,null,null,null,null,null,"Product Development, MVP Development PM Role","이동민","2025-10-01","2025-10-30","2025-10-26","2025-11-01",44,44,4,0,0,1,0,0,null,null,0]
["4","1.2.4.3","1","1.2","1.2.4","1.2.4.3",null,null,null,null,null,null,"HyperMig 운영 지원 활동 ( 소개 및 고객사 설치 ~ 지원 )","이동민","2025-12-01","2025-12-30","2025-11-30","2025-12-06",49,49,5,0,0,1,0,0,null,null,0]
["4","1.2.4.3","1","1.2","1.2.4","1.2.4.3",null,null,null,null,null,null,"HyperMig 운영 지원 활동 ( 소개 및 고객사 설치 ~ 지원 )","이동민","2025-12-01","2025-12-30","2025-12-07","2025-12-13",50,50,5,0,0,1,0,0,null,null,0]
["4","1.2.4.3","1","1.2","1.2.4","1.2.4.3",null,null,null,null,null,null,"HyperMig 운영 지원 활동 ( 소개 및 고객사 설치 ~ 지원 )","이동민","2025-12-01","2025-12-30","2025-12-14","2025-12-20",51,51,5,0,0,1,0,0,null,null,0]
["4","1.2.4.3","1","1.2","1.2.4","1.2.4.3",null,null,null,null,null,null,"HyperMig 운영 지원 활동 ( 소개 및 고객사 설치 ~ 지원 )","이동민","2025-12-01","2025-12-30","2025-12-21","2025-12-27",52,52,4,0,0,1,0,0,null,null,0]
["4","1.2.4.3","1","1.2","1.2.4","1.2.4.3",null,null,null,null,null,null,"HyperMig 운영 지원 활동 ( 소개 및 고객사 설치 ~ 지원 )","이동민","2025-12-01","2025-12-30","2025-12-28","2026-01-03",53,53,2,0,0,1,0,0,null,null,0]

{"sheet":"ServerData","index":8,"n_rows":90,"n_cols":24,"rows_kept":90,"cut":false,"hidden":false,"merged":[]}
["xlgantt_reserved","project_information","xlgantt_task_connection","xlgantt_task_id","wbs_level","WBS","작업","비고","시작일","완료일","Calendar","총작업량","계획작업량","총기간","계획기간","실제시작일","실제완료일","실제총작업량","실제총기간","가중치","담당","산출물","계획진척율","실적진척율"]
["Job result : 가져오기가 정상적으로 완료되었습니다.","HyperMig 2025",null,"1",1,"1","HyperMig 2025",null,"2025-01-01","2025-12-30",null,null,null,null,null,null,null,null,null,null,null,null,0,0]
["Completion Time : 2025-05-12 13:55:05","2025-01-01",null,"2",2,"1.1","BackOffice(ISMS-P)",null,"2025-04-01","2025-06-30",null,null,null,null,null,null,null,null,null,null,null,null,0,0]
[null,"2025-12-30",null,"3",3,"1.1.1","System",null,null,null,null,null,null,null,null,null,null,null,null,null,null,null,0,0]
[null,0,null,"4",4,"1.1.1.1","Schedule Config ( 인증 대응 개발 포함 )",null,"2025-05-01","2025-05-15",null,null,null,null,null,null,null,null,null,null,"양형석",null,0.8,0.8]
[null,0,null,"5",4,"1.1.1.2","Backup & Restore ( 인증 대응 개발 포함 )",null,"2025-05-16","2025-05-30",null,null,null,null,null,null,null,null,null,null,"양형석",null,0,0]
[null,null,null,"6",4,"1.1.1.3","License & System Info ( 인증 대응 개발 포함 )",null,"2025-06-01","2025-06-15",null,null,null,null,null,null,null,null,null,null,"양형석",null,0,0]
[null,null,null,"7",4,"1.1.1.4","Language Config ( 인증 대응 개발 포함 )",null,"2025-06-16","2025-06-30",null,null,null,null,null,null,null,null,null,null,"양형석",null,0,0]
[null,null,null,"8",4,"1.1.1.5","License 암호화 모듈 개발",null,"2025-05-12","2025-05-15",null,null,null,null,null,null,null,null,null,null,"이민규",null,0.2,0.5]
[null,null,null,"9",4,"1.1.1.6","인증 관련 시스템 페이지 스타일 작업 ( CSS 리팩토링 포함 )",null,"2025-05-12","2025-05-15",null,null,null,null,null,null,null,null,null,null,"홍성훈",null,0.2,0.8]
[null,null,null,"10",3,"1.1.2","Discovery"]
[null,null,null,"11",4,"1.1.2.1","OS Command - 화면 개발",null,"2025-01-01","2025-01-15",null,null,null,null,null,null,null,null,null,null,"양형석",null,1,1]
[null,null,null,"12",4,"1.1.2.2","OS Command - 서버 개발",null,"2025-01-01","2025-01-15",null,null,null,null,null,null,null,null,null,null,"이민규",null,1,1]
[null,null,null,"13",4,"1.1.2.3","Host Command - 화면 개발",null,"2025-01-16","2025-01-30",null,null,null,null,null,null,null,null,null,null,"양형석",null,1,1]
[null,null,null,"14",4,"1.1.2.4","Host Command - 서버 개발",null,"2025-01-16","2025-01-30",null,null,null,null,null,null,null,null,null,null,"이민규",null,1,1]
[null,null,null,"15",4,"1.1.2.5","신세계INC-대응 ( Unknown Host, Network, Proc State ) - 화면",null,"2025-02-01","2025-02-28",null,null,null,null,null,null,null,null,null,null,"양형석",null,1,1]
[null,null,null,"16",4,"1.1.2.6","신세계INC-대응 ( Unknown Host, Network, Proc State ) - 서버",null,"2025-02-01","2025-02-28",null,null,null,null,null,null,null,null,null,null,"이민규",null,1,1]
[null,null,null,"17",4,"1.1.2.7","KT - 대응 ( 데이터 암호화 , Disk 표시 ) - 설정, 화면",null,"2025-03-01","2025-03-30",null,null,null,null,null,null,null,null,null,null,"양형석",null,1,1]
[null,null,null,"18",4,"1.1.2.8","KT - 대응 ( 데이터 암호화 , Disk 표시 ) - 서버",null,"2025-03-01","2025-03-30",null,null,null,null,null,null,null,null,null,null,"이민규",null,1,1]
[null,null,null,"19",4,"1.1.2.9","I-CON 준비",null,"2025-02-15","2025-02-28",null,null,null,null,null,null,null,null,null,null,"이동민",null,1,1]
[null,null,null,"20",4,"1.1.2.10","ITSHOW 준비",null,"2025-03-01","2025-03-30",null,null,null,null,null,null,null,null,null,null,"이동민",null,1,1]
[null,null,null,"21",4,"1.1.2.11","I-CON, ITSHOW 대응 ( 스크린샷, PPT, 문서 )",null,"2025-04-01","2025-04-12",null,null,null,null,null,null,null,null,null,null,"양형석",null,1,1]
[null,null,null,"22",4,"1.1.2.12","I-CON, ITSHOW 대응 ( 스크린샷, PPT, 문서 )",null,"2025-04-01","2025-04-12",null,null,null,null,null,null,null,null,null,null,"이민규",null,1,1]
[null,null,null,"23",4,"1.1.2.13","Security -Group 기능 구현 ( Keycloak 어트리뷰트 UI )",null,"2025-04-16","2025-04-30",null,null,null,null,null,null,null,null,null,null,"양형석",null,1,1]
[null,null,null,"24",4,"1.1.2.14","Security -Group 기능 구현 ( Keycloak Group Role 구현 )",null,"2025-04-16","2025-04-30",null,null,null,null,null,null,null,null,null,null,"이민규",null,1,1]
[null,null,null,"25",3,"1.1.3","Security"]
[null,null,null,"26",4,"1.1.3.1","User",null,"2025-01-01","2025-01-30",null,null,null,null,null,null,null,null,null,null,"홍성훈",null,1,0.8]
[null,null,null,"27",4,"1.1.3.2","Role",null,"2025-02-01","2025-02-28",null,null,null,null,null,null,null,null,null,null,"홍성훈",null,1,1]
[null,null,null,"28",4,"1.1.3.3","Group - Front Validate",null,"2025-03-01","2025-03-30",null,null,null,null,null,null,null,null,null,null,"홍성훈",null,1,1]
[null,null,null,"29",4,"1.1.3.4","Access Control",null,"2025-04-01","2025-04-30",null,null,null,null,null,null,null,null,null,null,"홍성훈",null,1,1]
[null,null,null,"30",3,"1.1.4","ISMS-P"]
[null,null,null,"31",4,"1.1.4.1","개인정보처리방침",null,"2025-04-15","2025-04-20",null,null,null,null,null,null,null,null,null,null,"양형석",null,1,0.5]
[null,null,null,"32",4,"1.1.4.2","자산 식별 (*IRMS 사용방법)",null,"2025-04-01","2025-04-03",null,null,null,null,null,null,null,null,null,null,"이동민",null,1,1]
[null,null,null,"33",4,"1.1.4.3","자산 식별 (*스페이스원 연동작업)",null,"2025-04-04","2025-04-06",null,null,null,null,null,null,null,null,null,null,"이동민",null,1,1]
[null,null,null,"34",4,"1.1.4.4","정보서비스 흐름도 ( IRM N/A )",null,"2025-04-07","2025-04-09",null,null,null,null,null,null,null,null,null,null,"이동민",null,1,1]
[null,null,null,"35",4,"1.1.4.5","개인정보흐름표",null,"2025-04-10","2025-04-12",null,null,null,null,null,null,null,null,null,null,"이동민",null,1,1]
[null,null,null,"36",4,"1.1.4.6","정보자산관리대장(자산&인원식별) ( IRM N/A )",null,"2025-04-13","2025-04-13",null,null,null,null,null,null,null,null,null,null,"이동민",null,1,1]
[null,null,null,"37",4,"1.1.4.7","ISMS-P_인증심사 운영 증적 취합",null,"2025-04-14","2025-04-16",null,null,null,null,null,null,null,null,null,null,"이동민",null,1,1]
[null,null,null,"38",4,"1.1.4.8","HyperMig 네트워크 구성도 - 서비스 구성도",null,"2025-04-17","2025-04-19",null,null,null,null,null,null,null,null,null,null,"이동민",null,1,1]
[null,null,null,"39",4,"1.1.4.9","서비스 운영정의서",null,"2025-05-29","2025-05-30",null,null,null,null,null,null,null,null,null,null,"이동민",null,0,0]
[null,null,null,"40",4,"1.1.4.10","정보자산 관리대장",null,"2025-05-27","2025-05-28",null,null,null,null,null,null,null,null,null,null,"이동민",null,0,0]
[null,null,null,"41",4,"1.1.4.11","업무(서비스/개발) 담당자 관리대장",null,"2025-05-25","2025-05-26",null,null,null,null,null,null,null,null,null,null,"이동민",null,0,0]
[null,null,null,"42",4,"1.1.4.12","정보시스템 변경관리대장",null,"2025-05-23","2025-05-24",null,null,null,null,null,null,null,null,null,null,"이동민",null,0,0]
[null,null,null,"43",4,"1.1.4.13","로그관리대장",null,"2025-05-21","2025-05-22",null,null,null,null,null,null,null,null,null,null,"이동민",null,0,0]
[null,null,null,"44",4,"1.1.4.14","비밀번호 규칙 및 암호키 관리대장",null,"2025-05-19","2025-05-20",null,null,null,null,null,null,null,null,null,null,"이동민",null,0,0]
[null,null,null,"45",4,"1.1.4.15","장애조치보고서 및 이력관리대장",null,"2025-05-17","2025-05-18",null,null,null,null,null,null,null,null,null,null,"이동민",null,0,0]
[null,null,null,"46",4,"1.1.4.16","백업관리 대장",null,"2025-05-15","2025-05-16",null,null,null,null,null,null,null,null,null,null,"이동민",null,0,0]
[null,null,null,"47",4,"1.1.4.17","침해사고 보고서",null,"2025-05-13","2025-05-14",null,null,null,null,null,null,null,null,null,null,"이동민",null,0,0]
[null,null,null,"48",4,"1.1.4.18","취약점 대응 및 AWS 시스템 작업",null,"2025-05-04","2025-05-10",null,null,null,null,null,null,null,null,null,null,"이동민",null,1,1]
[null,null,null,"49",2,1.2,"Application 분석 시스템 ( with. AI )"]
[null,null,null,"50",3,"1.2.1","AI"]
[null,null,null,"51",4,"1.2.1.1","Public LLM 선정, Ai Framework Skeleton ~ Interface 구현",null,"2025-11-01","2025-11-30",null,null,null,null,null,null,null,null,null,null,"이동민",null,0,0]
[null,null,null,"52",4,"1.2.1.2","Application Code 대상 분석 프롬프트 구현",null,"2025-12-01","2025-12-07",null,null,null,null,null,null,null,null,null,null,"이민규, 홍성훈, 양형석",null,0,0]
[null,null,null,"53",4,"1.2.1.3","Application Code 대상 패턴 분석 vs AI 분석 비교 기능",null,"2025-12-08","2025-12-15",null,null,null,null,null,null,null,null,null,null,"이민규, 홍성훈, 양형석",null,0,0]
[null,null,null,"54",4,"1.2.1.4","Application Code 대상 패턴 분석 vs AI 분석 우선순위 기능",null,"2025-12-16","2025-12-23",null,null,null,null,null,null,null,null,null,null,"이민규, 홍성훈, 양형석",null,0,0]
[null,null,null,"55",4,"1.2.1.5","결과 데이터 맵핑 기능",null,"2025-12-24","2025-12-30",null,null,null,null,null,null,null,null,null,null,"이민규, 홍성훈, 양형석",null,0,0]
[null,null,null,"56",3,"1.3.1","Application SourceCode 분석 ( 컴포넌트 개발 방법 채택 )"]
[null,null,null,null,4,"1.3.1.1","소스코드 업로드 및 고객사 코드 레파지토리 연동 기능"]
[null,null,null,"57",5,"1.3.1.1.1","Git Server 동적 설정 모듈 ( Git Repo C/R/U/D, Config )",null,"2025-05-16","2025-06-15",null,null,null,null,null,null,null,null,null,null,"이민규",null,0,0]
[null,null,null,"58",5,"1.3.1.1.2","Git Server 업로더, SCM 연동 - 동적 설정 화면 개발",null,"2025-05-16","2025-06-15",null,null,null,null,null,null,null,null,null,null,"홍성훈",null,0,0]
[null,null,null,null,4,"1.3.1.2","소스코드 대상 검색엔진 로드 및 코드 뷰어 기능"]
[null,null,null,"59",5,"1.3.1.2.1","Git Server - Application Code (ES) 연동 모듈",null,"2025-06-16","2025-07-15",null,null,null,null,null,null,null,null,null,null,"이민규",null,0,0]
[null,null,null,"60",5,"1.3.1.2.2","Git Server - Application Code (ES) Code Viewer 개발",null,"2025-06-16","2025-07-15",null,null,null,null,null,null,null,null,null,null,"홍성훈",null,0,0]
[null,null,null,null,4,"1.3.1.3","소스코드 대상 설정 파일 분류 및 분석 기능"]
[null,null,null,"61",5,"1.3.1.3.1","설정 파일 분류 / 분석 모듈 ( XML, YML, JSON )",null,"2025-07-16","2025-08-15",null,null,null,null,null,null,null,null,null,null,"이민규",null,0,0]
[null,null,null,"62",5,"1.3.1.3.2","설정 파일 분석 전 분류 상태 Viewer 화면 개발",null,"2025-07-16","2025-08-15",null,null,null,null,null,null,null,null,null,null,"양형석",null,0,0]
[null,null,null,"63",5,"1.3.1.3.3","설정 파일 분석 후 결과 화면 - 코드 및 설정 참조 트리 ",null,"2025-07-16","2025-08-15",null,null,null,null,null,null,null,null,null,null,"홍성훈",null,0,0]
[null,null,null,null,4,"1.3.1.4","소스코드 대상 패키지레벨 단위 분석 기능"]
[null,null,null,"64",5,"1.3.1.4.1","어플리케이션 패키지레벨 코드 분석",null,"2025-08-16","2025-09-30",null,null,null,null,null,null,null,null,null,null,"이민규",null,0,0]
[null,null,null,"65",5,"1.3.1.4.2","패키지 코드 분석 전 분류 상태 Viewer 화면 개발",null,"2025-08-16","2025-09-15",null,null,null,null,null,null,null,null,null,null,"양형석",null,0,0]
[null,null,null,"66",5,"1.3.1.4.3","패키지 코드 분석 후 결과 화면 - 코드 레벨 데이터베이스 참조 트리",null,"2025-08-16","2025-09-15",null,null,null,null,null,null,null,null,null,null,"홍성훈",null,0,0]
[null,null,null,null,4,"1.3.1.5","소스코드 대상 데이터베이스 연계 분석 기능"]
[null,null,null,"67",5,"1.3.1.5.1","데이터베이스 설정 및 mapping 분석",null,"2025-10-01","2025-10-30",null,null,null,null,null,null,null,null,null,null,"이민규",null,0,0]
[null,null,null,"68",5,"1.3.1.5.2","데이터베이스 맵핑 분석 전 분류 상태 Viewer 화면 개발",null,"2025-09-16","2025-10-15",null,null,null,null,null,null,null,null,null,null,"양형석",null,0,0]
[null,null,null,"69",5,"1.3.1.5.3","데이터베이스 맵핑 분석 후 결과 화면 - 데이터베이스 오브젝트 참조 트리",null,"2025-09-16","2025-10-15",null,null,null,null,null,null,null,null,null,null,"홍성훈",null,0,0]
[null,null,null,null,4,"1.3.1.6","어플리케이션 Excel 컬럼 데이터 자동 맵핑 기능"]
[null,null,null,"70",5,"1.3.1.6.1","진단 컬럼 분류 분석 자동 데이터 맵핑",null,"2025-11-01","2025-11-30",null,null,null,null,null,null,null,null,null,null,"이민규",null,0,0]
[null,null,null,"71",5,"1.3.1.6.2","맵핑 후 분석 결과 - 변경 영향 분석 ( 토폴로지 맵핑 정보 )",null,"2025-10-16","2025-11-30",null,null,null,null,null,null,null,null,null,null,"홍성훈",null,0,0]
[null,null,null,"72",5,"1.3.1.6.3","맵핑 후 분석 결과 - 변경 영향 분석 ( 코드 레벨 변경 시 설정 정보 변경 )",null,"2025-10-16","2025-11-30",null,null,null,null,null,null,null,null,null,null,"양형석",null,0,0]
[null,null,null,"73",3,"1.4.1","온라인 메뉴얼 시스템"]
[null,null,null,"74",4,"1.4.1.1","온라인 메뉴얼 시스템 선정 및 구축",null,"2025-06-01","2025-06-15",null,null,null,null,null,null,null,null,null,null,"이동민",null,0,0]
[null,null,null,"75",4,"1.4.1.2","메뉴얼 작성 : System",null,"2025-06-16","2025-06-30",null,null,null,null,null,null,null,null,null,null,"이동민",null,0,0]
[null,null,null,"76",4,"1.4.1.3","메뉴얼 작성 : Discovery",null,"2025-07-01","2025-07-15",null,null,null,null,null,null,null,null,null,null,"이동민",null,0,0]
[null,null,null,"77",4,"1.4.1.4","메뉴얼 작성 : Assessment",null,"2025-07-16","2025-07-30",null,null,null,null,null,null,null,null,null,null,"이동민",null,0,0]
[null,null,null,"78",4,"1.4.1.5","메뉴얼 작성 : Migrtaion",null,"2025-08-01","2025-08-15",null,null,null,null,null,null,null,null,null,null,"이동민",null,0,0]
[null,null,null,"79",4,"1.4.1.6","메뉴얼 작성 : BackOffice",null,"2025-08-16","2025-08-30",null,null,null,null,null,null,null,null,null,null,"이동민",null,0,0]
[null,null,null,"80",3,"1.5.1","PM 및 운영 지원 활동"]
[null,null,null,"81",4,"1.5.1.1","Product Development 기술 지원",null,"2025-09-01","2025-09-15",null,null,null,null,null,null,null,null,null,null,"이동민",null,0,0]
[null,null,null,"82",4,"1.5.1.2","Product Development, MVP Development PM Role",null,"2025-10-01","2025-10-30",null,null,null,null,null,null,null,null,null,null,"이동민",null,0,0]
[null,null,null,"83",4,"1.5.1.4","HyperMig 운영 지원 활동 ( 소개 및 고객사 설치 ~ 지원 )",null,"2025-12-01","2025-12-30",null,null,null,null,null,null,null,null,null,null,"이동민",null,0,0]